{"text_format":"1","workbook":"xlsx","n_sheets":2,"sheets":["Data","Как должно получиться"],"not_rendered":{"charts":0,"images":1,"macros":1,"external_links":0,"defined_names":1,"comments":0,"pivot_tables":0},"unopened":[],"bounds":{"document_bytes":16777216,"sheet_cells":100000,"rows_first":2000,"rows_last":500,"rows_between":2000,"halvings":0,"cell_chars":16384,"cell_head_chars":4096},"cells_cut":0,"cells_raw":0,"read":"whole","date_system":"1900"}

{"sheet":"Data","index":0,"n_rows":38,"n_cols":13,"rows_kept":38,"cut":false,"hidden":false,"merged":[]}
["CLASS_","MAKE_","SERIE_","KEY1_","KEY2_","ID_","TYPE_","FIELDS_","PARTNO_","VALUE_","DATE_","OWNER_","POINTS_"]
["TPumpObj","DAB","NKM-G NKP-G","-","-","NKP-G 40-250","ALL","\r\nOBJECT\tPUMP\r\nIDENT\tNKP-G 40-250\r\nNEWID\t{NAME[Kg];;;0}/{D2IMP[Kl];;mm;0}/{Matcd[Ws];;;0}/{MATCODE[WD];;;0}/{Power[M];;kW;0;;;;;;,}/{POLES[M];;;0}\r\nSHORTNAME\tDAB\r\nDATA\tNKM-G Completo\tNKM-G breve\tKDN suggerimento\r\nLIMITIND\t0\t0\r\nLIMIT\tTminfluido\t1\t[P]\t6\t32\t0\t\t-10\t-10\r\nLIMIT\tTmaxfluido\t1\t[P]\t6\t32\t0\t\t140\t140\r\nLIMIT\tTmaxambiente\t1\t[P]\t6\t32\t0\t\t40\t40\r\nPAGENO\t4\r\nSERIES\tNKM-G NKP-G\r\nDATASHEET\tDAB - scheda tecnica pompe centrifughe norm. Tenute Speciali no brand mot\tDAB - hydraulic\tDAB - dimension  -\t\t\r\nPERFORMANCECHART\t\tNKP-G 40-250\r\nTYPE\t3\tAll\t\r\nSAFETYMARGIN\t5\t1\t0\t1\r\nPHASE\t3\r\nRESISTANCE\t0\r\nMATERIALKEY\tNKM-G\t0\r\nGRIDCOLUMNS\tARTNR[P]\r\nGRIDCOLUMNS\tNAME[DNs]\r\nGRIDCOLUMNS\tNAME[DNd]\r\nGRIDCOLUMNS\tPOLES[M]\r\nGRIDCOLUMNS\tPOWER[M]\r\nGRIDCOLUMNS\tSPEED[M]\r\nMEASUREMENT\t*\t-\r\nMEASUREMENT\tA\t100\r\nMEASUREMENT\tB\t67\r\nMEASUREMENT\tDNA\t65\r\nMEASUREMENT\tDNM\t40\r\nMEASUREMENT\tE\t210\r\nMEASUREMENT\tF\t460\r\nMEASUREMENT\tG\t350\r\nMEASUREMENT\tH1\t160\r\nMEASUREMENT\tH2\t225\r\nMEASUREMENT\tH4\t20\r\nMEASUREMENT\tL\t343\r\nMEASUREMENT\tM1\t-\r\nMEASUREMENT\tM2\t-\r\nMEASUREMENT\tN1\t314\r\nMEASUREMENT\tN2\t254\r\nMEASUREMENT\tS1\tM12\r\nMEASUREMENT\tW\t351\r\nMEASUREMENT\tX\t100\r\nOPTION\t0\r\nORIFICELIMIT\t0,1\t0,9\t0\r\n\r\nOBJECT\tINSTALLATION\r\nIDENT\tPompa monoblocco B3/B5\r\nSHORTNAME\tDAB\r\nFILENAME\tB5_H4\r\nWEIGHT\t137\r\nLIMITIND\t0\t0\r\nLIMIT\tMEDT\t1\t[AW]\t6\t11\t1\t\t-10\t140\r\nWEIGHTFORMULA\t$Wg := if POWER[M] = 15 then 207\r\nWEIGHTFORMULA\t$Wg := if POWER[M] = 18,5 then 225\r\nWEIGHTFORMULA\t$Wg := if POWER[M] = 22 then 263\r\nWEIGHTFORMULA\t\r\nACCSALLOC\tNKM-G NKP-G\r\nFIELDS\t\t0\t0\r\nHIDECOMP\t[AV]\r\nHIDECOMP\t[DN]\r\nHIDECOMP\t[DNd]\r\nHIDECOMP\t[DNs]\r\nHIDECOMP\t[M]\r\nHIDECOMP\t[WD]\r\nHIDECOMP\t[Ws]\r\nSEAL\tDAB\tTenuta meccanica\tBAQE\t\t\t\r\nSEAL\tDAB\tTenuta meccanica\tBQQE\t\t\t\r\nSEAL\tDAB\tTenuta meccanica\tBQQV\t\t\t\r\nSEAL\tDAB\tTenuta meccanica\tBAQV\t\t\t\r\nFORMULA\tA := A[P]\r\nFORMULA\tB := if POWER[M] = 15 then 67\r\nFORMULA\tB := if POWER[M] = 18,5 then 67\r\nFORMULA\tB := if POWER[M] = 22 then 74\r\nFORMULA\tE := if POWER[M] = 15 then 210\r\nFORMULA\tE := if POWER[M] = 18,5 then 254\r\nFORMULA\tE := if POWER[M] = 22 then 241\r\nFORMULA\t\r\nFORMULA\tF := if POWER[M] = 15 then 460\r\nFORMULA\tF := if POWER[M] = 18,5 then 540\r\nFORMULA\tF := if POWER[M] = 22 then 580\r\nFORMULA\tG := G[P]\r\nFORMULA\tH1 := if POWER[M] = 15 then 160\r\nFORMULA\tH1 := if POWER[M] = 18,5 then 160\r\nFORMULA\tH1 := if POWER[M] = 22 then 180\r\nFORMULA\tH2 := H2[P]\r\nFORMULA\tL := L[P]\r\nFORMULA\tM1 := M1[P]\r\nFORMULA\tM2 := M2[P]\r\nFORMULA\tN1 := if POWER[M] = 15 then 314\r\nFORMULA\tN1 := if POWER[M] = 18,5 then 314\r\nFORMULA\tN1 := if POWER[M] = 22 then 345\r\nFORMULA\tN2 := if POWER[M] = 15 then 254\r\nFORMULA\tN2 := if POWER[M] = 18,5 then 254\r\nFORMULA\tN2 := if POWER[M] = 22 then 279\r\nFORMULA\tS1 := S1[P]\r\nFORMULA\tW := if POWER[M] = 15 then 351\r\nFORMULA\tW := if POWER[M] = 18,5 then 351\r\nFORMULA\tW := if POWER[M] = 22 then 364\r\nFORMULA\tX := X[P]\r\nFORMULA\tDNA := DNA[P]\r\nFORMULA\tDNM := DNM[P]\r\nFORMULA\tH4 :=  if POWER[M] = 15 then 20\r\nFORMULA\tH4 :=  if POWER[M] = 18,5 then 20\r\nFORMULA\tH4 :=  if POWER[M] = 22 then  #45#\r\nPRICEALLOC\tP\t0\t{RESULTID[P];;;0} {FREQ[M];;Hz;1}\t\t\t\t\t\t\t\t\t\r\nZUSEIAVTOGUI\t1\r\n$\r\n\r\nOBJECT\tINSTALLATION\r\nIDENT\tSolo parte idraulica\r\nSHORTNAME\tDAB\r\nFILENAME\tNKM-G_NKP-G idraulica\r\nLIMITIND\t0\t0\r\nLIMIT\tMEDT\t1\t[AW]\t6\t11\t1\t\t-10\t140\r\nWEIGHTFORMULA\t$Wg := #45#\r\nACCSALLOC\tNKM-G NKP-G\r\nFIELDS\t\t0\t0\r\nHIDECOMP\t[AV]\r\nHIDECOMP\t[DN]\r\nHIDECOMP\t[DNd]\r\nHIDECOMP\t[DNs]\r\nHIDECOMP\t[M]\r\nHIDECOMP\t[Ws]\r\nSEAL\tDAB\tTenuta meccanica\tBAQE\t\t\t\r\nSEAL\tDAB\tTenuta meccanica\tBQQE\t\t\t\r\nSEAL\tDAB\tTenuta meccanica\tBQQV\t\t\t\r\nSEAL\tDAB\tTenuta meccanica\tBAQV\t\t\t\r\nFORMULA\tA := A[P]\r\nFORMULA\tB := if D2IMP[Kl] = 192 then 60\r\nFORMULA\tB := if D2IMP[Kl] = 204 then 67\r\nFORMULA\tB := if D2IMP[Kl] = 213 then 80\r\nFORMULA\tB := if D2IMP[Kl] = 232 then 90\r\nFORMULA\tDNA := DNA[P]\r\nFORMULA\tDNM := DNM[P]\r\nFORMULA\tG := if D2IMP[Kl] < 232 then 350\r\nFORMULA\tG := if D2IMP[Kl] = 232 then 400\r\nFORMULA\tH1 := if D2IMP[Kl] < 213 then 160\r\nFORMULA\tH1 := if D2IMP[Kl] = 213 then 180\r\nFORMULA\tH1 := if D2IMP[Kl] = 232 then 200\r\nFORMULA\tH2 := H2[P]\r\nFORMULA\tL := L[P]\r\nFORMULA\tM1 := M1[P]\r\nFORMULA\tM2 := M2[P]\r\nFORMULA\tN1 := if D2IMP[Kl] = 192 then 292\r\nFORMULA\tN1 := if D2IMP[Kl] = 204 then 315\r\nFORMULA\tN1 := if D2IMP[Kl] = 213 then 350\r\nFORMULA\tN1 := if D2IMP[Kl] = 232 then 395\r\nFORMULA\tN2 := if D2IMP[Kl] < 213 then 254\r\nFORMULA\tN2 := if D2IMP[Kl] = 213 then 279\r\nFORMULA\tN2 := if D2IMP[Kl] = 232 then 318\r\nFORMULA\tS1 := S1[P]\r\nPRICEALLOC\tP\t0\t{NAME[Kg];;;0}/{D2IMP[Kl];;mm;0}/{Matcd[Ws];;;0}/{MATCODE[WD];;;0}//\t\t\t\t\t\t\t\t\t\r\nDONTSELECT\t[M]\r\nZUSEIAVTOGUI\t1\r\n$\r\n\r\nOBJECT\tFLANGES\r\nIDENT\tDN 65 / DN 40\r\nSHORTNAME\tDAB\r\nSUCTIONSIDE\tDN 65\r\nDISCHARGESIDE\tDN 40\r\nVALUES\tDIN 2533\tPN 16\r\nVALUESSUCT\tDIN 2533\tPN 16\r\n$\r\n\r\nOBJECT\tCHECK\r\n$\r\n\r\nOBJECT\tUSERINFO\r\nIDENT\tFoto\r\nSHORTNAME\tDAB\r\nFILENAME\tnkm-g nkp-g_foto\r\n$\r\n\r\nOBJECT\tUSERINFO\r\nIDENT\tComponenti speciali a richiesta\r\nSHORTNAME\tDAB\r\nDATA\tComponenti speciali a richiesta - normalizzate monoblocco\t\t\r\n$\r\n\r\nOBJECT\tUSERINFO\r\nIDENT\tLibretto\r\nSHORTNAME\tDAB\r\nFILENAME\tCod_001354001.pdf\r\n$\r\n\r\nOBJECT\tUSERINFO\r\nIDENT\tCatalogo tecnico\r\nSHORTNAME\tDAB\r\nFILENAME\tNKM-G NKP-G_09.pdf\r\nDATA\tComponenti speciali a richiesta - normalizzate monoblocco\t\t\r\nLIMITIND\t0\t0\r\nLIMIT\tFREQ\t0\t[M]\t0\t11\t0\t\t50\r\n$\r\n\r\nOBJECT\tUSERINFO\r\nIDENT\tDichiarazione di conformita\r\nSHORTNAME\tDAB\r\nFILENAME\tCod_60164947.pdf\r\n$\r\n$\r","-",11,"2014-12-09 16:17:16.264","-"]
["TPumpObj","DAB","NKM-G NKP-G","-","-","NKP-G 50-125","ALL","\r\nOBJECT\tPUMP\r\nIDENT\tNKP-G 50-125\r\nNEWID\t{NAME[Kg];;;0}/{D2IMP[Kl];;mm;0}/{Matcd[Ws];;;0}/{MATCODE[WD];;;0}/{Power[M];;kW;0;;;;;;,}/{POLES[M];;;0}\r\nSHORTNAME\tDAB\r\nDATA\tNKM-G Completo\tNKM-G breve\tKDN suggerimento\r\nLIMITIND\t0\t0\r\nLIMIT\tTminfluido\t1\t[P]\t6\t32\t0\t\t-10\t-10\r\nLIMIT\tTmaxfluido\t1\t[P]\t6\t32\t0\t\t140\t140\r\nLIMIT\tTmaxambiente\t1\t[P]\t6\t32\t0\t\t40\t40\r\nPAGENO\t4\r\nSERIES\tNKM-G NKP-G\r\nDATASHEET\tDAB - scheda tecnica pompe centrifughe norm. Tenute Speciali no brand mot\tDAB - hydraulic\tDAB - dimension  -\t\t\r\nPERFORMANCECHART\t\tNKP-G 50-125\r\nTYPE\t3\tAll\t\r\nSAFETYMARGIN\t5\t1\t0\t1\r\nPHASE\t3\r\nRESISTANCE\t0\r\nMATERIALKEY\tNKM-G\t0\r\nGRIDCOLUMNS\tARTNR[P]\r\nGRIDCOLUMNS\tNAME[DNs]\r\nGRIDCOLUMNS\tNAME[DNd]\r\nGRIDCOLUMNS\tPOLES[M]\r\nGRIDCOLUMNS\tPOWER[M]\r\nGRIDCOLUMNS\tSPEED[M]\r\nMEASUREMENT\t**\t-\r\nMEASUREMENT\tA\t100\r\nMEASUREMENT\tB\t50\r\nMEASUREMENT\tDNA\t65\r\nMEASUREMENT\tDNM\t50\r\nMEASUREMENT\tE\t-\r\nMEASUREMENT\tF\t301\r\nMEASUREMENT\tG\t251\r\nMEASUREMENT\tH1\t132\r\nMEASUREMENT\tH2\t160\r\nMEASUREMENT\tH3\t-\r\nMEASUREMENT\tL\t274\r\nMEASUREMENT\tM1\t100\r\nMEASUREMENT\tM2\t70\r\nMEASUREMENT\tN1\t240\r\nMEASUREMENT\tN2\t190\r\nMEASUREMENT\tS1\tM10\r\nMEASUREMENT\tW\t-\r\nMEASUREMENT\tX\t100\r\nOPTION\t0\r\nORIFICELIMIT\t0,1\t0,9\t0\r\n\r\nOBJECT\tINSTALLATION\r\nIDENT\tPompa monoblocco\r\nSHORTNAME\tDAB\r\nFILENAME\tB5_H3\r\nWEIGHT\t78\r\nLIMITIND\t0\t0\r\nLIMIT\tMEDT\t1\t[AW]\t6\t11\t1\t\t-10\t140\r\nWEIGHTFORMULA\t$Wg := if POWER[M] = 3 then 78\r\nWEIGHTFORMULA\t$Wg := if POWER[M] = 4 then 113\r\nWEIGHTFORMULA\t$Wg := if POWER[M] = 5,5 then 115\r\nWEIGHTFORMULA\t$Wg := if POWER[M] = 7,5 then 120\r\nWEIGHTFORMULA\t\r\nACCSALLOC\tNKM-G NKP-G\r\nFIELDS\t\t0\t0\r\nHIDECOMP\t[AV]\r\nHIDECOMP\t[DN]\r\nHIDECOMP\t[DNd]\r\nHIDECOMP\t[DNs]\r\nHIDECOMP\t[M]\r\nHIDECOMP\t[WD]\r\nHIDECOMP\t[Ws]\r\nSEAL\tDAB\tTenuta meccanica\tBAQE\t\t\t\r\nSEAL\tDAB\tTenuta meccanica\tBQQE\t\t\t\r\nSEAL\tDAB\tTenuta meccanica\tBQQV\t\t\t\r\nSEAL\tDAB\tTenuta meccanica\tBAQV\t\t\t\r\nFORMULA\tA := A[P]\r\nFORMULA\tB := B[P]\r\nFORMULA\tE := E[P]\r\nFORMULA\tF := if POWER[M] = 3 then 301\r\nFORMULA\tF := if POWER[M] = 4 then 301\r\nFORMULA\tF := if POWER[M] = 5,5 then 390\r\nFORMULA\tF := if POWER[M] = 7,5 then 390\r\nFORMULA\tG := if POWER[M] = 3 then 251\r\nFORMULA\tG := if POWER[M] = 4 then 251\r\nFORMULA\tG := if POWER[M] = 5,5 then 300\r\nFORMULA\tG := if POWER[M] = 7,5 then 300\r\nFORMULA\tH1 := H1[P]\r\nFORMULA\tH2 := H2[P]\r\nFORMULA\tL := if POWER[M] = 3 then 274\r\nFORMULA\tL := if POWER[M] = 4 then 274\r\nFORMULA\tL := if POWER[M] = 5,5 then 313\r\nFORMULA\tL := if POWER[M] = 7,5 then 313\r\nFORMULA\tM1 := M1[P]\r\nFORMULA\tM2 := M2[P]\r\nFORMULA\tN1 := N1[P]\r\nFORMULA\tN2 := N2[P]\r\nFORMULA\tS1 := S1[P]\r\nFORMULA\tW := W[P]\r\nFORMULA\tX := X[P]\r\nFORMULA\tDNA := DNA[P]\r\nFORMULA\tDNM := DNM[P]\r\nFORMULA\tH3 :=  if POWER[M] = 3 then  #45#\r\nFORMULA\tH3 :=  if POWER[M] = 4 then  #45#\r\nFORMULA\tH3 :=  if POWER[M] = 5,5 then 20\r\nFORMULA\tH3 :=  if POWER[M] = 7,5 then 20\r\nPRICEALLOC\tP\t0\t{RESULTID[P];;;0} {FREQ[M];;Hz;1}\t\t\t\t\t\t\t\t\t\r\nZUSEIAVTOGUI\t1\r\n$\r\n\r\nOBJECT\tINSTALLATION\r\nIDENT\tSolo parte idraulica\r\nSHORTNAME\tDAB\r\nFILENAME\tNKM-G_NKP-G idraulica\r\nLIMITIND\t0\t0\r\nLIMIT\tMEDT\t1\t[AW]\t6\t11\t1\t\t-10\t140\r\nWEIGHTFORMULA\t$Wg := #45#\r\nACCSALLOC\tNKM-G NKP-G\r\nFIELDS\t\t0\t0\r\nHIDECOMP\t[AV]\r\nHIDECOMP\t[DN]\r\nHIDECOMP\t[DNd]\r\nHIDECOMP\t[DNs]\r\nHIDECOMP\t[M]\r\nHIDECOMP\t[Ws]\r\nSEAL\tDAB\tTenuta meccanica\tBAQE\t\t\t\r\nSEAL\tDAB\tTenuta meccanica\tBQQE\t\t\t\r\nSEAL\tDAB\tTenuta meccanica\tBQQV\t\t\t\r\nSEAL\tDAB\tTenuta meccanica\tBAQV\t\t\t\r\nFORMULA\tA := A[P]\r\nFORMULA\tB := B[P]\r\nFORMULA\tDNA := DNA[P]\r\nFORMULA\tDNM := DNM[P]\r\nFORMULA\t\r\nFORMULA\tG := if D2IMP[Kl] = 105 then 251\r\nFORMULA\tG := if D2IMP[Kl] > 105 then 300\r\nFORMULA\tH1 := H1[P]\r\nFORMULA\tH2 := H2[P]\r\nFORMULA\tL := if D2IMP[Kl] = 105 then 274\r\nFORMULA\tL := if D2IMP[Kl] > 105 then 313\r\nFORMULA\tM1 := M1[P]\r\nFORMULA\tM2 := M2[P]\r\nFORMULA\tN1 := N1[P]\r\nFORMULA\tN2 := N2[P]\r\nFORMULA\tS1 := S1[P]\r\nPRICEALLOC\tP\t0\t{NAME[Kg];;;0}/{D2IMP[Kl];;mm;0}/{Matcd[Ws];;;0}/{MATCODE[WD];;;0}//\t\t\t\t\t\t\t\t\t\r\nDONTSELECT\t[M]\r\nZUSEIAVTOGUI\t1\r\n$\r\n\r\nOBJECT\tFLANGES\r\nIDENT\tDN 65 / DN 50\r\nSHORTNAME\tDAB\r\nSUCTIONSIDE\tDN 65\r\nDISCHARGESIDE\tDN 50\r\nVALUES\tDIN 2533\tPN 16\r\nVALUESSUCT\tDIN 2533\tPN 16\r\n$\r\n\r\nOBJECT\tCHECK\r\n$\r\n\r\nOBJECT\tUSERINFO\r\nIDENT\tFoto\r\nSHORTNAME\tDAB\r\nFILENAME\tnkm-g nkp-g_foto\r\n$\r\n\r\nOBJECT\tUSERINFO\r\nIDENT\tComponenti speciali a richiesta\r\nSHORTNAME\tDAB\r\nDATA\tComponenti speciali a richiesta - normalizzate monoblocco\t\t\r\n$\r\n\r\nOBJECT\tUSERINFO\r\nIDENT\tLibretto\r\nSHORTNAME\tDAB\r\nFILENAME\tCod_001354001.pdf\r\n$\r\n\r\nOBJECT\tUSERINFO\r\nIDENT\tCatalogo tecnico\r\nSHORTNAME\tDAB\r\nFILENAME\tNKM-G NKP-G_09.pdf\r\nDATA\tComponenti speciali a richiesta - normalizzate monoblocco\t\t\r\nLIMITIND\t0\t0\r\nLIMIT\tFREQ\t0\t[M]\t0\t11\t0\t\t50\r\n$\r\n\r\nOBJECT\tUSERINFO\r\nIDENT\tDichiarazione di conformita\r\nSHORTNAME\tDAB\r\nFILENAME\tCod_60164947.pdf\r\n$\r\n$\r","-",11,"2014-12-09 16:18:37.367","-"]
["TPumpObj","DAB","NKM-G NKP-G","-","-","NKP-G 50-160","ALL","\r\nOBJECT\tPUMP\r\nIDENT\tNKP-G 50-160\r\nNEWID\t{NAME[Kg];;;0}/{D2IMP[Kl];;mm;0}/{Matcd[Ws];;;0}/{MATCODE[WD];;;0}/{Power[M];;kW;0;;;;;;,}/{POLES[M];;;0}\r\nSHORTNAME\tDAB\r\nDATA\tNKM-G Completo\tNKM-G breve\tKDN suggerimento\r\nLIMITIND\t0\t0\r\nLIMIT\tTminfluido\t1\t[P]\t6\t32\t0\t\t-10\t-10\r\nLIMIT\tTmaxfluido\t1\t[P]\t6\t32\t0\t\t140\t140\r\nLIMIT\tTmaxambiente\t1\t[P]\t6\t32\t0\t\t40\t40\r\nPAGENO\t4\r\nSERIES\tNKM-G NKP-G\r\nDATASHEET\tDAB - scheda tecnica pompe centrifughe norm. Tenute Speciali no brand mot\tDAB - hydraulic\tDAB - dimension  -\t\t\r\nPERFORMANCECHART\t\tNKP-G 50-160\r\nTYPE\t3\tAll\t\r\nSAFETYMARGIN\t5\t1\t0\t1\r\nPHASE\t3\r\nRESISTANCE\t0\r\nMATERIALKEY\tNKM-G\t0\r\nGRIDCOLUMNS\tARTNR[P]\r\nGRIDCOLUMNS\tNAME[DNs]\r\nGRIDCOLUMNS\tNAME[DNd]\r\nGRIDCOLUMNS\tPOLES[M]\r\nGRIDCOLUMNS\tPOWER[M]\r\nGRIDCOLUMNS\tSPEED[M]\r\nMEASUREMENT\t*\t-\r\nMEASUREMENT\tA\t100\r\nMEASUREMENT\tB\t50\r\nMEASUREMENT\tDNA\t65\r\nMEASUREMENT\tDNM\t50\r\nMEASUREMENT\tE\t-\r\nMEASUREMENT\tF\t390\r\nMEASUREMENT\tG\t300\r\nMEASUREMENT\tH1\t160\r\nMEASUREMENT\tH2\t180\r\nMEASUREMENT\tH4\t20\r\nMEASUREMENT\tL\t313\r\nMEASUREMENT\tM1\t100\r\nMEASUREMENT\tM2\t70\r\nMEASUREMENT\tN1\t265\r\nMEASUREMENT\tN2\t212\r\nMEASUREMENT\tS1\tM12\r\nMEASUREMENT\tW\t-\r\nMEASUREMENT\tX\t100\r\nOPTION\t0\r\nORIFICELIMIT\t0,1\t0,9\t0\r\n\r\nOBJECT\tINSTALLATION\r\nIDENT\tPompa monoblocco B3/B5\r\nSHORTNAME\tDAB\r\nFILENAME\tB5_H4\r\nWEIGHT\t88\r\nLIMITIND\t0\t0\r\nLIMIT\tMEDT\t1\t[AW]\t6\t11\t1\t\t-10\t140\r\nLIMIT\tPOWER\t1\t[M]\t3\t11\t1\t\t10,5\t11,5\r\nWEIGHTFORMULA\t$Wg := if POWER[M] = 7,5 then 88\r\nWEIGHTFORMULA\t$Wg := if POWER[M] = 11 then 119\r\nWEIGHTFORMULA\t\r\nACCSALLOC\tNKM-G NKP-G\r\nFIELDS\t\t0\t0\r\nHIDECOMP\t[AV]\r\nHIDECOMP\t[DN]\r\nHIDECOMP\t[DNd]\r\nHIDECOMP\t[DNs]\r\nHIDECOMP\t[M]\r\nHIDECOMP\t[WD]\r\nHIDECOMP\t[Ws]\r\nSEAL\tDAB\tTenuta meccanica\tBAQE\t\t\t\r\nSEAL\tDAB\tTenuta meccanica\tBQQE\t\t\t\r\nSEAL\tDAB\tTenuta meccanica\tBQQV\t\t\t\r\nSEAL\tDAB\tTenuta meccanica\tBAQV\t\t\t\r\nFORMULA\tA := A[P]\r\nFORMULA\tB := if POWER[M] = 7,5 then 50\r\nFORMULA\tB := if POWER[M] = 11 then 67\r\nFORMULA\tE := if POWER[M] = 7,5 then #45#\r\nFORMULA\tE := if POWER[M] = 11 then 210\r\nFORMULA\tF := if POWER[M] = 7,5 then 390\r\nFORMULA\tF := if POWER[M] = 11 then 460\r\nFORMULA\tG := if POWER[M] = 7,5 then 300\r\nFORMULA\tG := if POWER[M] = 11 then 350\r\nFORMULA\tH1 := H1[P]\r\nFORMULA\tH2 := H2[P]\r\nFORMULA\tL := if POWER[M] = 7,5 then 313\r\nFORMULA\tL := if POWER[M] = 11 then 343\r\nFORMULA\tM1 := if POWER[M] = 7,5 then 100\r\nFORMULA\tM1 := if POWER[M] = 11 then #45#\r\nFORMULA\tM2 := if POWER[M] = 7,5 then 70\r\nFORMULA\tM2 := if POWER[M] = 11 then #45#\r\nFORMULA\tN1 := if POWER[M] = 7,5 then 265\r\nFORMULA\tN1 := if POWER[M] = 11 then 314\r\nFORMULA\tN2 := if POWER[M] = 7,5 then 212\r\nFORMULA\tN2 := if POWER[M] = 11 then 254\r\nFORMULA\tS1 := if POWER[M] = 7,5 then M10\r\nFORMULA\tS1 := if POWER[M] = 11 then M12\r\nFORMULA\tW := if POWER[M] = 11 then 351\r\nFORMULA\tW := if POWER[M] = 7,5 then #45#\r\nFORMULA\tX := X[P]\r\nFORMULA\tDNA := DNA[P]\r\nFORMULA\tDNM := DNM[P]\r\nFORMULA\tH4 := if POWER[M] = 7,5 then #45#\r\nFORMULA\tH4 := if POWER[M] = 11 then 20\r\nPRICEALLOC\tP\t0\t{RESULTID[P];;;0} {FREQ[M];;Hz;1}\t\t\t\t\t\t\t\t\t\r\nZUSEIAVTOGUI\t1\r\n$\r\n\r\nOBJECT\tINSTALLATION\r\nIDENT\tPompa monoblocco B5\r\nSHORTNAME\tDAB\r\nFILENAME\tNKM_G_B5\r\nDATA\t\t\tNKM/NKP * Suggerimento\r\nWEIGHT\t88,2\r\nLIMITIND\t0\t0\r\nLIMIT\tPOWER\t1\t[M]\t3\t11\t1\t\t7,4\t7,6\r\nLIMIT\tMEDT\t1\t[AW]\t6\t11\t1\t\t-10\t140\r\nWEIGHTFORMULA\t$Wg := if POWER[M] = 7,5 then 88.2\r\nWEIGHTFORMULA\t$Wg := if POWER[M] = 11 then 119\r\nWEIGHTFORMULA\t\r\nACCSALLOC\tNKM-G NKP-G NKM-GE NKP-GE NKM NKP\r\nFIELDS\t\t0\t0\r\nHIDECOMP\t[AV]\r\nHIDECOMP\t[DN]\r\nHIDECOMP\t[DNd]\r\nHIDECOMP\t[DNs]\r\nHIDECOMP\t[M]\r\nHIDECOMP\t[Ws]\r\nSEAL\tDAB\tTenuta meccanica\tBAQE\t\t\t\r\nSEAL\tDAB\tTenuta meccanica\tBQQE\t\t\t\r\nSEAL\tDAB\tTenuta meccanica\tBQQV\t\t\t\r\nSEAL\tDAB\tTenuta meccanica\tBAQV\t\t\t\r\nFORMULA\tA := A[P]\r\nFORMULA\tB := if POWER[M] = 7,5 then 50\r\nFORMULA\tB := if POWER[M] = 11 then 67\r\nFORMULA\tE := if POWER[M] = 7,5 then #45#\r\nFORMULA\tE := if POWER[M] = 11 then 210\r\nFORMULA\tF := if POWER[M] = 7,5 then 390\r\nFORMULA\tF := if POWER[M] = 11 then 460\r\nFORMULA\tG := if POWER[M] = 7,5 then 300\r\nFORMULA\tG := if POWER[M] = 11 then 350\r\nFORMULA\tH1 := H1[P]\r\nFORMULA\tH2 := H2[P]\r\nFORMULA\tL := if POWER[M] = 7,5 then 313\r\nFORMULA\tL := if POWER[M] = 11 then 343\r\nFORMULA\tM1 := if POWER[M] = 7,5 then 100\r\nFORMULA\tM1 := if POWER[M] = 11 then #45#\r\nFORMULA\tM2 := if POWER[M] = 7,5 then 70\r\nFORMULA\tM2 := if POWER[M] = 11 then #45#\r\nFORMULA\tN1 := if POWER[M] = 7,5 then 265\r\nFORMULA\tN1 := if POWER[M] = 11 then 314\r\nFORMULA\tN2 := if POWER[M] = 7,5 then 212\r\nFORMULA\tN2 := if POWER[M] = 11 then 254\r\nFORMULA\tS1 := if POWER[M] = 7,5 then M10\r\nFORMULA\tS1 := if POWER[M] = 11 then M12\r\nFORMULA\tW := if POWER[M] = 11 then 351\r\nFORMULA\tW := if POWER[M] = 7,5 then #45#\r\nFORMULA\tX := X[P]\r\nFORMULA\tDNA := DNA[P]\r\nFORMULA\tDNM := DNM[P]\r\nFORMULA\tH4 := if POWER[M] = 7,5 then #45#\r\nFORMULA\tH4 := if POWER[M] = 11 then 20\r\nPRICEALLOC\tP\t0\t{RESULTID[P];;;0} {FREQ[M];;Hz;1}\t\t\t\t\t\t\t\t\t\r\nZUSEIAVTOGUI\t1\r\n$\r\n\r\nOBJECT\tINSTALLATION\r\nIDENT\tSolo parte idraulica\r\nSHORTNAME\tDAB\r\nFILENAME\tNKM-G_NKP-G idraulica\r\nLIMITIND\t0\t0\r\nLIMIT\tMEDT\t1\t[AW]\t6\t11\t1\t\t-10\t140\r\nWEIGHTFORMULA\t$Wg := #45#\r\nACCSALLOC\tNKM-G NKP-G\r\nFIELDS\t\t0\t0\r\nHIDECOMP\t[AV]\r\nHIDECOMP\t[DN]\r\nHIDECOMP\t[DNd]\r\nHIDECOMP\t[DNs]\r\nHIDECOMP\t[M]\r\nHIDECOMP\t[Ws]\r\nSEAL\tDAB\tTenuta meccanica\tBAQE\t\t\t\r\nSEAL\tDAB\tTenuta meccanica\tBQQE\t\t\t\r\nSEAL\tDAB\tTenuta meccanica\tBQQV\t\t\t\r\nSEAL\tDAB\tTenuta meccanica\tBAQV\t\t\t\r\nFORMULA\tA := A[P]\r\nFORMULA\t\r\nFORMULA\tB := if D2IMP[Kl] = 129 then 50\r\nFORMULA\tB := if D2IMP[Kl] = 145 then 60\r\nFORMULA\tDNA := DNA[P]\r\nFORMULA\tDNM := DNM[P]\r\nFORMULA\tG := if D2IMP[Kl] = 129 then 300\r\nFORMULA\tG := if D2IMP[Kl] = 145 then 350\r\nFORMULA\tH1 := H1[P]\r\nFORMULA\tH2 := H2[P]\r\nFORMULA\tL := if D2IMP[Kl] = 129 then 313\r\nFORMULA\tL := if D2IMP[Kl] = 145 then 343\r\nFORMULA\tM1 := if D2IMP[Kl] = 129 then 100\r\nFORMULA\tM1 := if D2IMP[Kl] = 145 then #45#\r\nFORMULA\tM2 := if D2IMP[Kl] = 129 then 70\r\nFORMULA\tM2 := if D2IMP[Kl] = 145 then #45#\r\nFORMULA\tN1 := if D2IMP[Kl] = 129 then 265\r\nFORMULA\tN1 := if D2IMP[Kl] = 145 then 292\r\nFORMULA\tN2 := if D2IMP[Kl] = 129 then 212\r\nFORMULA\tN2 := if D2IMP[Kl] = 145 then 254\r\nFORMULA\tS1 := if D2IMP[Kl] = 129 then M12\r\nFORMULA\tS1 := if D2IMP[Kl] = 145 then M14\r\nPRICEALLOC\tP\t0\t{NAME[Kg];;;0}/{D2IMP[Kl];;mm;0}/{Matcd[Ws];;;0}/{MATCODE[WD];;;0}//\t\t\t\t\t\t\t\t\t\r\nDONTSELECT\t[M]\r\nZUSEIAVTOGUI\t1\r\n$\r\n\r\nOBJECT\tFLANGES\r\nIDENT\tDN 65 / DN 50\r\nSHORTNAME\tDAB\r\nSUCTIONSIDE\tDN 65\r\nDISCHARGESIDE\tDN 50\r\nVALUES\tDIN 2533\tPN 16\r\nVALUESSUCT\tDIN 2533\tPN 16\r\n$\r\n\r\nOBJECT\tCHECK\r\n$\r\n\r\nOBJECT\tUSERINFO\r\nIDENT\tFoto\r\nSHORTNAME\tDAB\r\nFILENAME\tnkm-g nkp-g_foto\r\n$\r\n\r\nOBJECT\tUSERINFO\r\nIDENT\tComponenti speciali a richiesta\r\nSHORTNAME\tDAB\r\nDATA\tComponenti speciali a richiesta - normalizzate monoblocco\t\t\r\n$\r\n\r\nOBJECT\tUSERINFO\r\nIDENT\tLibretto\r\nSHORTNAME\tDAB\r\nFILENAME\tCod_001354001.pdf\r\n$\r\n\r\nOBJECT\tUSERINFO\r\nIDENT\tCatalogo tecnico\r\nSHORTNAME\tDAB\r\nFILENAME\tNKM-G NKP-G_09.pdf\r\nDATA\tComponenti speciali a richiesta - normalizzate monoblocco\t\t\r\nLIMITIND\t0\t0\r\nLIMIT\tFREQ\t0\t[M]\t0\t11\t0\t\t50\r\n$\r\n\r\nOBJECT\tUSERINFO\r\nIDENT\tDichiarazione di conformita\r\nSHORTNAME\tDAB\r\nFILENAME\tCod_60164947.pdf\r\n$\r\n$\r","-",11,"2014-12-09 16:17:16.264","-"]
["TPumpObj","DAB","NKM-G NKP-G","-","-","NKP-G 50-200","ALL","\r\nOBJECT\tPUMP\r\nIDENT\tNKP-G 50-200\r\nNEWID\t{NAME[Kg];;;0}/{D2IMP[Kl];;mm;0}/{Matcd[Ws];;;0}/{MATCODE[WD];;;0}/{Power[M];;kW;0;;;;;;,}/{POLES[M];;;0}\r\nSHORTNAME\tDAB\r\nDATA\tNKM-G Completo\tNKM-G breve\tKDN suggerimento\r\nLIMITIND\t0\t0\r\nLIMIT\tTminfluido\t1\t[P]\t6\t32\t0\t\t-10\t-10\r\nLIMIT\tTmaxfluido\t1\t[P]\t6\t32\t0\t\t140\t140\r\nLIMIT\tTmaxambiente\t1\t[P]\t6\t32\t0\t\t40\t40\r\nPAGENO\t4\r\nSERIES\tNKM-G NKP-G\r\nDATASHEET\tDAB - scheda tecnica pompe centrifughe norm. Tenute Speciali no brand mot\tDAB - hydraulic\tDAB - dimension  -\t\t\r\nPERFORMANCECHART\t\tNKP-G 50-200\r\nTYPE\t3\tAll\t\r\nSAFETYMARGIN\t5\t1\t0\t1\r\nPHASE\t3\r\nRESISTANCE\t0\r\nMATERIALKEY\tNKM-G\t0\r\nGRIDCOLUMNS\tARTNR[P]\r\nGRIDCOLUMNS\tNAME[DNs]\r\nGRIDCOLUMNS\tNAME[DNd]\r\nGRIDCOLUMNS\tPOLES[M]\r\nGRIDCOLUMNS\tPOWER[M]\r\nGRIDCOLUMNS\tSPEED[M]\r\nMEASUREMENT\t*\t-\r\nMEASUREMENT\tA\t100\r\nMEASUREMENT\tB\t67\r\nMEASUREMENT\tDNA\t65\r\nMEASUREMENT\tDNM\t50\r\nMEASUREMENT\tE\t210\r\nMEASUREMENT\tF\t460\r\nMEASUREMENT\tG\t350\r\nMEASUREMENT\tH1\t160\r\nMEASUREMENT\tH2\t200\r\nMEASUREMENT\tH4\t20\r\nMEASUREMENT\tL\t343\r\nMEASUREMENT\tM1\t-\r\nMEASUREMENT\tM2\t-\r\nMEASUREMENT\tN1\t314\r\nMEASUREMENT\tN2\t254\r\nMEASUREMENT\tS1\tM12\r\nMEASUREMENT\tW\t351\r\nMEASUREMENT\tX\t100\r\nOPTION\t0\r\nORIFICELIMIT\t0,1\t0,9\t0\r\n\r\nOBJECT\tINSTALLATION\r\nIDENT\tPompa monoblocco B3/B5\r\nSHORTNAME\tDAB\r\nFILENAME\tB5_H4\r\nWEIGHT\t203\r\nLIMITIND\t0\t0\r\nLIMIT\tMEDT\t1\t[AW]\t6\t11\t1\t\t-10\t140\r\nWEIGHTFORMULA\t$Wg := if POWER[M] = 15 then 203\r\nWEIGHTFORMULA\t$Wg := if POWER[M] = 18,5 then 220\r\nWEIGHTFORMULA\t$Wg := if POWER[M] = 22 then 258\r\nWEIGHTFORMULA\t\r\nACCSALLOC\tNKM-G NKP-G\r\nFIELDS\t\t0\t0\r\nHIDECOMP\t[AV]\r\nHIDECOMP\t[DN]\r\nHIDECOMP\t[DNd]\r\nHIDECOMP\t[DNs]\r\nHIDECOMP\t[M]\r\nHIDECOMP\t[WD]\r\nHIDECOMP\t[Ws]\r\nSEAL\tDAB\tTenuta meccanica\tBAQE\t\t\t\r\nSEAL\tDAB\tTenuta meccanica\tBQQE\t\t\t\r\nSEAL\tDAB\tTenuta meccanica\tBQQV\t\t\t\r\nSEAL\tDAB\tTenuta meccanica\tBAQV\t\t\t\r\nFORMULA\tA := A[P]\r\nFORMULA\tB := if POWER[M] = 7,5 then 50\r\nFORMULA\tB := if POWER[M] = 11 then 67\r\nFORMULA\tB := if POWER[M] = 15 then 67\r\nFORMULA\tB := if POWER[M] = 18,5 then 67\r\nFORMULA\tB := if POWER[M] = 22 then 74\r\nFORMULA\tE := if POWER[M] = 15 then 210\r\nFORMULA\tE := if POWER[M] = 18,5 then 254\r\nFORMULA\tE := if POWER[M] = 22 then 241\r\nFORMULA\tF := if POWER[M] = 15 then 460\r\nFORMULA\tF := if POWER[M] = 18,5 then 540\r\nFORMULA\tF := if POWER[M] = 22 then 580\r\nFORMULA\tG := G[P]\r\nFORMULA\tH1 := if POWER[M] = 15 then 160\r\nFORMULA\tH1 := if POWER[M] = 18,5 then 160\r\nFORMULA\tH1 := if POWER[M] = 22 then 180\r\nFORMULA\tH2 := H2[P]\r\nFORMULA\tL := L[P]\r\nFORMULA\tM1 := M1[P]\r\nFORMULA\tM2 := M2[P]\r\nFORMULA\tN1 := if POWER[M] = 15 then 314\r\nFORMULA\tN1 := if POWER[M] = 18,5 then 314\r\nFORMULA\tN1 := if POWER[M] = 22 then 345\r\nFORMULA\tN2 := if POWER[M] = 18,5 then 254\r\nFORMULA\tN2 := if POWER[M] = 15 then 254\r\nFORMULA\tN2 := if POWER[M] = 22 then 279\r\nFORMULA\tS1 := S1[P]\r\nFORMULA\tW := if POWER[M] = 15 then 351\r\nFORMULA\tW := if POWER[M] = 18,5 then 351\r\nFORMULA\tW := if POWER[M] = 22 then 364\r\nFORMULA\tX := X[P]\r\nFORMULA\tDNA := DNA[P]\r\nFORMULA\tDNM := DNM[P]\r\nFORMULA\tH4 := if POWER[M] = 15 then 20\r\nFORMULA\tH4 := if POWER[M] = 18,5 then 20\r\nFORMULA\tH4 := if POWER[M] = 22 then #45#\r\nPRICEALLOC\tP\t0\t{RESULTID[P];;;0} {FREQ[M];;Hz;1}\t\t\t\t\t\t\t\t\t\r\nZUSEIAVTOGUI\t1\r\n$\r\n\r\nOBJECT\tINSTALLATION\r\nIDENT\tSolo parte idraulica\r\nSHORTNAME\tDAB\r\nFILENAME\tNKM-G_NKP-G idraulica\r\nLIMITIND\t0\t0\r\nLIMIT\tMEDT\t1\t[AW]\t6\t11\t1\t\t-10\t140\r\nWEIGHTFORMULA\t$Wg := #45#\r\nACCSALLOC\tNKM-G NKP-G\r\nFIELDS\t\t0\t0\r\nHIDECOMP\t[AV]\r\nHIDECOMP\t[DN]\r\nHIDECOMP\t[DNd]\r\nHIDECOMP\t[DNs]\r\nHIDECOMP\t[M]\r\nHIDECOMP\t[Ws]\r\nSEAL\tDAB\tTenuta meccanica\tBAQE\t\t\t\r\nSEAL\tDAB\tTenuta meccanica\tBQQE\t\t\t\r\nSEAL\tDAB\tTenuta meccanica\tBQQV\t\t\t\r\nSEAL\tDAB\tTenuta meccanica\tBAQV\t\t\t\r\nFORMULA\tA := A[P]\r\nFORMULA\t\r\nFORMULA\tB := if D2IMP[Kl] = 170 then 60\r\nFORMULA\tB := if D2IMP[Kl] = 180 then 67\r\nFORMULA\tB := if D2IMP[Kl] = 190 then 80\r\nFORMULA\tDNA := DNA[P]\r\nFORMULA\tDNM := DNM[P]\r\nFORMULA\tG := G[P]\r\nFORMULA\tH1 := if D2IMP[Kl] = 170 then 160\r\nFORMULA\tH1 := if D2IMP[Kl] = 180 then 160\r\nFORMULA\tH1 := if D2IMP[Kl] = 190 then 180\r\nFORMULA\tH2 := H2[P]\r\nFORMULA\tL := L[P]\r\nFORMULA\tM1 := M1[P]\r\nFORMULA\tM2 := M2[P]\r\nFORMULA\tN1 := if D2IMP[Kl] = 170 then 314\r\nFORMULA\tN1 := if D2IMP[Kl] = 180 then 314\r\nFORMULA\tN1 := if D2IMP[Kl] = 190 then 345\r\nFORMULA\tN2 := if D2IMP[Kl] = 170 then 254\r\nFORMULA\tN2 := if D2IMP[Kl] = 180 then 254\r\nFORMULA\tN2 := if D2IMP[Kl] = 190 then 279\r\nFORMULA\tS1 := S1[P]\r\nPRICEALLOC\tP\t0\t{NAME[Kg];;;0}/{D2IMP[Kl];;mm;0}/{Matcd[Ws];;;0}/{MATCODE[WD];;;0}//\t\t\t\t\t\t\t\t\t\r\nDONTSELECT\t[M]\r\nZUSEIAVTOGUI\t1\r\n$\r\n\r\nOBJECT\tFLANGES\r\nIDENT\tDN 65 / DN 50\r\nSHORTNAME\tDAB\r\nSUCTIONSIDE\tDN 65\r\nDISCHARGESIDE\tDN 50\r\nVALUES\tDIN 2533\tPN 16\r\nVALUESSUCT\tDIN 2533\tPN 16\r\n$\r\n\r\nOBJECT\tCHECK\r\n$\r\n\r\nOBJECT\tUSERINFO\r\nIDENT\tFoto\r\nSHORTNAME\tDAB\r\nFILENAME\tnkm-g nkp-g_foto\r\n$\r\n\r\nOBJECT\tUSERINFO\r\nIDENT\tComponenti speciali a richiesta\r\nSHORTNAME\tDAB\r\nDATA\tComponenti speciali a richiesta - normalizzate monoblocco\t\t\r\n$\r\n\r\nOBJECT\tUSERINFO\r\nIDENT\tLibretto\r\nSHORTNAME\tDAB\r\nFILENAME\tCod_001354001.pdf\r\n$\r\n\r\nOBJECT\tUSERINFO\r\nIDENT\tCatalogo tecnico\r\nSHORTNAME\tDAB\r\nFILENAME\tNKM-G NKP-G_09.pdf\r\nDATA\tComponenti speciali a richiesta - normalizzate monoblocco\t\t\r\nLIMITIND\t0\t0\r\nLIMIT\tFREQ\t0\t[M]\t0\t11\t0\t\t50\r\n$\r\n\r\nOBJECT\tUSERINFO\r\nIDENT\tDichiarazione di conformita\r\nSHORTNAME\tDAB\r\nFILENAME\tCod_60164947.pdf\r\n$\r\n$\r","-",11,"2014-12-09 16:17:16.264","-"]
["TPumpObj","DAB","NKM-G NKP-G","-","-","NKP-G 50-250","ALL","\r\nOBJECT\tPUMP\r\nIDENT\tNKP-G 50-250\r\nNEWID\t{NAME[Kg];;;0}/{D2IMP[Kl];;mm;0}/{Matcd[Ws];;;0}/{MATCODE[WD];;;0}/{Power[M];;kW;0;;;;;;,}/{POLES[M];;;0}\r\nSHORTNAME\tDAB\r\nDATA\tNKM-G Completo\tNKM-G breve\tKDN suggerimento\r\nLIMITIND\t0\t0\r\nLIMIT\tTminfluido\t1\t[P]\t6\t32\t0\t\t-10\t-10\r\nLIMIT\tTmaxfluido\t1\t[P]\t6\t32\t0\t\t140\t140\r\nLIMIT\tTmaxambiente\t1\t[P]\t6\t32\t0\t\t40\t40\r\nPAGENO\t4\r\nSERIES\tNKM-G NKP-G\r\nDATASHEET\tDAB - scheda tecnica pompe centrifughe norm. Tenute Speciali no brand mot\tDAB - hydraulic\tDAB - dimension  -\t\t\r\nPERFORMANCECHART\t\tNKP-G 50-250\r\nTYPE\t3\tAll\t\r\nSAFETYMARGIN\t5\t1\t0\t1\r\nPHASE\t3\r\nRESISTANCE\t0\r\nMATERIALKEY\tNKM-G\t0\r\nGRIDCOLUMNS\tARTNR[P]\r\nGRIDCOLUMNS\tNAME[DNs]\r\nGRIDCOLUMNS\tNAME[DNd]\r\nGRIDCOLUMNS\tPOLES[M]\r\nGRIDCOLUMNS\tPOWER[M]\r\nGRIDCOLUMNS\tSPEED[M]\r\nMEASUREMENT\tA\t100\r\nMEASUREMENT\tB\t74\r\nMEASUREMENT\tDNA\t65\r\nMEASUREMENT\tDNM\t50\r\nMEASUREMENT\tE\t241\r\nMEASUREMENT\tF\t580\r\nMEASUREMENT\tG\t350\r\nMEASUREMENT\tH1\t180\r\nMEASUREMENT\tH2\t225\r\nMEASUREMENT\tL\t343\r\nMEASUREMENT\tM1\t-\r\nMEASUREMENT\tM2\t-\r\nMEASUREMENT\tN1\t345\r\nMEASUREMENT\tN2\t279\r\nMEASUREMENT\tS1\tM12\r\nMEASUREMENT\tW\t364\r\nMEASUREMENT\tX\t100\r\nOPTION\t0\r\nORIFICELIMIT\t0,1\t0,9\t0\r\n\r\nOBJECT\tINSTALLATION\r\nIDENT\tPompa monoblocco B3/B5\r\nSHORTNAME\tDAB\r\nFILENAME\tNKM_P_B3_B5\r\nWEIGHT\t263\r\nLIMITIND\t0\t0\r\nLIMIT\tMEDT\t1\t[AW]\t6\t11\t1\t\t-10\t140\r\nWEIGHTFORMULA\t$Wg := if POWER[M] = 22 then 263\r\nWEIGHTFORMULA\t$Wg := if POWER[M] = 30 then 354\r\nWEIGHTFORMULA\t\r\nACCSALLOC\tNKM-G NKP-G\r\nFIELDS\t\t0\t0\r\nHIDECOMP\t[AV]\r\nHIDECOMP\t[DN]\r\nHIDECOMP\t[DNd]\r\nHIDECOMP\t[DNs]\r\nHIDECOMP\t[M]\r\nHIDECOMP\t[WD]\r\nHIDECOMP\t[Ws]\r\nSEAL\tDAB\tTenuta meccanica\tBAQE\t\t\t\r\nSEAL\tDAB\tTenuta meccanica\tBQQE\t\t\t\r\nSEAL\tDAB\tTenuta meccanica\tBQQV\t\t\t\r\nSEAL\tDAB\tTenuta meccanica\tBAQV\t\t\t\r\nFORMULA\tA := A[P]\r\nFORMULA\tB := if POWER[M] = 22 then 74\r\nFORMULA\tB := if POWER[M] = 30 then 85\r\nFORMULA\tE := if POWER[M] = 22 then 241\r\nFORMULA\tE := if POWER[M] = 30 then 305\r\nFORMULA\tF := if POWER[M] = 22 then 580\r\nFORMULA\tF := if POWER[M] = 30 then 640\r\nFORMULA\tG := if POWER[M] = 22 then 350\r\nFORMULA\tG := if POWER[M] = 30 then 400\r\nFORMULA\tH1 := if POWER[M] = 22 then 180\r\nFORMULA\tH1 := if POWER[M] = 30 then 200\r\nFORMULA\tH2 := H2[P]\r\nFORMULA\tL := L[P]\r\nFORMULA\tM1 := M1[P]\r\nFORMULA\tM2 := M2[P]\r\nFORMULA\tN1 := if POWER[M] = 22 then 345\r\nFORMULA\tN1 := if POWER[M] = 30 then 388\r\nFORMULA\tN2 := if POWER[M] = 22 then 279\r\nFORMULA\tN2 := if POWER[M] = 30 then 318\r\nFORMULA\tS1 := if POWER[M] = 22 then M12\r\nFORMULA\tS1 := if POWER[M] = 30 then M14\r\nFORMULA\tW := if POWER[M] = 22 then 364\r\nFORMULA\tW := if POWER[M] = 30 then 376\r\nFORMULA\tX := X[P]\r\nFORMULA\t\r\nFORMULA\tDNA := DNA[P]\r\nFORMULA\tDNM := DNM[P]\r\nPRICEALLOC\tP\t0\t{RESULTID[P];;;0} {FREQ[M];;Hz;1}\t\t\t\t\t\t\t\t\t\r\nZUSEIAVTOGUI\t1\r\n$\r\n\r\nOBJECT\tINSTALLATION\r\nIDENT\tSolo parte idraulica\r\nSHORTNAME\tDAB\r\nFILENAME\tNKM-G_NKP-G idraulica\r\nLIMITIND\t0\t0\r\nLIMIT\tMEDT\t1\t[AW]\t6\t11\t1\t\t-10\t140\r\nWEIGHTFORMULA\t$Wg := #45#\r\nACCSALLOC\tNKM-G NKP-G\r\nFIELDS\t\t0\t0\r\nHIDECOMP\t[AV]\r\nHIDECOMP\t[DN]\r\nHIDECOMP\t[DNd]\r\nHIDECOMP\t[DNs]\r\nHIDECOMP\t[M]\r\nHIDECOMP\t[Ws]\r\nSEAL\tDAB\tTenuta meccanica\tBAQE\t\t\t\r\nSEAL\tDAB\tTenuta meccanica\tBQQE\t\t\t\r\nSEAL\tDAB\tTenuta meccanica\tBQQV\t\t\t\r\nSEAL\tDAB\tTenuta meccanica\tBAQV\t\t\t\r\nFORMULA\tA := A[P]\r\nFORMULA\tB := if D2IMP[Kl] = 196 then 80\r\nFORMULA\tB := if D2IMP[Kl] > 196 then 90\r\nFORMULA\tDNA := DNA[P]\r\nFORMULA\tDNM := DNM[P]\r\nFORMULA\t\r\nFORMULA\tG := if D2IMP[Kl] = 196 then 350\r\nFORMULA\tG := if D2IMP[Kl] > 196 then 400\r\nFORMULA\tH1 := if D2IMP[Kl] = 196 then 180\r\nFORMULA\tH1 := if D2IMP[Kl] > 196 then 200\r\nFORMULA\tH2 := H2[P]\r\nFORMULA\tL := L[P]\r\nFORMULA\tM1 := M1[P]\r\nFORMULA\tM2 := M2[P]\r\nFORMULA\tN1 := if D2IMP[Kl] = 196 then 350\r\nFORMULA\tN1 := if D2IMP[Kl] > 196 then 395\r\nFORMULA\tN2 := if D2IMP[Kl] = 196 then 279\r\nFORMULA\tN2 := if D2IMP[Kl] > 196 then 318\r\nFORMULA\tS1 := if D2IMP[Kl] = 196 then M14\r\nFORMULA\tS1 := if D2IMP[Kl] > 196 then M18\r\nPRICEALLOC\tP\t0\t{NAME[Kg];;;0}/{D2IMP[Kl];;mm;0}/{Matcd[Ws];;;0}/{MATCODE[WD];;;0}//\t\t\t\t\t\t\t\t\t\r\nDONTSELECT\t[M]\r\nZUSEIAVTOGUI\t1\r\n$\r\n\r\nOBJECT\tFLANGES\r\nIDENT\tDN 65 / DN 50\r\nSHORTNAME\tDAB\r\nSUCTIONSIDE\tDN 65\r\nDISCHARGESIDE\tDN 50\r\nVALUES\tDIN 2533\tPN 16\r\nVALUESSUCT\tDIN 2533\tPN 16\r\n$\r\n\r\nOBJECT\tCHECK\r\n$\r\n\r\nOBJECT\tUSERINFO\r\nIDENT\tFoto\r\nSHORTNAME\tDAB\r\nFILENAME\tnkm-g nkp-g_foto\r\n$\r\n\r\nOBJECT\tUSERINFO\r\nIDENT\tComponenti speciali a richiesta\r\nSHORTNAME\tDAB\r\nDATA\tComponenti speciali a richiesta - normalizzate monoblocco\t\t\r\n$\r\n\r\nOBJECT\tUSERINFO\r\nIDENT\tLibretto\r\nSHORTNAME\tDAB\r\nFILENAME\tCod_001354001.pdf\r\n$\r\n\r\nOBJECT\tUSERINFO\r\nIDENT\tCatalogo tecnico\r\nSHORTNAME\tDAB\r\nFILENAME\tNKM-G NKP-G_09.pdf\r\nDATA\tComponenti speciali a richiesta - normalizzate monoblocco\t\t\r\nLIMITIND\t0\t0\r\nLIMIT\tFREQ\t0\t[M]\t0\t11\t0\t\t50\r\n$\r\n\r\nOBJECT\tUSERINFO\r\nIDENT\tDichiarazione di conformita\r\nSHORTNAME\tDAB\r\nFILENAME\tCod_60164947.pdf\r\n$\r\n$\r","-",11,"2014-12-09 16:17:16.264","-"]
["TPumpObj","DAB","NKM-G NKP-G","-","-","NKP-G 65-125","ALL","\r\nOBJECT\tPUMP\r\nIDENT\tNKP-G 65-125\r\nNEWID\t{NAME[Kg];;;0}/{CHARSFDPN[Kl];;;0}/{Matcd[Ws];;;0}/{MATCODE[WD];;;0}/{Power[M];;kW;0;;;;;;,}/{POLES[M];;;0}\r\nSHORTNAME\tDAB\r\nDATA\tNKM-G Completo\tNKM-G breve\tKDN suggerimento\r\nLIMITIND\t0\t0\r\nLIMIT\tTminfluido\t1\t[P]\t6\t32\t0\t\t-10\t-10\r\nLIMIT\tTmaxfluido\t1\t[P]\t6\t32\t0\t\t140\t140\r\nLIMIT\tTmaxambiente\t1\t[P]\t6\t32\t0\t\t40\t40\r\nPAGENO\t4\r\nSERIES\tNKM-G NKP-G\r\nDATASHEET\tDAB - scheda tecnica pompe centrifughe norm. Tenute Speciali no brand mot\tDAB - hydraulic\tDAB - dimension  -\t\t\r\nPERFORMANCECHART\t\tNKP-G 65-125\r\nTYPE\t3\tAll\t\r\nSAFETYMARGIN\t5\t1\t0\t1\r\nPHASE\t3\r\nRESISTANCE\t0\r\nMATERIALKEY\tNKM-G\t0\r\nGRIDCOLUMNS\tARTNR[P]\r\nGRIDCOLUMNS\tNAME[DNs]\r\nGRIDCOLUMNS\tNAME[DNd]\r\nGRIDCOLUMNS\tPOLES[M]\r\nGRIDCOLUMNS\tPOWER[M]\r\nGRIDCOLUMNS\tSPEED[M]\r\nMEASUREMENT\tA\t100\r\nMEASUREMENT\tB\t65\r\nMEASUREMENT\tDNA\t80\r\nMEASUREMENT\tDNM\t65\r\nMEASUREMENT\tE\t-\r\nMEASUREMENT\tF\t390\r\nMEASUREMENT\tG\t300\r\nMEASUREMENT\tH1\t160\r\nMEASUREMENT\tH2\t180\r\nMEASUREMENT\tL\t313\r\nMEASUREMENT\tM1\t125\r\nMEASUREMENT\tM2\t95\r\nMEASUREMENT\tN1\t280\r\nMEASUREMENT\tN2\t212\r\nMEASUREMENT\tS1\tM12\r\nMEASUREMENT\tW\t-\r\nMEASUREMENT\tX\t100\r\nOPTION\t0\r\nORIFICELIMIT\t0,1\t0,9\t0\r\n\r\nOBJECT\tINSTALLATION\r\nIDENT\tPompa monoblocco\r\nSHORTNAME\tDAB\r\nFILENAME\tNKM_G_B5\r\nWEIGHT\t104\r\nLIMITIND\t0\t0\r\nLIMIT\tMEDT\t1\t[AW]\t6\t11\t1\t\t-10\t140\r\nWEIGHTFORMULA\t$Wg := if POWER[M] = 4 then 104\r\nWEIGHTFORMULA\t$Wg := if POWER[M] = 5,5 then 113\r\nWEIGHTFORMULA\t$Wg := if POWER[M] = 7,5 then 118\r\nWEIGHTFORMULA\t\r\nACCSALLOC\tNKM-G NKP-G\r\nFIELDS\t\t0\t0\r\nHIDECOMP\t[AV]\r\nHIDECOMP\t[DN]\r\nHIDECOMP\t[DNd]\r\nHIDECOMP\t[DNs]\r\nHIDECOMP\t[M]\r\nHIDECOMP\t[WD]\r\nHIDECOMP\t[Ws]\r\nSEAL\tDAB\tTenuta meccanica\tBAQE\t\t\t\r\nSEAL\tDAB\tTenuta meccanica\tBQQE\t\t\t\r\nSEAL\tDAB\tTenuta meccanica\tBQQV\t\t\t\r\nSEAL\tDAB\tTenuta meccanica\tBAQV\t\t\t\r\nFORMULA\tA := A[P]\r\nFORMULA\tB := B[P]\r\nFORMULA\tE := E[P]\r\nFORMULA\tF := if POWER[M] = 4 then 301\r\nFORMULA\tF := if POWER[M] = 5,5 then 390\r\nFORMULA\tF := if POWER[M] = 7,5 then 390\r\nFORMULA\tG := if POWER[M] = 4 then 286\r\nFORMULA\tG := if POWER[M] = 5,5 then 300\r\nFORMULA\tG := if POWER[M] = 7,5 then 300\r\nFORMULA\tH1 := H1[P]\r\nFORMULA\tH2 := H2[P]\r\nFORMULA\tL := if POWER[M] = 4 then 274\r\nFORMULA\tL := if POWER[M] = 5,5 then 313\r\nFORMULA\tL := if POWER[M] = 7,5 then 313\r\nFORMULA\tM1 := M1[P]\r\nFORMULA\tM2 := M2[P]\r\nFORMULA\tN1 := N1[P]\r\nFORMULA\tN2 := N2[P]\r\nFORMULA\tS1 := S1[P]\r\nFORMULA\tW := W[P]\r\nFORMULA\tX := X[P]\r\nFORMULA\t\r\nFORMULA\tDNA := DNA[P]\r\nFORMULA\tDNM := DNM[P]\r\nPRICEALLOC\tP\t0\t{RESULTID[P];;;0} {FREQ[M];;Hz;1}\t\t\t\t\t\t\t\t\t\r\nZUSEIAVTOGUI\t1\r\n$\r\n\r\nOBJECT\tINSTALLATION\r\nIDENT\tSolo parte idraulica\r\nSHORTNAME\tDAB\r\nFILENAME\tNKM-G_NKP-G idraulica\r\nLIMITIND\t0\t0\r\nLIMIT\tMEDT\t1\t[AW]\t6\t11\t1\t\t-10\t140\r\nWEIGHTFORMULA\t$Wg := #45#\r\nACCSALLOC\tNKM-G NKP-G\r\nFIELDS\t\t0\t0\r\nHIDECOMP\t[AV]\r\nHIDECOMP\t[DN]\r\nHIDECOMP\t[DNd]\r\nHIDECOMP\t[DNs]\r\nHIDECOMP\t[M]\r\nHIDECOMP\t[Ws]\r\nSEAL\tDAB\tTenuta meccanica\tBAQE\t\t\t\r\nSEAL\tDAB\tTenuta meccanica\tBQQE\t\t\t\r\nSEAL\tDAB\tTenuta meccanica\tBQQV\t\t\t\r\nSEAL\tDAB\tTenuta meccanica\tBAQV\t\t\t\r\nFORMULA\tA := A[P]\r\nFORMULA\tB := B[P]\r\nFORMULA\tDNA := DNA[P]\r\nFORMULA\tDNM := DNM[P]\r\nFORMULA\tG := G[P]\r\nFORMULA\tH1 := H1[P]\r\nFORMULA\tH2 := H2[P]\r\nFORMULA\tL := L[P]\r\nFORMULA\tM1 := M1[P]\r\nFORMULA\tM2 := M2[P]\r\nFORMULA\tN1 := N1[P]\r\nFORMULA\tN2 := N2[P]\r\nFORMULA\tS1 := S1[P]\r\nFORMULA\t\r\nPRICEALLOC\tP\t0\t{NAME[Kg];;;0}/{CHARSFDPN[Kl];;;0}/{Matcd[Ws];;;0}/{MATCODE[WD];;;0}//\t\t\t\t\t\t\t\t\t\r\nDONTSELECT\t[M]\r\nZUSEIAVTOGUI\t1\r\n$\r\n\r\nOBJECT\tFLANGES\r\nIDENT\tDN 80 / DN 65\r\nSHORTNAME\tDAB\r\nSUCTIONSIDE\tDN 80\r\nDISCHARGESIDE\tDN 65\r\nVALUES\tDIN 2533\tPN 16\r\nVALUESSUCT\tDIN 2533\tPN 16\r\n$\r\n\r\nOBJECT\tCHECK\r\n$\r\n\r\nOBJECT\tUSERINFO\r\nIDENT\tFoto\r\nSHORTNAME\tDAB\r\nFILENAME\tnkm-g nkp-g_foto\r\n$\r\n\r\nOBJECT\tUSERINFO\r\nIDENT\tComponenti speciali a richiesta\r\nSHORTNAME\tDAB\r\nDATA\tComponenti speciali a richiesta - normalizzate monoblocco\t\t\r\n$\r\n\r\nOBJECT\tUSERINFO\r\nIDENT\tLibretto\r\nSHORTNAME\tDAB\r\nFILENAME\tCod_001354001.pdf\r\n$\r\n\r\nOBJECT\tUSERINFO\r\nIDENT\tCatalogo tecnico\r\nSHORTNAME\tDAB\r\nFILENAME\tNKM-G NKP-G_09.pdf\r\nDATA\tComponenti speciali a richiesta - normalizzate monoblocco\t\t\r\nLIMITIND\t0\t0\r\nLIMIT\tFREQ\t0\t[M]\t0\t11\t0\t\t50\r\n$\r\n\r\nOBJECT\tUSERINFO\r\nIDENT\tDichiarazione di conformita\r\nSHORTNAME\tDAB\r\nFILENAME\tCod_60164947.pdf\r\n$\r\n$\r","-",11,"2014-12-09 16:18:37.367","-"]
["TPumpObj","DAB","NKM-G NKP-G","-","-","NKP-G 65-160","ALL","\r\nOBJECT\tPUMP\r\nIDENT\tNKP-G 65-160\r\nNEWID\t{NAME[Kg];;;0}/{D2IMP[Kl];;mm;0}/{Matcd[Ws];;;0}/{MATCODE[WD];;;0}/{Power[M];;kW;0;;;;;;,}/{POLES[M];;;0}\r\nSHORTNAME\tDAB\r\nDATA\tNKM-G Completo\tNKM-G breve\tKDN suggerimento\r\nLIMITIND\t0\t0\r\nLIMIT\tTminfluido\t1\t[P]\t6\t32\t0\t\t-10\t-10\r\nLIMIT\tTmaxfluido\t1\t[P]\t6\t32\t0\t\t140\t140\r\nLIMIT\tTmaxambiente\t1\t[P]\t6\t32\t0\t\t40\t40\r\nPAGENO\t4\r\nSERIES\tNKM-G NKP-G\r\nDATASHEET\tDAB - scheda tecnica pompe centrifughe norm. Tenute Speciali no brand mot\tDAB - hydraulic\tDAB - dimension  -\t\t\r\nPERFORMANCECHART\t\tNKP-G 65-160\r\nTYPE\t3\tAll\t\r\nSAFETYMARGIN\t5\t1\t0\t1\r\nPHASE\t3\r\nRESISTANCE\t0\r\nMATERIALKEY\tNKM-G\t0\r\nGRIDCOLUMNS\tARTNR[P]\r\nGRIDCOLUMNS\tNAME[DNs]\r\nGRIDCOLUMNS\tNAME[DNd]\r\nGRIDCOLUMNS\tPOLES[M]\r\nGRIDCOLUMNS\tPOWER[M]\r\nGRIDCOLUMNS\tSPEED[M]\r\nMEASUREMENT\t*\t-\r\nMEASUREMENT\tA\t100\r\nMEASUREMENT\tB\t67\r\nMEASUREMENT\tDNA\t80\r\nMEASUREMENT\tDNM\t65\r\nMEASUREMENT\tE\t210\r\nMEASUREMENT\tF\t460\r\nMEASUREMENT\tG\t350\r\nMEASUREMENT\tH1\t160\r\nMEASUREMENT\tH2\t200\r\nMEASUREMENT\tH4\t20\r\nMEASUREMENT\tL\t343\r\nMEASUREMENT\tM1\t-\r\nMEASUREMENT\tM2\t-\r\nMEASUREMENT\tN1\t314\r\nMEASUREMENT\tN2\t254\r\nMEASUREMENT\tS1\tM12\r\nMEASUREMENT\tW\t351\r\nMEASUREMENT\tX\t100\r\nOPTION\t0\r\nORIFICELIMIT\t0,1\t0,9\t0\r\n\r\nOBJECT\tINSTALLATION\r\nIDENT\tPompa monoblocco B3/B5\r\nSHORTNAME\tDAB\r\nFILENAME\tB5_H4\r\nWEIGHT\t189\r\nLIMITIND\t0\t0\r\nLIMIT\tMEDT\t1\t[AW]\t6\t11\t1\t\t-10\t140\r\nWEIGHTFORMULA\t$Wg := if POWER[M] = 11 then 189\r\nWEIGHTFORMULA\t$Wg := if POWER[M] = 15 then 199\r\nWEIGHTFORMULA\t\r\nACCSALLOC\tNKM-G NKP-G\r\nFIELDS\t\t0\t0\r\nHIDECOMP\t[AV]\r\nHIDECOMP\t[DN]\r\nHIDECOMP\t[DNd]\r\nHIDECOMP\t[DNs]\r\nHIDECOMP\t[M]\r\nHIDECOMP\t[WD]\r\nHIDECOMP\t[Ws]\r\nSEAL\tDAB\tTenuta meccanica\tBAQE\t\t\t\r\nSEAL\tDAB\tTenuta meccanica\tBQQE\t\t\t\r\nSEAL\tDAB\tTenuta meccanica\tBQQV\t\t\t\r\nSEAL\tDAB\tTenuta meccanica\tBAQV\t\t\t\r\nFORMULA\tA := A[P]\r\nFORMULA\tB := B[P]\r\nFORMULA\tE := E[P]\r\nFORMULA\tF := F[P]\r\nFORMULA\tG := G[P]\r\nFORMULA\tH1 := H1[P]\r\nFORMULA\tH2 := H2[P]\r\nFORMULA\tL := L[P]\r\nFORMULA\tM1 := M1[P]\r\nFORMULA\tM2 := M2[P]\r\nFORMULA\tN1 := N[P]\r\nFORMULA\tN2 := N[P]\r\nFORMULA\tS1 := S1[P]\r\nFORMULA\tW := W[P]\r\nFORMULA\tX := X[P]\r\nFORMULA\tDNA := DNA[P]\r\nFORMULA\tDNM := DNM[P]\r\nFORMULA\tH4 := H4[P]\r\nPRICEALLOC\tP\t0\t{RESULTID[P];;;0} {FREQ[M];;Hz;1}\t\t\t\t\t\t\t\t\t\r\nZUSEIAVTOGUI\t1\r\n$\r\n\r\nOBJECT\tINSTALLATION\r\nIDENT\tSolo parte idraulica\r\nSHORTNAME\tDAB\r\nFILENAME\tNKM-G_NKP-G idraulica\r\nLIMITIND\t0\t0\r\nLIMIT\tMEDT\t1\t[AW]\t6\t11\t1\t\t-10\t140\r\nWEIGHTFORMULA\t$Wg := #45#\r\nACCSALLOC\tNKM-G NKP-G\r\nFIELDS\t\t0\t0\r\nHIDECOMP\t[AV]\r\nHIDECOMP\t[DN]\r\nHIDECOMP\t[DNd]\r\nHIDECOMP\t[DNs]\r\nHIDECOMP\t[M]\r\nHIDECOMP\t[Ws]\r\nSEAL\tDAB\tTenuta meccanica\tBAQE\t\t\t\r\nSEAL\tDAB\tTenuta meccanica\tBQQE\t\t\t\r\nSEAL\tDAB\tTenuta meccanica\tBQQV\t\t\t\r\nSEAL\tDAB\tTenuta meccanica\tBAQV\t\t\t\r\nFORMULA\tA := A[P]\r\nFORMULA\tB := B[P]\r\nFORMULA\tDNA := DNA[P]\r\nFORMULA\tDNM := DNM[P]\r\nFORMULA\tG := G[P]\r\nFORMULA\tH1 := H1[P]\r\nFORMULA\tH2 := H2[P]\r\nFORMULA\tL := L[P]\r\nFORMULA\tM1 := M1[P]\r\nFORMULA\tM2 := M2[P]\r\nFORMULA\tN1 := N1[P]\r\nFORMULA\tN2 := N2[P]\r\nFORMULA\tS1 := S1[P]\r\nFORMULA\t\r\nPRICEALLOC\tP\t0\t{NAME[Kg];;;0}/{D2IMP[Kl];;mm;0}/{Matcd[Ws];;;0}/{MATCODE[WD];;;0}//\t\t\t\t\t\t\t\t\t\r\nDONTSELECT\t[M]\r\nZUSEIAVTOGUI\t1\r\n$\r\n\r\nOBJECT\tFLANGES\r\nIDENT\tDN 80 / DN 65\r\nSHORTNAME\tDAB\r\nSUCTIONSIDE\tDN 80\r\nDISCHARGESIDE\tDN 65\r\nVALUES\tDIN 2533\tPN 16\r\nVALUESSUCT\tDIN 2533\tPN 16\r\n$\r\n\r\nOBJECT\tCHECK\r\n$\r\n\r\nOBJECT\tUSERINFO\r\nIDENT\tFoto\r\nSHORTNAME\tDAB\r\nFILENAME\tnkm-g nkp-g_foto\r\n$\r\n\r\nOBJECT\tUSERINFO\r\nIDENT\tComponenti speciali a richiesta\r\nSHORTNAME\tDAB\r\nDATA\tComponenti speciali a richiesta - normalizzate monoblocco\t\t\r\n$\r\n\r\nOBJECT\tUSERINFO\r\nIDENT\tLibretto\r\nSHORTNAME\tDAB\r\nFILENAME\tCod_001354001.pdf\r\n$\r\n\r\nOBJECT\tUSERINFO\r\nIDENT\tCatalogo tecnico\r\nSHORTNAME\tDAB\r\nFILENAME\tNKM-G NKP-G_09.pdf\r\nDATA\tComponenti speciali a richiesta - normalizzate monoblocco\t\t\r\nLIMITIND\t0\t0\r\nLIMIT\tFREQ\t0\t[M]\t0\t11\t0\t\t50\r\n$\r\n\r\nOBJECT\tUSERINFO\r\nIDENT\tDichiarazione di conformita\r\nSHORTNAME\tDAB\r\nFILENAME\tCod_60164947.pdf\r\n$\r\n$\r","-",11,"2014-12-09 16:17:16.264","-"]
["TPumpObj","DAB","NKM-G NKP-G","-","-","NKP-G 65-200","ALL","\r\nOBJECT\tPUMP\r\nIDENT\tNKP-G 65-200\r\nNEWID\t{NAME[Kg];;;0}/{D2IMP[Kl];;mm;0}/{Matcd[Ws];;;0}/{MATCODE[WD];;;0}/{Power[M];;kW;0;;;;;;,}/{POLES[M];;;0}\r\nSHORTNAME\tDAB\r\nDATA\tNKM-G Completo\tNKM-G breve\tKDN suggerimento\r\nLIMITIND\t0\t0\r\nLIMIT\tTminfluido\t1\t[P]\t6\t32\t0\t\t-10\t-10\r\nLIMIT\tTmaxfluido\t1\t[P]\t6\t32\t0\t\t140\t140\r\nLIMIT\tTmaxambiente\t1\t[P]\t6\t32\t0\t\t40\t40\r\nPAGENO\t4\r\nSERIES\tNKM-G NKP-G\r\nDATASHEET\tDAB - scheda tecnica pompe centrifughe norm. Tenute Speciali no brand mot\tDAB - hydraulic\tDAB - dimension  -\t\t\r\nPERFORMANCECHART\t\tNKP-G 65-200\r\nTYPE\t3\tAll\t\r\nSAFETYMARGIN\t5\t1\t0\t1\r\nPHASE\t3\r\nRESISTANCE\t0\r\nMATERIALKEY\tNKM-G\t0\r\nGRIDCOLUMNS\tARTNR[P]\r\nGRIDCOLUMNS\tNAME[DNs]\r\nGRIDCOLUMNS\tNAME[DNd]\r\nGRIDCOLUMNS\tPOLES[M]\r\nGRIDCOLUMNS\tPOWER[M]\r\nGRIDCOLUMNS\tSPEED[M]\r\nMEASUREMENT\t*\t-\r\nMEASUREMENT\tA\t100\r\nMEASUREMENT\tB\t67\r\nMEASUREMENT\tDNA\t80\r\nMEASUREMENT\tDNM\t65\r\nMEASUREMENT\tE\t254\r\nMEASUREMENT\tF\t540\r\nMEASUREMENT\tG\t350\r\nMEASUREMENT\tH1\t160\r\nMEASUREMENT\tH2\t225\r\nMEASUREMENT\tH4\t20\r\nMEASUREMENT\tL\t343\r\nMEASUREMENT\tM1\t-\r\nMEASUREMENT\tM2\t-\r\nMEASUREMENT\tN1\t314\r\nMEASUREMENT\tN2\t254\r\nMEASUREMENT\tS1\tM12\r\nMEASUREMENT\tW\t351\r\nMEASUREMENT\tX\t100\r\nOPTION\t0\r\nORIFICELIMIT\t0,1\t0,9\t0\r\n\r\nOBJECT\tINSTALLATION\r\nIDENT\tPompa monoblocco B3/B5\r\nSHORTNAME\tDAB\r\nFILENAME\tB5_H4\r\nWEIGHT\t225\r\nLIMITIND\t0\t0\r\nLIMIT\tMEDT\t1\t[AW]\t6\t11\t1\t\t-10\t140\r\nWEIGHTFORMULA\t$Wg := if POWER[M] = 18,5 then 225\r\nWEIGHTFORMULA\t$Wg := if POWER[M] = 22 then 263\r\nWEIGHTFORMULA\t$Wg := if POWER[M] = 30 then 354\r\nWEIGHTFORMULA\t\r\nACCSALLOC\tNKM-G NKP-G\r\nFIELDS\t\t0\t0\r\nHIDECOMP\t[AV]\r\nHIDECOMP\t[DN]\r\nHIDECOMP\t[DNd]\r\nHIDECOMP\t[DNs]\r\nHIDECOMP\t[M]\r\nHIDECOMP\t[WD]\r\nHIDECOMP\t[Ws]\r\nSEAL\tDAB\tTenuta meccanica\tBAQE\t\t\t\r\nSEAL\tDAB\tTenuta meccanica\tBQQE\t\t\t\r\nSEAL\tDAB\tTenuta meccanica\tBQQV\t\t\t\r\nSEAL\tDAB\tTenuta meccanica\tBAQV\t\t\t\r\nFORMULA\tA := A[P]\r\nFORMULA\tB := if POWER[M] = 18,5 then 67\r\nFORMULA\tB := if POWER[M] = 22 then 74\r\nFORMULA\tB := if POWER[M] = 30 then 85\r\nFORMULA\tE := if POWER[M] = 30 then 305\r\nFORMULA\tE := if POWER[M] = 18,5 then 254\r\nFORMULA\tE := if POWER[M] = 22 then 241\r\nFORMULA\tF := if POWER[M] = 18,5 then 540\r\nFORMULA\tF := if POWER[M] = 22 then 580\r\nFORMULA\tF := if POWER[M] = 30 then 640\r\nFORMULA\tG := if POWER[M] = 18,5 then 350\r\nFORMULA\tG := if POWER[M] = 22 then 350\r\nFORMULA\tG := if POWER[M] = 30 then 400\r\nFORMULA\tH1 := if POWER[M] = 18,5 then 160\r\nFORMULA\tH1 := if POWER[M] = 22 then 180\r\nFORMULA\tH1 := if POWER[M] = 30 then 200\r\nFORMULA\tH2 := H2[P]\r\nFORMULA\tL := L[P]\r\nFORMULA\tM1 := M1[P]\r\nFORMULA\tM2 := M2[P]\r\nFORMULA\tN1 := if POWER[M] = 18,5 then 314\r\nFORMULA\tN1 := if POWER[M] = 22 then 345\r\nFORMULA\tN1 := if POWER[M] = 30 then 388\r\nFORMULA\tN2 := if POWER[M] = 18,5 then 254\r\nFORMULA\tN2 := if POWER[M] = 22 then 279\r\nFORMULA\tN2 := if POWER[M] = 30 then 318\r\nFORMULA\tS1 := if POWER[M] = 18,5 then M12\r\nFORMULA\tS1 := if POWER[M] = 22 then M12\r\nFORMULA\tS1 := if POWER[M] = 30 then M14\r\nFORMULA\tW := if POWER[M] = 18,5 then 351\r\nFORMULA\tW := if POWER[M] = 22 then 364\r\nFORMULA\tW := if POWER[M] = 30 then 376\r\nFORMULA\tX := X[P]\r\nFORMULA\tDNA := DNA[P]\r\nFORMULA\tDNM := DNM[P]\r\nFORMULA\tH4 := if POWER[M] = 18,5 then 20\r\nFORMULA\tH4 := if POWER[M] = 22 then #45#\r\nFORMULA\tH4 := if POWER[M] = 30 then #45#\r\nPRICEALLOC\tP\t0\t{RESULTID[P];;;0} {FREQ[M];;Hz;1}\t\t\t\t\t\t\t\t\t\r\nZUSEIAVTOGUI\t1\r\n$\r\n\r\nOBJECT\tINSTALLATION\r\nIDENT\tSolo parte idraulica\r\nSHORTNAME\tDAB\r\nFILENAME\tNKM-G_NKP-G idraulica\r\nLIMITIND\t0\t0\r\nLIMIT\tMEDT\t1\t[AW]\t6\t11\t1\t\t-10\t140\r\nWEIGHTFORMULA\t$Wg := #45#\r\nACCSALLOC\tNKM-G NKP-G\r\nFIELDS\t\t0\t0\r\nHIDECOMP\t[AV]\r\nHIDECOMP\t[DN]\r\nHIDECOMP\t[DNd]\r\nHIDECOMP\t[DNs]\r\nHIDECOMP\t[M]\r\nHIDECOMP\t[Ws]\r\nSEAL\tDAB\tTenuta meccanica\tBAQE\t\t\t\r\nSEAL\tDAB\tTenuta meccanica\tBQQE\t\t\t\r\nSEAL\tDAB\tTenuta meccanica\tBQQV\t\t\t\r\nSEAL\tDAB\tTenuta meccanica\tBAQV\t\t\t\r\nFORMULA\tA := A[P]\r\nFORMULA\tB := if D2IMP[Kl] = 160 then 67\r\nFORMULA\tB := if D2IMP[Kl] = 167 then 80\r\nFORMULA\tB := if D2IMP[Kl] > 167 then 90\r\nFORMULA\tDNA := DNA[P]\r\nFORMULA\tDNM := DNM[P]\r\nFORMULA\t\r\nFORMULA\tG := if D2IMP[Kl] = 160 then 350\r\nFORMULA\tG := if D2IMP[Kl] = 167 then 350\r\nFORMULA\tG := if D2IMP[Kl] > 167 then 400\r\nFORMULA\tH1 := if D2IMP[Kl] = 160 then 160\r\nFORMULA\tH1 := if D2IMP[Kl] = 167 then 180\r\nFORMULA\tH1 := if D2IMP[Kl] > 167 then 200\r\nFORMULA\tH2 := H2[P]\r\nFORMULA\tL := L[P]\r\nFORMULA\tM1 := M1[P]\r\nFORMULA\tM2 := M2[P]\r\nFORMULA\tN1 := if D2IMP[Kl] = 160 then 315\r\nFORMULA\tN1 := if D2IMP[Kl] = 167 then 350\r\nFORMULA\tN1 := if D2IMP[Kl] > 167 then 395\r\nFORMULA\tN2 := if D2IMP[Kl] = 160 then 254\r\nFORMULA\tN2 := if D2IMP[Kl] = 167 then 279\r\nFORMULA\tN2 := if D2IMP[Kl] > 167 then 318\r\nFORMULA\tS1 := if D2IMP[Kl] = 160 then M14\r\nFORMULA\tS1 := if D2IMP[Kl] = 167 then M14\r\nFORMULA\tS1 := if D2IMP[Kl] > 167 then M18\r\nPRICEALLOC\tP\t0\t{NAME[Kg];;;0}/{D2IMP[Kl];;mm;0}/{Matcd[Ws];;;0}/{MATCODE[WD];;;0}//\t\t\t\t\t\t\t\t\t\r\nDONTSELECT\t[M]\r\nZUSEIAVTOGUI\t1\r\n$\r\n\r\nOBJECT\tFLANGES\r\nIDENT\tDN 80 / DN 65\r\nSHORTNAME\tDAB\r\nSUCTIONSIDE\tDN 80\r\nDISCHARGESIDE\tDN 65\r\nVALUES\tDIN 2533\tPN 16\r\nVALUESSUCT\tDIN 2533\tPN 16\r\n$\r\n\r\nOBJECT\tCHECK\r\n$\r\n\r\nOBJECT\tUSERINFO\r\nIDENT\tFoto\r\nSHORTNAME\tDAB\r\nFILENAME\tnkm-g nkp-g_foto\r\n$\r\n\r\nOBJECT\tUSERINFO\r\nIDENT\tComponenti speciali a richiesta\r\nSHORTNAME\tDAB\r\nDATA\tComponenti speciali a richiesta - normalizzate monoblocco\t\t\r\n$\r\n\r\nOBJECT\tUSERINFO\r\nIDENT\tLibretto\r\nSHORTNAME\tDAB\r\nFILENAME\tCod_001354001.pdf\r\n$\r\n\r\nOBJECT\tUSERINFO\r\nIDENT\tCatalogo tecnico\r\nSHORTNAME\tDAB\r\nFILENAME\tNKM-G NKP-G_09.pdf\r\nDATA\tComponenti speciali a richiesta - normalizzate monoblocco\t\t\r\nLIMITIND\t0\t0\r\nLIMIT\tFREQ\t0\t[M]\t0\t11\t0\t\t50\r\n$\r\n\r\nOBJECT\tUSERINFO\r\nIDENT\tDichiarazione di conformita\r\nSHORTNAME\tDAB\r\nFILENAME\tCod_60164947.pdf\r\n$\r\n$\r","-",11,"2014-12-09 16:17:16.264","-"]
["TPumpObj","DAB","NKM-G NKP-G","-","-","NKP-G 80-160","ALL","\r\nOBJECT\tPUMP\r\nIDENT\tNKP-G 80-160\r\nNEWID\t{NAME[Kg];;;0}/{CHARSFDPN[Kl];;;0}/{Matcd[Ws];;;0}/{MATCODE[WD];;;0}/{Power[M];;kW;0;;;;;;,}/{POLES[M];;;0}\r\nSHORTNAME\tDAB\r\nDATA\tNKM-G Completo\tNKM-G breve\tKDN suggerimento\r\nLIMITIND\t0\t0\r\nLIMIT\tTminfluido\t1\t[P]\t6\t32\t0\t\t-10\t-10\r\nLIMIT\tTmaxfluido\t1\t[P]\t6\t32\t0\t\t140\t140\r\nLIMIT\tTmaxambiente\t1\t[P]\t6\t32\t0\t\t40\t40\r\nPAGENO\t4\r\nSERIES\tNKM-G NKP-G\r\nDATASHEET\tDAB - scheda tecnica pompe centrifughe norm. Tenute Speciali no brand mot\tDAB - hydraulic\tDAB - dimension  -\t\t\r\nPERFORMANCECHART\t\tNKP-G 80-160\r\nTYPE\t3\tAll\t\r\nSAFETYMARGIN\t5\t1\t0\t1\r\nPHASE\t3\r\nRESISTANCE\t0\r\nMATERIALKEY\tNKM-G\t0\r\nGRIDCOLUMNS\tARTNR[P]\r\nGRIDCOLUMNS\tNAME[DNs]\r\nGRIDCOLUMNS\tNAME[DNd]\r\nGRIDCOLUMNS\tPOLES[M]\r\nGRIDCOLUMNS\tPOWER[M]\r\nGRIDCOLUMNS\tSPEED[M]\r\nMEASUREMENT\t*\t-\r\nMEASUREMENT\tA\t125\r\nMEASUREMENT\tB\t67\r\nMEASUREMENT\tDNA\t100\r\nMEASUREMENT\tDNM\t80\r\nMEASUREMENT\tE\t210\r\nMEASUREMENT\tF\t460\r\nMEASUREMENT\tG\t350\r\nMEASUREMENT\tH1\t160\r\nMEASUREMENT\tH2\t225\r\nMEASUREMENT\tH4\t20\r\nMEASUREMENT\tL\t368\r\nMEASUREMENT\tM1\t-\r\nMEASUREMENT\tM2\t-\r\nMEASUREMENT\tN1\t314\r\nMEASUREMENT\tN2\t254\r\nMEASUREMENT\tS1\tM12\r\nMEASUREMENT\tW\t351\r\nMEASUREMENT\tX\t140\r\nOPTION\t0\r\nORIFICELIMIT\t0,1\t0,9\t0\r\n\r\nOBJECT\tINSTALLATION\r\nIDENT\tPompa monoblocco B3/B5\r\nSHORTNAME\tDAB\r\nFILENAME\tB5_H4\r\nWEIGHT\t136,8\r\nLIMITIND\t0\t0\r\nLIMIT\tMEDT\t1\t[AW]\t6\t11\t1\t\t-10\t140\r\nWEIGHTFORMULA\t$Wg := if POWER[M] = 11 then 202\r\nWEIGHTFORMULA\t$Wg := if POWER[M] = 15 then 208\r\nWEIGHTFORMULA\t$Wg := if POWER[M] = 18,5 then 225\r\nWEIGHTFORMULA\t$Wg := if POWER[M] = 22 then 261\r\nWEIGHTFORMULA\t\r\nACCSALLOC\tNKM-G NKP-G\r\nFIELDS\t\t0\t0\r\nHIDECOMP\t[AV]\r\nHIDECOMP\t[DN]\r\nHIDECOMP\t[DNd]\r\nHIDECOMP\t[DNs]\r\nHIDECOMP\t[M]\r\nHIDECOMP\t[WD]\r\nHIDECOMP\t[Ws]\r\nSEAL\tDAB\tTenuta meccanica\tBAQE\t\t\t\r\nSEAL\tDAB\tTenuta meccanica\tBQQE\t\t\t\r\nSEAL\tDAB\tTenuta meccanica\tBQQV\t\t\t\r\nSEAL\tDAB\tTenuta meccanica\tBAQV\t\t\t\r\nFORMULA\tA := A[P]\r\nFORMULA\tB := if POWER[M] = 11 then 67\r\nFORMULA\tB := if POWER[M] = 15 then 67\r\nFORMULA\tB := if POWER[M] = 18,5 then 67\r\nFORMULA\tB := if POWER[M] = 22 then 74\r\nFORMULA\tE := if POWER[M] = 15 then 210\r\nFORMULA\tE := if POWER[M] = 18,5 then 254\r\nFORMULA\tE := if POWER[M] = 22 then 241\r\nFORMULA\t\r\nFORMULA\tE := if POWER[M] = 11 then 210\r\nFORMULA\tF := if POWER[M] = 11 then 460\r\nFORMULA\tF := if POWER[M] = 15 then 460\r\nFORMULA\tF := if POWER[M] = 18,5 then 540\r\nFORMULA\tF := if POWER[M] = 22 then 580\r\nFORMULA\tG := G[P]\r\nFORMULA\tH1 :=  if POWER[M] = 22 then 180\r\nFORMULA\tH1 :=  if POWER[M] = 11 then 160\r\nFORMULA\tH1 :=  if POWER[M] = 15 then 160\r\nFORMULA\tH1 :=  if POWER[M] = 18,5 then 160\r\nFORMULA\tH2 := H2[P]\r\nFORMULA\tL := L[P]\r\nFORMULA\tM1 := M1[P]\r\nFORMULA\tM2 := M2[P]\r\nFORMULA\tN1 := if POWER[M] = 11 then 314\r\nFORMULA\tN1 := if POWER[M] = 15 then 314\r\nFORMULA\tN1 := if POWER[M] = 18,5 then 314\r\nFORMULA\tN1 := if POWER[M] = 22 then 345\r\nFORMULA\tN2 := if POWER[M] = 18,5 then 254\r\nFORMULA\tN2 := if POWER[M] = 11 then 254\r\nFORMULA\tN2 := if POWER[M] = 15 then 254\r\nFORMULA\tN2 := if POWER[M] = 22 then 279\r\nFORMULA\tS1 := S1[P]\r\nFORMULA\tW := if POWER[M] = 11 then 351\r\nFORMULA\tW := if POWER[M] = 15 then 351\r\nFORMULA\tW := if POWER[M] = 18,5 then 351\r\nFORMULA\tW := if POWER[M] = 22 then 364\r\nFORMULA\tX := X[P]\r\nFORMULA\tDNA := DNA[P]\r\nFORMULA\tDNM := DNM[P]\r\nFORMULA\tH4 := if POWER[M] = 11 then 20\r\nFORMULA\tH4 := if POWER[M] = 15 then 20\r\nFORMULA\tH4 := if POWER[M] = 18,5 then 20\r\nFORMULA\tH4 := if POWER[M] = 22 then #45#\r\nPRICEALLOC\tP\t0\t{RESULTID[P];;;0} {FREQ[M];;Hz;1}\t\t\t\t\t\t\t\t\t\r\nZUSEIAVTOGUI\t1\r\n$\r\n\r\nOBJECT\tINSTALLATION\r\nIDENT\tSolo parte idraulica\r\nSHORTNAME\tDAB\r\nFILENAME\tNKM-G_NKP-G idraulica\r\nLIMITIND\t0\t0\r\nLIMIT\tMEDT\t1\t[AW]\t6\t11\t1\t\t-10\t140\r\nWEIGHTFORMULA\t$Wg := #45#\r\nACCSALLOC\tNKM-G NKP-G\r\nFIELDS\t\t0\t0\r\nHIDECOMP\t[AV]\r\nHIDECOMP\t[DN]\r\nHIDECOMP\t[DNd]\r\nHIDECOMP\t[DNs]\r\nHIDECOMP\t[M]\r\nHIDECOMP\t[Ws]\r\nSEAL\tDAB\tTenuta meccanica\tBAQE\t\t\t\r\nSEAL\tDAB\tTenuta meccanica\tBQQE\t\t\t\r\nSEAL\tDAB\tTenuta meccanica\tBQQV\t\t\t\r\nSEAL\tDAB\tTenuta meccanica\tBAQV\t\t\t\r\nFORMULA\tA := A[P]\r\nFORMULA\tB := if CHARSFDPN[Kl] = 147#45#127 then 67\r\nFORMULA\tB := if CHARSFDPN[Kl] = 146 then 80\r\nFORMULA\tDNA := DNA[P]\r\nFORMULA\tDNM := DNM[P]\r\nFORMULA\t\r\nFORMULA\tG := G[P]\r\nFORMULA\tH1 := if CHARSFDPN[Kl] = 147#45#127 then 160\r\nFORMULA\tH1 := if CHARSFDPN[Kl] = 146 then 180\r\nFORMULA\tH2 := H2[P]\r\nFORMULA\tL := L[P]\r\nFORMULA\tM1 := M1[P]\r\nFORMULA\tM2 := M2[P]\r\nFORMULA\tN1 := if CHARSFDPN[Kl] = 147#45#127 then 315\r\nFORMULA\tN1 := if CHARSFDPN[Kl] = 146 then 350\r\nFORMULA\tN2 := if CHARSFDPN[Kl] = 147#45#127 then 254\r\nFORMULA\tN2 := if CHARSFDPN[Kl] = 146 then 279\r\nFORMULA\tS1 := S1[P]\r\nPRICEALLOC\tP\t0\t{NAME[Kg];;;0}/{CHARSFDPN[Kl];;;0}/{Matcd[Ws];;;0}/{MATCODE[WD];;;0}//\t\t\t\t\t\t\t\t\t\r\nDONTSELECT\t[M]\r\nZUSEIAVTOGUI\t1\r\n$\r\n\r\nOBJECT\tFLANGES\r\nIDENT\tDN 100 / DN 80\r\nSHORTNAME\tDAB\r\nSUCTIONSIDE\tDN 100\r\nDISCHARGESIDE\tDN 80\r\nVALUES\tDIN 2533\tPN 16\r\nVALUESSUCT\tDIN 2533\tPN 16\r\n$\r\n\r\nOBJECT\tCHECK\r\n$\r\n\r\nOBJECT\tUSERINFO\r\nIDENT\tFoto\r\nSHORTNAME\tDAB\r\nFILENAME\tnkm-g nkp-g_foto\r\n$\r\n\r\nOBJECT\tUSERINFO\r\nIDENT\tComponenti speciali a richiesta\r\nSHORTNAME\tDAB\r\nDATA\tComponenti speciali a richiesta - normalizzate monoblocco\t\t\r\n$\r\n\r\nOBJECT\tUSERINFO\r\nIDENT\tLibretto\r\nSHORTNAME\tDAB\r\nFILENAME\tCod_001354001.pdf\r\n$\r\n\r\nOBJECT\tUSERINFO\r\nIDENT\tCatalogo tecnico\r\nSHORTNAME\tDAB\r\nFILENAME\tNKM-G NKP-G_09.pdf\r\nDATA\tComponenti speciali a richiesta - normalizzate monoblocco\t\t\r\nLIMITIND\t0\t0\r\nLIMIT\tFREQ\t0\t[M]\t0\t11\t0\t\t50\r\n$\r\n\r\nOBJECT\tUSERINFO\r\nIDENT\tDichiarazione di conformita\r\nSHORTNAME\tDAB\r\nFILENAME\tCod_60164947.pdf\r\n$\r\n$\r","-",11,"2014-12-09 16:17:16.264","-"]
["TPumpObj","DAB","NKM-G NKP-G","-","-","NKP-G 80-200","ALL","\r\nOBJECT\tPUMP\r\nIDENT\tNKP-G 80-200\r\nNEWID\t{NAME[Kg];;;0}/{D2IMP[Kl];;mm;0}/{Matcd[Ws];;;0}/{MATCODE[WD];;;0}/{Power[M];;kW;0;;;;;;,}/{POLES[M];;;0}\r\nSHORTNAME\tDAB\r\nDATA\tNKM-G Completo\tNKM-G breve\tKDN suggerimento\r\nLIMITIND\t0\t0\r\nLIMIT\tTminfluido\t1\t[P]\t6\t32\t0\t\t-10\t-10\r\nLIMIT\tTmaxfluido\t1\t[P]\t6\t32\t0\t\t140\t140\r\nLIMIT\tTmaxambiente\t1\t[P]\t6\t32\t0\t\t40\t40\r\nPAGENO\t4\r\nSERIES\tNKM-G NKP-G\r\nDATASHEET\tDAB - scheda tecnica pompe centrifughe norm. Tenute Speciali no brand mot\tDAB - hydraulic\tDAB - dimension  -\t\t\r\nPERFORMANCECHART\t\tNKP-G 80-200\r\nTYPE\t3\tAll\t\r\nSAFETYMARGIN\t5\t1\t0\t1\r\nPHASE\t3\r\nRESISTANCE\t0\r\nMATERIALKEY\tNKM-G\t0\r\nGRIDCOLUMNS\tARTNR[P]\r\nGRIDCOLUMNS\tNAME[DNs]\r\nGRIDCOLUMNS\tNAME[DNd]\r\nGRIDCOLUMNS\tPOLES[M]\r\nGRIDCOLUMNS\tPOWER[M]\r\nGRIDCOLUMNS\tSPEED[M]\r\nMEASUREMENT\t**\t-\r\nMEASUREMENT\tA\t125\r\nMEASUREMENT\tB\t65\r\nMEASUREMENT\tDNA\t100\r\nMEASUREMENT\tDNM\t80\r\nMEASUREMENT\tE\t305\r\nMEASUREMENT\tF\t640\r\nMEASUREMENT\tG\t400\r\nMEASUREMENT\tH1\t180\r\nMEASUREMENT\tH2\t250\r\nMEASUREMENT\tH3\t20\r\nMEASUREMENT\tL\t398\r\nMEASUREMENT\tM1\t125\r\nMEASUREMENT\tM2\t95\r\nMEASUREMENT\tN1\t345\r\nMEASUREMENT\tN2\t280\r\nMEASUREMENT\tN3\t318\r\nMEASUREMENT\tS1\tM12\r\nMEASUREMENT\tS2\tM16\r\nMEASUREMENT\tW\t406\r\nMEASUREMENT\tX\t140\r\nOPTION\t0\r\nORIFICELIMIT\t0,1\t0,9\t0\r\n\r\nOBJECT\tINSTALLATION\r\nIDENT\tPompa monoblocco B3/B5\r\nSHORTNAME\tDAB\r\nFILENAME\tB3-B5_H3\r\nWEIGHT\t377\r\nLIMITIND\t0\t0\r\nLIMIT\tMEDT\t1\t[AW]\t6\t11\t1\t\t-10\t140\r\nWEIGHTFORMULA\t$Wg :=$Wg[P] + $Wg[AV]\r\nWEIGHTFORMULA\t\r\nWEIGHTFORMULA\t\r\nACCSALLOC\tNKM-G NKP-G\r\nFIELDS\t\t0\t0\r\nHIDECOMP\t[AV]\r\nHIDECOMP\t[DN]\r\nHIDECOMP\t[DNd]\r\nHIDECOMP\t[DNs]\r\nHIDECOMP\t[M]\r\nHIDECOMP\t[WD]\r\nHIDECOMP\t[Ws]\r\nSEAL\tDAB\tTenuta meccanica\tBAQE\t\t\t\r\nSEAL\tDAB\tTenuta meccanica\tBQQE\t\t\t\r\nSEAL\tDAB\tTenuta meccanica\tBQQV\t\t\t\r\nSEAL\tDAB\tTenuta meccanica\tBAQV\t\t\t\r\nFORMULA\tA := A[P]\r\nFORMULA\tB := B[P]\r\nFORMULA\tE := E[P]\r\nFORMULA\tF := F[P]\r\nFORMULA\tG := G[P]\r\nFORMULA\tH1 :=  H1[P]\r\nFORMULA\tH2 := H2[P]\r\nFORMULA\tL := L[P]\r\nFORMULA\tM1 := M1[P]\r\nFORMULA\tM2 := M2[P]\r\nFORMULA\tN1 := N1[P]\r\nFORMULA\tN2 := N2[P]\r\nFORMULA\tS1 := S1[P]\r\nFORMULA\tW := W[P]\r\nFORMULA\tX := X[P]\r\nFORMULA\tDNA := DNA[P]\r\nFORMULA\tDNM := DNM[P]\r\nFORMULA\tS2 := S2[P]\r\nFORMULA\tN3 := N3[P]\r\nFORMULA\tH3 := H3[P]\r\nPRICEALLOC\tP\t0\t{RESULTID[P];;;0} {FREQ[M];;Hz;1}\t\t\t\t\t\t\t\t\t\r\nZUSEIAVTOGUI\t1\r\n$\r\n\r\nOBJECT\tINSTALLATION\r\nIDENT\tSolo parte idraulica\r\nSHORTNAME\tDAB\r\nFILENAME\tNKM-G_NKP-G idraulica\r\nLIMITIND\t0\t0\r\nLIMIT\tMEDT\t1\t[AW]\t6\t11\t1\t\t-10\t140\r\nWEIGHTFORMULA\t$Wg := #45#\r\nACCSALLOC\tNKM-G NKP-G\r\nFIELDS\t\t0\t0\r\nHIDECOMP\t[AV]\r\nHIDECOMP\t[DN]\r\nHIDECOMP\t[DNd]\r\nHIDECOMP\t[DNs]\r\nHIDECOMP\t[M]\r\nHIDECOMP\t[Ws]\r\nSEAL\tDAB\tTenuta meccanica\tBAQE\t\t\t\r\nSEAL\tDAB\tTenuta meccanica\tBQQE\t\t\t\r\nSEAL\tDAB\tTenuta meccanica\tBQQV\t\t\t\r\nSEAL\tDAB\tTenuta meccanica\tBAQV\t\t\t\r\nFORMULA\tA := A[P]\r\nFORMULA\tB := B[P]\r\nFORMULA\tDNA := DNA[P]\r\nFORMULA\tDNM := DNM[P]\r\nFORMULA\tG := G[P]\r\nFORMULA\tH1 := H1[P]\r\nFORMULA\tH2 := H2[P]\r\nFORMULA\tL := L[P]\r\nFORMULA\tM1 := M1[P]\r\nFORMULA\tM2 := M2[P]\r\nFORMULA\tN1 := N1[P]\r\nFORMULA\tN2 := N2[P]\r\nFORMULA\tS1 := S1[P]\r\nPRICEALLOC\tP\t0\t{NAME[Kg];;;0}/{D2IMP[Kl];;mm;0}/{Matcd[Ws];;;0}/{MATCODE[WD];;;0}//\t\t\t\t\t\t\t\t\t\r\nDONTSELECT\t[M]\r\nZUSEIAVTOGUI\t1\r\n$\r\n\r\nOBJECT\tFLANGES\r\nIDENT\tDN 100 / DN 80\r\nSHORTNAME\tDAB\r\nSUCTIONSIDE\tDN 100\r\nDISCHARGESIDE\tDN 80\r\nVALUES\tDIN 2533\tPN 16\r\nVALUESSUCT\tDIN 2533\tPN 16\r\n$\r\n\r\nOBJECT\tCHECK\r\n$\r\n\r\nOBJECT\tUSERINFO\r\nIDENT\tFoto\r\nSHORTNAME\tDAB\r\nFILENAME\tnkm-g nkp-g_foto\r\n$\r\n\r\nOBJECT\tUSERINFO\r\nIDENT\tComponenti speciali a richiesta\r\nSHORTNAME\tDAB\r\nDATA\tComponenti speciali a richiesta - normalizzate monoblocco\t\t\r\n$\r\n\r\nOBJECT\tUSERINFO\r\nIDENT\tLibretto\r\nSHORTNAME\tDAB\r\nFILENAME\tCod_001354001.pdf\r\n$\r\n\r\nOBJECT\tUSERINFO\r\nIDENT\tCatalogo tecnico\r\nSHORTNAME\tDAB\r\nFILENAME\tNKM-G NKP-G_09.pdf\r\nDATA\tComponenti speciali a richiesta - normalizzate monoblocco\t\t\r\nLIMITIND\t0\t0\r\nLIMIT\tFREQ\t0\t[M]\t0\t11\t0\t\t50\r\n$\r\n\r\nOBJECT\tUSERINFO\r\nIDENT\tDichiarazione di conformita\r\nSHORTNAME\tDAB\r\nFILENAME\tCod_60164947.pdf\r\n$\r\n$\r","-",11,"2014-12-09 16:17:16.264","-"]
["TPumpObj","DAB","NKM-G NKP-G (BAQV) my15","-","-","NKM-G 100-200","ALL","\r\nOBJECT\tPUMP\r\nIDENT\tNKM-G 100-200\r\nNEWID\t{CHARSFDPN[Kl];;;0}/{D2IMP[Kl];;mm;0}/{Matcd[Ws];;;0}/{MATCODE[WD];;;0}/{Power[M];;kW;0;;;;;;,}/{POLES[M];;;0} {NEWID1[M];;;0}\r\nSHORTNAME\tDAB\r\nDATA\tNKM-G NKP-G my15piscina completo\tNKM-G NKP-G my15piscina breve\t\r\nLIMITIND\t0\t0\r\nLIMIT\tTminfluido\t1\t[P]\t6\t32\t0\t\t-10\t-10\r\nLIMIT\tTmaxfluido\t1\t[P]\t6\t32\t0\t\t140\t140\r\nLIMIT\tTmaxambiente\t1\t[P]\t6\t32\t0\t\t40\t40\r\nPAGENO\t4\r\nSERIES\tNKM-G NKP-G (BAQV) my15\r\nDATASHEET\tDAB - scheda tecnica pompe centrifughe norm. Tenute Speciali no brand mot MEI\tDAB - hydraulic\tDAB - dimension  -\t\t\r\nPERFORMANCECHART\tNKM-G 100-200 MY15piscina\t\r\nTYPE\t3\tAll\t\r\nSAFETYMARGIN\t5\t1\t0\t1\r\nPHASE\t3\r\nRESISTANCE\t0\r\nMATERIALKEY\tNKM-G_BASIC\t0\r\nMATERIALKEY\tNKM-G_TOP\t0\r\nGRIDCOLUMNS\tARTNR[P]\r\nGRIDCOLUMNS\tNAME[DNs]\r\nGRIDCOLUMNS\tNAME[DNd]\r\nGRIDCOLUMNS\tPOLES[M]\r\nGRIDCOLUMNS\tPOWER[M]\r\nGRIDCOLUMNS\tSPEED[M]\r\nMEASUREMENT\tA\t125\r\nMEASUREMENT\tB\t80\r\nMEASUREMENT\tDNA\t125\r\nMEASUREMENT\tDNM\t100\r\nMEASUREMENT\tE\t-\r\nMEASUREMENT\tF\t390\r\nMEASUREMENT\tG\t392\r\nMEASUREMENT\tH1\t200\r\nMEASUREMENT\tH2\t280\r\nMEASUREMENT\tL\t368\r\nMEASUREMENT\tM1\t160\r\nMEASUREMENT\tM2\t120\r\nMEASUREMENT\tN1\t360\r\nMEASUREMENT\tN2\t280\r\nMEASUREMENT\tS1\tM14\r\nMEASUREMENT\tW\t-\r\nMEASUREMENT\tX\t140\r\nOPTION\t1\r\nORIFICELIMIT\t0,1\t0,9\t0\r\n\r\nOBJECT\tINSTALLATION\r\nIDENT\tPompa monoblocco\r\nNEWID\tMY15piscina\r\nSHORTNAME\tDAB\r\nFILENAME\tNKM_G_B5\r\nWEIGHT\t160\r\nLIMITIND\t0\t0\r\nLIMIT\tMEDT\t1\t[AW]\t6\t11\t1\t\t-10\t140\r\nWEIGHTFORMULA\t$Wg := if POWER[M] = 5,5 then 160\r\nWEIGHTFORMULA\t$Wg := if ((POWER[M] = 7,5) and (NEWID1[M] = IE2)) then --\r\nWEIGHTFORMULA\t$Wg := if ((POWER[M] = 7,5) and (NEWID1[M] = IE3)) then 149\r\nWEIGHTFORMULA\t\r\nACCSALLOC\tNKM-G NKP-G\r\nFIELDS\t\t0\t0\r\nHIDECOMP\t[AV]\r\nHIDECOMP\t[DN]\r\nHIDECOMP\t[DNd]\r\nHIDECOMP\t[DNs]\r\nHIDECOMP\t[M]\r\nHIDECOMP\t[WD]\r\nHIDECOMP\t[Ws]\r\nSEAL\tDAB\tTenuta meccanica\tBAQV\t\t\t\r\nFORMULA\tA := A[P]\r\nFORMULA\tB := B[P]\r\nFORMULA\tDNA := DNA[P]\r\nFORMULA\tDNM := DNM[P]\r\nFORMULA\tF := if POWER[M] = 5,5 then 390\r\nFORMULA\tF := if ((POWER[M] = 7,5) and (NEWID1[M] = IE2)) then --\r\nFORMULA\tF := if ((POWER[M] = 7,5) and (NEWID1[M] = IE3)) then 437\r\nFORMULA\tG := G[P]\r\nFORMULA\tH1 := H1[P]\r\nFORMULA\tH2 := H2[P]\r\nFORMULA\tL := L[P]\r\nFORMULA\tM1 := M1[P]\r\nFORMULA\tM2 := M2[P]\r\nFORMULA\tN1 := N1[P]\r\nFORMULA\tN2 := N2[P]\r\nFORMULA\tS1 := S1[P]\r\nFORMULA\tX := X[P]\r\nPRICEALLOC\tP\t0\t{CHARSFDPN[Kl];;;0}/{D2IMP[Kl];;mm;0}/{Matcd[Ws];;;0}/{MATCODE[WD];;;0}/{Power[M];;kW;0;;;;;;,}/{POLES[M];;;0} {CHARSFDPN[AV];;;0} {FREQ[M];;Hz;1} {NEWID1[M];;;0}\t\t\t\t\t\t\t\t\t0\r\nZUSEIAVTOGUI\t1\r\n$\r\n\r\nOBJECT\tFLANGES\r\nIDENT\tDN 125 / DN 100\r\nSHORTNAME\tDAB\r\nSUCTIONSIDE\tDN 125\r\nDISCHARGESIDE\tDN 100\r\nVALUES\tDIN 2533\tPN 16\r\nVALUESSUCT\tDIN 2533\tPN 16\r\n$\r\n\r\nOBJECT\tCHECK\r\n$\r\n\r\nOBJECT\tUSERINFO\r\nIDENT\tFoto\r\nSHORTNAME\tDAB\r\nFILENAME\tnkm-g nkp-g_foto\r\n$\r\n\r\nOBJECT\tUSERINFO\r\nIDENT\tComponenti speciali a richiesta\r\nSHORTNAME\tDAB\r\nDATA\tComponenti speciali a richiesta - normalizzate monoblocco\t\t\r\n$\r\n\r\nOBJECT\tUSERINFO\r\nIDENT\tLibretto\r\nSHORTNAME\tDAB\r\nFILENAME\tCod_001354001.pdf\r\n$\r\n\r\nOBJECT\tUSERINFO\r\nIDENT\tDichiarazione di conformita\r\nSHORTNAME\tDAB\r\nFILENAME\tCod_60164947.pdf\r\n$\r\n\r\nOBJECT\tUSERINFO\r\nIDENT\tCatalogo tecnico\r\nSHORTNAME\tDAB\r\nFILENAME\tCAT14_NKMG-NKPG_BAQV.pdf\r\n$\r\n$\r","-",11,"2015-05-14 17:21:14.781","-"]
["TPumpObj","DAB","NKM-G NKP-G (BAQV) my15","-","-","NKM-G 100-250","ALL","\r\nOBJECT\tPUMP\r\nIDENT\tNKM-G 100-250\r\nNEWID\t{CHARSFDPN[Kl];;;0}/{D2IMP[Kl];;mm;0}/{Matcd[Ws];;;0}/{MATCODE[WD];;;0}/{Power[M];;kW;0;;;;;;,}/{POLES[M];;;0} {NEWID1[M];;;0}\r\nSHORTNAME\tDAB\r\nDATA\tNKM-G NKP-G my15piscina completo\tNKM-G NKP-G my15piscina breve\t\r\nLIMITIND\t0\t0\r\nLIMIT\tTminfluido\t1\t[P]\t6\t32\t0\t\t-10\t-10\r\nLIMIT\tTmaxfluido\t1\t[P]\t6\t32\t0\t\t140\t140\r\nLIMIT\tTmaxambiente\t1\t[P]\t6\t32\t0\t\t40\t40\r\nPAGENO\t4\r\nSERIES\tNKM-G NKP-G (BAQV) my15\r\nDATASHEET\tDAB - scheda tecnica pompe centrifughe norm. Tenute Speciali no brand mot MEI\tDAB - hydraulic\tDAB - dimension  -\t\t\r\nPERFORMANCECHART\tNKM-G 100-250 my15piscina\t\r\nTYPE\t3\tAll\t\r\nSAFETYMARGIN\t5\t1\t0\t1\r\nPHASE\t3\r\nRESISTANCE\t0\r\nMATERIALKEY\tNKM-G_BASIC\t0\r\nMATERIALKEY\tNKM-G_TOP\t0\r\nGRIDCOLUMNS\tARTNR[P]\r\nGRIDCOLUMNS\tNAME[DNs]\r\nGRIDCOLUMNS\tNAME[DNd]\r\nGRIDCOLUMNS\tPOLES[M]\r\nGRIDCOLUMNS\tPOWER[M]\r\nGRIDCOLUMNS\tSPEED[M]\r\nMEASUREMENT\t*\t-\r\nMEASUREMENT\tA\t140\r\nMEASUREMENT\tB\t80\r\nMEASUREMENT\tDNA\t125\r\nMEASUREMENT\tDNM\t100\r\nMEASUREMENT\tE\t210\r\nMEASUREMENT\tF\t505\r\nMEASUREMENT\tG\t424\r\nMEASUREMENT\tH1\t225\r\nMEASUREMENT\tH2\t280\r\nMEASUREMENT\tH4\t65\r\nMEASUREMENT\tL\t413\r\nMEASUREMENT\tM1\t160\r\nMEASUREMENT\tM2\t120\r\nMEASUREMENT\tN1\t400\r\nMEASUREMENT\tN2\t315\r\nMEASUREMENT\tN3\t254\r\nMEASUREMENT\tS1\tM14\r\nMEASUREMENT\tS2\tM12\r\nMEASUREMENT\tW\t381\r\nMEASUREMENT\tX\t140\r\nOPTION\t1\r\nORIFICELIMIT\t0,1\t0,9\t0\r\n\r\nOBJECT\tINSTALLATION\r\nIDENT\tPompa monoblocco B3/B5\r\nNEWID\tMY15piscina\r\nSHORTNAME\tDAB\r\nFILENAME\tB3-B5_H4\r\nWEIGHT\t232\r\nLIMITIND\t0\t0\r\nLIMIT\tMEDT\t1\t[AW]\t6\t11\t1\t\t-10\t140\r\nWEIGHTFORMULA\t$Wg := if NEWID1[M] = IE2 then --\r\nWEIGHTFORMULA\t$Wg := if NEWID1[M] = IE3 then 213\r\nACCSALLOC\tNKM-G NKP-G\r\nFIELDS\t\t0\t0\r\nHIDECOMP\t[AV]\r\nHIDECOMP\t[DN]\r\nHIDECOMP\t[DNd]\r\nHIDECOMP\t[DNs]\r\nHIDECOMP\t[M]\r\nHIDECOMP\t[WD]\r\nHIDECOMP\t[Ws]\r\nSEAL\tDAB\tTenuta meccanica\tBAQV\t\t\t\r\nFORMULA\tA := A[P]\r\nFORMULA\tB := B[P]\r\nFORMULA\tDNA := DNA[P]\r\nFORMULA\tDNM := DNM[P]\r\nFORMULA\tE := E[P]\r\nFORMULA\tF := if NEWID1[M] = IE2 then --\r\nFORMULA\tF := if NEWID1[M] = IE3 then 505\r\nFORMULA\tG := G[P]\r\nFORMULA\tH1 := H1[P]\r\nFORMULA\tH2 := H2[P]\r\nFORMULA\tL := L[P]\r\nFORMULA\tM1 := M1[P]\r\nFORMULA\tM2 := M2[P]\r\nFORMULA\tN1 := N1[P]\r\nFORMULA\tN2 := N2[P]\r\nFORMULA\tS1 := S1[P]\r\nFORMULA\tW := W[P]\r\nFORMULA\tX := X[P]\r\nFORMULA\tN3 := N3[P]\r\nFORMULA\tS2 := S2[P]\r\nFORMULA\tH4 := H4[P]\r\nPRICEALLOC\tP\t0\t{CHARSFDPN[Kl];;;0}/{D2IMP[Kl];;mm;0}/{Matcd[Ws];;;0}/{MATCODE[WD];;;0}/{Power[M];;kW;0;;;;;;,}/{POLES[M];;;0} {CHARSFDPN[AV];;;0} {FREQ[M];;Hz;1} {NEWID1[M];;;0}\t\t\t\t\t\t\t\t\t0\r\nZUSEIAVTOGUI\t1\r\n$\r\n\r\nOBJECT\tFLANGES\r\nIDENT\tDN 125 / DN 100\r\nSHORTNAME\tDAB\r\nSUCTIONSIDE\tDN 125\r\nDISCHARGESIDE\tDN 100\r\nVALUES\tDIN 2533\tPN 16\r\nVALUESSUCT\tDIN 2533\tPN 16\r\n$\r\n\r\nOBJECT\tCHECK\r\n$\r\n\r\nOBJECT\tUSERINFO\r\nIDENT\tFoto\r\nSHORTNAME\tDAB\r\nFILENAME\tnkm-g nkp-g_foto\r\n$\r\n\r\nOBJECT\tUSERINFO\r\nIDENT\tComponenti speciali a richiesta\r\nSHORTNAME\tDAB\r\nDATA\tComponenti speciali a richiesta - normalizzate monoblocco\t\t\r\n$\r\n\r\nOBJECT\tUSERINFO\r\nIDENT\tLibretto\r\nSHORTNAME\tDAB\r\nFILENAME\tCod_001354001.pdf\r\n$\r\n\r\nOBJECT\tUSERINFO\r\nIDENT\tDichiarazione di conformita\r\nSHORTNAME\tDAB\r\nFILENAME\tCod_60164947.pdf\r\n$\r\n\r\nOBJECT\tUSERINFO\r\nIDENT\tCatalogo tecnico\r\nSHORTNAME\tDAB\r\nFILENAME\tCAT14_NKMG-NKPG_BAQV.pdf\r\n$\r\n$\r","-",11,"2015-05-14 17:21:23.390","-"]
["TPumpObj","DAB","NKM-G NKP-G (BAQV) my15","-","-","NKM-G 125-250","ALL","\r\nOBJECT\tPUMP\r\nIDENT\tNKM-G 125-250\r\nNEWID\t{CHARSFDPN[Kl];;;0}/{D2IMP[Kl];;mm;0}/{Matcd[Ws];;;0}/{MATCODE[WD];;;0}/{Power[M];;kW;0;;;;;;,}/{POLES[M];;;0} {NEWID1[M];;;0}\r\nSHORTNAME\tDAB\r\nDATA\tNKM-G NKP-G my15piscina completo\tNKM-G NKP-G my15piscina breve\t\r\nLIMITIND\t0\t0\r\nLIMIT\tTminfluido\t1\t[P]\t6\t32\t0\t\t-10\t-10\r\nLIMIT\tTmaxfluido\t1\t[P]\t6\t32\t0\t\t140\t140\r\nLIMIT\tTmaxambiente\t1\t[P]\t6\t32\t0\t\t40\t40\r\nPAGENO\t4\r\nSERIES\tNKM-G NKP-G (BAQV) my15\r\nDATASHEET\tDAB - scheda tecnica pompe centrifughe norm. Tenute Speciali no brand mot MEI\tDAB - hydraulic\tDAB - dimension  -\t\t\r\nPERFORMANCECHART\tNKM-G 125-250 my15piscina\t\r\nTYPE\t3\tAll\t\r\nSAFETYMARGIN\t5\t1\t0\t1\r\nPHASE\t3\r\nRESISTANCE\t0\r\nMATERIALKEY\tNKM-G_BASIC\t0\r\nMATERIALKEY\tNKM-G_TOP\t0\r\nGRIDCOLUMNS\tARTNR[P]\r\nGRIDCOLUMNS\tNAME[DNs]\r\nGRIDCOLUMNS\tNAME[DNd]\r\nGRIDCOLUMNS\tPOLES[M]\r\nGRIDCOLUMNS\tPOWER[M]\r\nGRIDCOLUMNS\tSPEED[M]\r\nMEASUREMENT\t*\t-\r\nMEASUREMENT\tA\t140\r\nMEASUREMENT\tB\t80\r\nMEASUREMENT\tDNA\t150\r\nMEASUREMENT\tDNM\t125\r\nMEASUREMENT\tE\t254\r\nMEASUREMENT\tF\t540\r\nMEASUREMENT\tG\t472\r\nMEASUREMENT\tH1\t250\r\nMEASUREMENT\tH2\t355\r\nMEASUREMENT\tH4\t90\r\nMEASUREMENT\tL\t413\r\nMEASUREMENT\tM1\t160\r\nMEASUREMENT\tM2\t120\r\nMEASUREMENT\tN1\t400\r\nMEASUREMENT\tN2\t315\r\nMEASUREMENT\tN3\t254\r\nMEASUREMENT\tS1\tM14\r\nMEASUREMENT\tS2\tM12\r\nMEASUREMENT\tW\t381\r\nMEASUREMENT\tX\t140\r\nOPTION\t1\r\nORIFICELIMIT\t0,1\t0,9\t0\r\n\r\nOBJECT\tINSTALLATION\r\nIDENT\tPompa monoblocco B3/B5\r\nNEWID\tMY15piscina\r\nSHORTNAME\tDAB\r\nFILENAME\tB3-B5_H4\r\nWEIGHT\t292\r\nLIMITIND\t0\t0\r\nLIMIT\tMEDT\t1\t[AW]\t6\t11\t1\t\t-10\t140\r\nWEIGHTFORMULA\t$Wg := if ((POWER[M] >= 15) and (NEWID1[M] = IE2)) then --\r\nWEIGHTFORMULA\t$Wg := if ((POWER[M] = 15) and (NEWID1[M] = IE3)) then 274\r\nWEIGHTFORMULA\t$Wg := if ((POWER[M] = 18,5) and (NEWID1[M] = IE3)) then 290\r\nWEIGHTFORMULA\t\r\nACCSALLOC\tNKM-G NKP-G\r\nFIELDS\t\t0\t0\r\nHIDECOMP\t[AV]\r\nHIDECOMP\t[DN]\r\nHIDECOMP\t[DNd]\r\nHIDECOMP\t[DNs]\r\nHIDECOMP\t[M]\r\nHIDECOMP\t[WD]\r\nHIDECOMP\t[Ws]\r\nSEAL\tDAB\tTenuta meccanica\tBAQV\t\t\t\r\nFORMULA\tA := A[P]\r\nFORMULA\tB := B[P]\r\nFORMULA\tDNA := DNA[P]\r\nFORMULA\tDNM := DNM[P]\r\nFORMULA\tE := if POWER[M] = 15 then 254\r\nFORMULA\tE := if POWER[M] = 18,5 then 241\r\nFORMULA\tF := if ((POWER[M] >= 15) and (NEWID1[M] = IE2)) then --\r\nFORMULA\tF := if ((POWER[M] = 15) and (NEWID1[M] = IE3)) then 548\r\nFORMULA\tF := if ((POWER[M] = 18,5) and (NEWID1[M] = IE3)) then 580\r\nFORMULA\tG := G[P]\r\nFORMULA\tH1 := H1[P]\r\nFORMULA\tH2 := H2[P]\r\nFORMULA\tL := L[P]\r\nFORMULA\tM1 := M1[P]\r\nFORMULA\tM2 := M2[P]\r\nFORMULA\tN1 := N1[P]\r\nFORMULA\tN2 := N2[P]\r\nFORMULA\tS1 := S1[P]\r\nFORMULA\tW :=if POWER[M] = 15 then 381\r\nFORMULA\tW := if POWER[M] = 18,5 then 394\r\nFORMULA\tX := X[P]\r\nFORMULA\tN3 := if POWER[M] = 15 then 254\r\nFORMULA\tN3 := if POWER[M] = 18,5 then 279\r\nFORMULA\tS2 := S2[P]\r\nFORMULA\tH4 := if POWER[M] = 15 then 90\r\nFORMULA\tH4 := if POWER[M] = 18,5 then 70\r\nPRICEALLOC\tP\t0\t{CHARSFDPN[Kl];;;0}/{D2IMP[Kl];;mm;0}/{Matcd[Ws];;;0}/{MATCODE[WD];;;0}/{Power[M];;kW;0;;;;;;,}/{POLES[M];;;0} {CHARSFDPN[AV];;;0} {FREQ[M];;Hz;1} {NEWID1[M];;;0}\t\t\t\t\t\t\t\t\t0\r\nZUSEIAVTOGUI\t1\r\n$\r\n\r\nOBJECT\tFLANGES\r\nIDENT\tDN 150 / DN 125\r\nSHORTNAME\tDAB\r\nSUCTIONSIDE\tDN 150\r\nDISCHARGESIDE\tDN 125\r\nVALUES\tDIN 2533\tPN 16\r\nVALUESSUCT\tDIN 2533\tPN 16\r\n$\r\n\r\nOBJECT\tCHECK\r\n$\r\n\r\nOBJECT\tUSERINFO\r\nIDENT\tFoto\r\nSHORTNAME\tDAB\r\nFILENAME\tnkm-g nkp-g_foto\r\n$\r\n\r\nOBJECT\tUSERINFO\r\nIDENT\tComponenti speciali a richiesta\r\nSHORTNAME\tDAB\r\nDATA\tComponenti speciali a richiesta - normalizzate monoblocco\t\t\r\n$\r\n\r\nOBJECT\tUSERINFO\r\nIDENT\tLibretto\r\nSHORTNAME\tDAB\r\nFILENAME\tCod_001354001.pdf\r\n$\r\n\r\nOBJECT\tUSERINFO\r\nIDENT\tDichiarazione di conformita\r\nSHORTNAME\tDAB\r\nFILENAME\tCod_60164947.pdf\r\n$\r\n\r\nOBJECT\tUSERINFO\r\nIDENT\tCatalogo tecnico\r\nSHORTNAME\tDAB\r\nFILENAME\tCAT14_NKMG-NKPG_BAQV.pdf\r\n$\r\n$\r","-",11,"2015-05-14 17:21:23.390","-"]
["TPumpObj","DAB","NKM-G NKP-G (BAQV) my15","-","-","NKM-G 150-200","ALL","\r\nOBJECT\tPUMP\r\nIDENT\tNKM-G 150-200\r\nNEWID\t{CHARSFDPN[Kl];;;0}/{D2IMP[Kl];;mm;0}/{Matcd[Ws];;;0}/{MATCODE[WD];;;0}/{Power[M];;kW;0;;;;;;,}/{POLES[M];;;0} {NEWID1[M];;;0}\r\nSHORTNAME\tDAB\r\nDATA\tNKM-G NKP-G my15piscina completo\tNKM-G NKP-G my15piscina breve\t\r\nLIMITIND\t0\t0\r\nLIMIT\tTminfluido\t1\t[P]\t6\t32\t0\t\t-10\t-10\r\nLIMIT\tTmaxfluido\t1\t[P]\t6\t32\t0\t\t140\t140\r\nLIMIT\tTmaxambiente\t1\t[P]\t6\t32\t0\t\t40\t40\r\nPAGENO\t4\r\nSERIES\tNKM-G NKP-G (BAQV) my15\r\nDATASHEET\tDAB - scheda tecnica pompe centrifughe norm. Tenute Speciali no brand mot MEI\tDAB - hydraulic\tDAB - dimension  -\t\t\r\nPERFORMANCECHART\tNKM-G 150-200 my15piscina\t\r\nTYPE\t3\tAll\t\r\nSAFETYMARGIN\t5\t1\t0\t1\r\nPHASE\t3\r\nRESISTANCE\t0\r\nMATERIALKEY\tNKM-G_BASIC\t0\r\nMATERIALKEY\tNKM-G_TOP\t0\r\nGRIDCOLUMNS\tARTNR[P]\r\nGRIDCOLUMNS\tNAME[DNs]\r\nGRIDCOLUMNS\tNAME[DNd]\r\nGRIDCOLUMNS\tPOLES[M]\r\nGRIDCOLUMNS\tPOWER[M]\r\nGRIDCOLUMNS\tSPEED[M]\r\nMEASUREMENT\t*\t-\r\nMEASUREMENT\tA\t160\r\nMEASUREMENT\tB\t100\r\nMEASUREMENT\tDNA\t200\r\nMEASUREMENT\tDNM\t150\r\nMEASUREMENT\tE\t210\r\nMEASUREMENT\tF\t503\r\nMEASUREMENT\tG\t593\r\nMEASUREMENT\tH1\t280\r\nMEASUREMENT\tH2\t400\r\nMEASUREMENT\tH4\t120\r\nMEASUREMENT\tL\t433\r\nMEASUREMENT\tM1\t200\r\nMEASUREMENT\tM2\t150\r\nMEASUREMENT\tN1\t550\r\nMEASUREMENT\tN2\t450\r\nMEASUREMENT\tN3\t254\r\nMEASUREMENT\tS1\tM20\r\nMEASUREMENT\tW\t381\r\nMEASUREMENT\tX\t140\r\nOPTION\t1\r\nORIFICELIMIT\t0,1\t0,9\t0\r\n\r\nOBJECT\tINSTALLATION\r\nIDENT\tPompa monoblocco B3/B5\r\nNEWID\tMY15piscina\r\nSHORTNAME\tDAB\r\nFILENAME\tB3-B5_H4\r\nWEIGHT\t309\r\nLIMITIND\t0\t0\r\nLIMIT\tMEDT\t1\t[AW]\t6\t11\t1\t\t-10\t140\r\nWEIGHTFORMULA\t$Wg := if NEWID1[M] = IE2 then --\r\nWEIGHTFORMULA\t$Wg := if NEWID1[M] = IE3 then 280\r\nACCSALLOC\tNKM-G NKP-G\r\nFIELDS\t\t0\t0\r\nHIDECOMP\t[AV]\r\nHIDECOMP\t[DN]\r\nHIDECOMP\t[DNd]\r\nHIDECOMP\t[DNs]\r\nHIDECOMP\t[M]\r\nHIDECOMP\t[WD]\r\nHIDECOMP\t[Ws]\r\nSEAL\tDAB\tTenuta meccanica\tBAQV\t\t\t\r\nFORMULA\tA := A[P]\r\nFORMULA\tB := B[P]\r\nFORMULA\tDNA := DNA[P]\r\nFORMULA\tDNM := DNM[P]\r\nFORMULA\tE := E[P]\r\nFORMULA\tF := if NEWID1[M] = IE2 then --\r\nFORMULA\tF := if NEWID1[M] = IE3 then 505\r\nFORMULA\tG := G[P]\r\nFORMULA\tH1 := H1[P]\r\nFORMULA\tH2 := H2[P]\r\nFORMULA\tL := L[P]\r\nFORMULA\tM1 := M1[P]\r\nFORMULA\tM2 := M2[P]\r\nFORMULA\tN1 := N1[P]\r\nFORMULA\tN2 := N2[P]\r\nFORMULA\tS1 := S1[P]\r\nFORMULA\tW := W[P]\r\nFORMULA\tX := X[P]\r\nFORMULA\tN3 := N3[P]\r\nFORMULA\tH4 := H4[P]\r\nFORMULA\t\r\nPRICEALLOC\tP\t0\t{CHARSFDPN[Kl];;;0}/{D2IMP[Kl];;mm;0}/{Matcd[Ws];;;0}/{MATCODE[WD];;;0}/{Power[M];;kW;0;;;;;;,}/{POLES[M];;;0} {CHARSFDPN[AV];;;0} {FREQ[M];;Hz;1} {NEWID1[M];;;0}\t\t\t\t\t\t\t\t\t0\r\nZUSEIAVTOGUI\t1\r\n$\r\n\r\nOBJECT\tFLANGES\r\nIDENT\tDN 200 / DN 150\r\nSHORTNAME\tDAB\r\nSUCTIONSIDE\tDN 200\r\nDISCHARGESIDE\tDN 150\r\nVALUES\tDIN 2533\tPN 16\r\nVALUESSUCT\tDIN 2533\tPN 16\r\n$\r\n\r\nOBJECT\tCHECK\r\n$\r\n\r\nOBJECT\tUSERINFO\r\nIDENT\tFoto\r\nSHORTNAME\tDAB\r\nFILENAME\tnkm-g nkp-g_foto\r\n$\r\n\r\nOBJECT\tUSERINFO\r\nIDENT\tComponenti speciali a richiesta\r\nSHORTNAME\tDAB\r\nDATA\tComponenti speciali a richiesta - normalizzate monoblocco\t\t\r\n$\r\n\r\nOBJECT\tUSERINFO\r\nIDENT\tLibretto\r\nSHORTNAME\tDAB\r\nFILENAME\tCod_001354001.pdf\r\n$\r\n\r\nOBJECT\tUSERINFO\r\nIDENT\tDichiarazione di conformita\r\nSHORTNAME\tDAB\r\nFILENAME\tCod_60164947.pdf\r\n$\r\n\r\nOBJECT\tUSERINFO\r\nIDENT\tCatalogo tecnico\r\nSHORTNAME\tDAB\r\nFILENAME\tCAT14_NKMG-NKPG_BAQV.pdf\r\n$\r\n$\r","-",11,"2015-05-14 17:21:23.390","-"]
["TPumpObj","DAB","NKM-G NKP-G (BAQV) my15","-","-","NKM-G 40-200","ALL","\r\nOBJECT\tPUMP\r\nIDENT\tNKM-G 40-200\r\nNEWID\t{CHARSFDPN[Kl];;;0}/{D2IMP[Kl];;mm;0}/{Matcd[Ws];;;0}/{MATCODE[WD];;;0}/{Power[M];;kW;0;;;;;;,}/{POLES[M];;;0} {NEWID1[M];;;0}\r\nSHORTNAME\tDAB\r\nDATA\tNKM-G NKP-G my15piscina completo\tNKM-G NKP-G my15piscina breve\t\r\nLIMITIND\t0\t0\r\nLIMIT\tTminfluido\t1\t[P]\t6\t32\t0\t\t-10\t-10\r\nLIMIT\tTmaxfluido\t1\t[P]\t6\t32\t0\t\t140\t140\r\nLIMIT\tTmaxambiente\t1\t[P]\t6\t32\t0\t\t40\t40\r\nPAGENO\t4\r\nSERIES\tNKM-G NKP-G (BAQV) my15\r\nDATASHEET\tDAB - scheda tecnica pompe centrifughe norm. Tenute Speciali no brand mot MEI\tDAB - hydraulic\tDAB - dimension  -\t\t\r\nPERFORMANCECHART\tNKM-G 40-200 my15piscina\t\r\nTYPE\t3\tAll\t\r\nSAFETYMARGIN\t5\t1\t0\t1\r\nPHASE\t3\r\nRESISTANCE\t0\r\nMATERIALKEY\tNKM-G_BASIC\t0\r\nMATERIALKEY\tNKM-G_TOP\t0\r\nGRIDCOLUMNS\tARTNR[P]\r\nGRIDCOLUMNS\tNAME[DNs]\r\nGRIDCOLUMNS\tNAME[DNd]\r\nGRIDCOLUMNS\tPOLES[M]\r\nGRIDCOLUMNS\tPOWER[M]\r\nGRIDCOLUMNS\tSPEED[M]\r\nMEASUREMENT\tA\t100\r\nMEASUREMENT\tB\t50\r\nMEASUREMENT\tDNA\t65\r\nMEASUREMENT\tDNM\t40\r\nMEASUREMENT\tE\t-\r\nMEASUREMENT\tF\t247\r\nMEASUREMENT\tG\t296\r\nMEASUREMENT\tH1\t160\r\nMEASUREMENT\tH2\t180\r\nMEASUREMENT\tL\t246\r\nMEASUREMENT\tM1\t100\r\nMEASUREMENT\tM2\t70\r\nMEASUREMENT\tN1\t265\r\nMEASUREMENT\tN2\t212\r\nMEASUREMENT\tS1\tM10\r\nMEASUREMENT\tW\t-\r\nMEASUREMENT\tX\t100\r\nOPTION\t1\r\nORIFICELIMIT\t0,1\t0,9\t0\r\n\r\nOBJECT\tINSTALLATION\r\nIDENT\tPompa monoblocco\r\nNEWID\tMY15piscina\r\nSHORTNAME\tDAB\r\nFILENAME\tNKM_G_B5\r\nWEIGHT\t64\r\nLIMITIND\t0\t0\r\nLIMIT\tMEDT\t1\t[AW]\t6\t11\t1\t\t-10\t140\r\nWEIGHTFORMULA\t$Wg := if POWER[M] = 1,1 then 64\r\nWEIGHTFORMULA\t$Wg := if POWER[M] = 1,5 then 66\r\nACCSALLOC\tNKM-G NKP-G\r\nFIELDS\t\t0\t0\r\nHIDECOMP\t[AV]\r\nHIDECOMP\t[DN]\r\nHIDECOMP\t[DNd]\r\nHIDECOMP\t[DNs]\r\nHIDECOMP\t[M]\r\nHIDECOMP\t[WD]\r\nHIDECOMP\t[Ws]\r\nSEAL\tDAB\tTenuta meccanica\tBAQV\t\t\t\r\nFORMULA\tA := A[P]\r\nFORMULA\tB := B[P]\r\nFORMULA\tF := if POWER[M] = 1,1 then 247\r\nFORMULA\tF := if POWER[M] = 1,5 then 272\r\nFORMULA\tG := G[P]\r\nFORMULA\tH1 := H1[P]\r\nFORMULA\tH2 := H2[P]\r\nFORMULA\tL := L[P]\r\nFORMULA\tM1 := M1[P]\r\nFORMULA\tM2 := M2[P]\r\nFORMULA\tN1 := N1[P]\r\nFORMULA\tN2 := N2[P]\r\nFORMULA\tS1 := S1[P]\r\nFORMULA\tX := X[P]\r\nFORMULA\tDNA := DNA[P]\r\nFORMULA\tDNM := DNM[P]\r\nFORMULA\t\r\nPRICEALLOC\tP\t0\t{CHARSFDPN[Kl];;;0}/{D2IMP[Kl];;mm;0}/{Matcd[Ws];;;0}/{MATCODE[WD];;;0}/{Power[M];;kW;0;;;;;;,}/{POLES[M];;;0} {CHARSFDPN[AV];;;0} {FREQ[M];;Hz;1} {NEWID1[M];;;0}\t\t\t\t\t\t\t\t\t0\r\nZUSEIAVTOGUI\t1\r\n$\r\n\r\nOBJECT\tFLANGES\r\nIDENT\tDN 65 / DN 40\r\nSHORTNAME\tDAB\r\nSUCTIONSIDE\tDN 65\r\nDISCHARGESIDE\tDN 40\r\nVALUES\tDIN 2533\tPN 16\r\nVALUESSUCT\tDIN 2533\tPN 16\r\n$\r\n\r\nOBJECT\tCHECK\r\n$\r\n\r\nOBJECT\tUSERINFO\r\nIDENT\tFoto\r\nSHORTNAME\tDAB\r\nFILENAME\tnkm-g nkp-g_foto\r\n$\r\n\r\nOBJECT\tUSERINFO\r\nIDENT\tComponenti speciali a richiesta\r\nSHORTNAME\tDAB\r\nDATA\tComponenti speciali a richiesta - normalizzate monoblocco\t\t\r\n$\r\n\r\nOBJECT\tUSERINFO\r\nIDENT\tLibretto\r\nSHORTNAME\tDAB\r\nFILENAME\tCod_001354001.pdf\r\n$\r\n\r\nOBJECT\tUSERINFO\r\nIDENT\tDichiarazione di conformita\r\nSHORTNAME\tDAB\r\nFILENAME\tCod_60164947.pdf\r\n$\r\n\r\nOBJECT\tUSERINFO\r\nIDENT\tCatalogo tecnico\r\nSHORTNAME\tDAB\r\nFILENAME\tCAT14_NKMG-NKPG_BAQV.pdf\r\n$\r\n$\r","-",11,"2015-05-14 17:21:23.390","-"]
["TPumpObj","DAB","NKM-G NKP-G (BAQV) my15","-","-","NKM-G 40-250","ALL","\r\nOBJECT\tPUMP\r\nIDENT\tNKM-G 40-250\r\nNEWID\t{CHARSFDPN[Kl];;;0}/{D2IMP[Kl];;mm;0}/{Matcd[Ws];;;0}/{MATCODE[WD];;;0}/{Power[M];;kW;0;;;;;;,}/{POLES[M];;;0} {NEWID1[M];;;0}\r\nSHORTNAME\tDAB\r\nDATA\tNKM-G NKP-G my15piscina completo\tNKM-G NKP-G my15piscina breve\t\r\nLIMITIND\t0\t0\r\nLIMIT\tTminfluido\t1\t[P]\t6\t32\t0\t\t-10\t-10\r\nLIMIT\tTmaxfluido\t1\t[P]\t6\t32\t0\t\t140\t140\r\nLIMIT\tTmaxambiente\t1\t[P]\t6\t32\t0\t\t40\t40\r\nPAGENO\t4\r\nSERIES\tNKM-G NKP-G (BAQV) my15\r\nDATASHEET\tDAB - scheda tecnica pompe centrifughe norm. Tenute Speciali no brand mot MEI\tDAB - hydraulic\tDAB - dimension  -\t\t\r\nPERFORMANCECHART\tNKM-G 40-250 my15piscina\t\r\nTYPE\t3\tAll\t\r\nSAFETYMARGIN\t5\t1\t0\t1\r\nPHASE\t3\r\nRESISTANCE\t0\r\nMATERIALKEY\tNKM-G_BASIC\t0\r\nMATERIALKEY\tNKM-G_TOP\t0\r\nGRIDCOLUMNS\tARTNR[P]\r\nGRIDCOLUMNS\tNAME[DNs]\r\nGRIDCOLUMNS\tNAME[DNd]\r\nGRIDCOLUMNS\tPOLES[M]\r\nGRIDCOLUMNS\tPOWER[M]\r\nGRIDCOLUMNS\tSPEED[M]\r\nMEASUREMENT\tA\t100\r\nMEASUREMENT\tB\t65\r\nMEASUREMENT\tDNA\t65\r\nMEASUREMENT\tDNM\t40\r\nMEASUREMENT\tE\t-\r\nMEASUREMENT\tF\t301\r\nMEASUREMENT\tG\t336\r\nMEASUREMENT\tH1\t180\r\nMEASUREMENT\tH2\t225\r\nMEASUREMENT\tL\t274\r\nMEASUREMENT\tM1\t125\r\nMEASUREMENT\tM2\t95\r\nMEASUREMENT\tN1\t320\r\nMEASUREMENT\tN2\t250\r\nMEASUREMENT\tS1\tM10\r\nMEASUREMENT\tW\t-\r\nMEASUREMENT\tX\t100\r\nOPTION\t1\r\nORIFICELIMIT\t0,1\t0,9\t0\r\n\r\nOBJECT\tINSTALLATION\r\nIDENT\tPompa monoblocco\r\nNEWID\tMY15piscina\r\nSHORTNAME\tDAB\r\nFILENAME\tNKM_G_B5\r\nWEIGHT\t85\r\nLIMITIND\t0\t0\r\nLIMIT\tMEDT\t1\t[AW]\t6\t11\t1\t\t-10\t140\r\nWEIGHTFORMULA\t$Wg := if POWER[M] = 2,2 then 85\r\nWEIGHTFORMULA\t$Wg := if POWER[M] = 3 then 89\r\nACCSALLOC\tNKM-G NKP-G\r\nFIELDS\t\t0\t0\r\nHIDECOMP\t[AV]\r\nHIDECOMP\t[DN]\r\nHIDECOMP\t[DNd]\r\nHIDECOMP\t[DNs]\r\nHIDECOMP\t[M]\r\nHIDECOMP\t[WD]\r\nHIDECOMP\t[Ws]\r\nSEAL\tDAB\tTenuta meccanica\tBAQV\t\t\t\r\nFORMULA\tA := A[P]\r\nFORMULA\tB := B[P]\r\nFORMULA\tF := F[P]\r\nFORMULA\tG := G[P]\r\nFORMULA\tH1 := H1[P]\r\nFORMULA\tH2 := H2[P]\r\nFORMULA\tL := L[P]\r\nFORMULA\tM1 := M1[P]\r\nFORMULA\tM2 := M2[P]\r\nFORMULA\tN1 := N1[P]\r\nFORMULA\tN2 := N2[P]\r\nFORMULA\tS1 := S1[P]\r\nFORMULA\tX := X[P]\r\nFORMULA\tDNA := DNA[P]\r\nFORMULA\tDNM := DNM[P]\r\nFORMULA\t\r\nPRICEALLOC\tP\t0\t{CHARSFDPN[Kl];;;0}/{D2IMP[Kl];;mm;0}/{Matcd[Ws];;;0}/{MATCODE[WD];;;0}/{Power[M];;kW;0;;;;;;,}/{POLES[M];;;0} {CHARSFDPN[AV];;;0} {FREQ[M];;Hz;1} {NEWID1[M];;;0}\t\t\t\t\t\t\t\t\t0\r\nZUSEIAVTOGUI\t1\r\n$\r\n\r\nOBJECT\tFLANGES\r\nIDENT\tDN 65 / DN 40\r\nSHORTNAME\tDAB\r\nSUCTIONSIDE\tDN 65\r\nDISCHARGESIDE\tDN 40\r\nVALUES\tDIN 2533\tPN 16\r\nVALUESSUCT\tDIN 2533\tPN 16\r\n$\r\n\r\nOBJECT\tCHECK\r\n$\r\n\r\nOBJECT\tUSERINFO\r\nIDENT\tFoto\r\nSHORTNAME\tDAB\r\nFILENAME\tnkm-g nkp-g_foto\r\n$\r\n\r\nOBJECT\tUSERINFO\r\nIDENT\tComponenti speciali a richiesta\r\nSHORTNAME\tDAB\r\nDATA\tComponenti speciali a richiesta - normalizzate monoblocco\t\t\r\n$\r\n\r\nOBJECT\tUSERINFO\r\nIDENT\tLibretto\r\nSHORTNAME\tDAB\r\nFILENAME\tCod_001354001.pdf\r\n$\r\n\r\nOBJECT\tUSERINFO\r\nIDENT\tDichiarazione di conformita\r\nSHORTNAME\tDAB\r\nFILENAME\tCod_60164947.pdf\r\n$\r\n\r\nOBJECT\tUSERINFO\r\nIDENT\tCatalogo tecnico\r\nSHORTNAME\tDAB\r\nFILENAME\tCAT14_NKMG-NKPG_BAQV.pdf\r\n$\r\n$\r","-",11,"2015-05-14 17:21:23.390","-"]
["TPumpObj","DAB","NKM-G NKP-G (BAQV) my15","-","-","NKM-G 50-160","ALL","\r\nOBJECT\tPUMP\r\nIDENT\tNKM-G 50-160\r\nNEWID\t{CHARSFDPN[Kl];;;0}/{D2IMP[Kl];;mm;0}/{Matcd[Ws];;;0}/{MATCODE[WD];;;0}/{Power[M];;kW;0;;;;;;,}/{POLES[M];;;0} {NEWID1[M];;;0}\r\nSHORTNAME\tDAB\r\nDATA\tNKM-G NKP-G my15piscina completo\tNKM-G NKP-G my15piscina breve\t\r\nLIMITIND\t0\t0\r\nLIMIT\tTminfluido\t1\t[P]\t6\t32\t0\t\t-10\t-10\r\nLIMIT\tTmaxfluido\t1\t[P]\t6\t32\t0\t\t140\t140\r\nLIMIT\tTmaxambiente\t1\t[P]\t6\t32\t0\t\t40\t40\r\nPAGENO\t4\r\nSERIES\tNKM-G NKP-G (BAQV) my15\r\nDATASHEET\tDAB - scheda tecnica pompe centrifughe norm. Tenute Speciali no brand mot MEI\tDAB - hydraulic\tDAB - dimension  -\t\t\r\nPERFORMANCECHART\tNKM-G 50-160 my15piscina\t\r\nTYPE\t3\tAll\t\r\nSAFETYMARGIN\t5\t1\t0\t1\r\nPHASE\t3\r\nRESISTANCE\t0\r\nMATERIALKEY\tNKM-G_BASIC\t0\r\nMATERIALKEY\tNKM-G_TOP\t0\r\nGRIDCOLUMNS\tARTNR[P]\r\nGRIDCOLUMNS\tNAME[DNs]\r\nGRIDCOLUMNS\tNAME[DNd]\r\nGRIDCOLUMNS\tPOLES[M]\r\nGRIDCOLUMNS\tPOWER[M]\r\nGRIDCOLUMNS\tSPEED[M]\r\nMEASUREMENT\tA\t100\r\nMEASUREMENT\tB\t50\r\nMEASUREMENT\tDNA\t65\r\nMEASUREMENT\tDNM\t50\r\nMEASUREMENT\tE\t-\r\nMEASUREMENT\tF\t272\r\nMEASUREMENT\tG\t282\r\nMEASUREMENT\tH1\t160\r\nMEASUREMENT\tH2\t180\r\nMEASUREMENT\tL\t274\r\nMEASUREMENT\tM1\t100\r\nMEASUREMENT\tM2\t70\r\nMEASUREMENT\tN1\t265\r\nMEASUREMENT\tN2\t212\r\nMEASUREMENT\tS1\tM10\r\nMEASUREMENT\tW\t-\r\nMEASUREMENT\tX\t100\r\nOPTION\t1\r\nORIFICELIMIT\t0,1\t0,9\t0\r\n\r\nOBJECT\tINSTALLATION\r\nIDENT\tPompa monoblocco\r\nNEWID\tMY15piscina\r\nSHORTNAME\tDAB\r\nFILENAME\tNKM_G_B5\r\nWEIGHT\t58\r\nLIMITIND\t0\t0\r\nLIMIT\tMEDT\t1\t[AW]\t6\t11\t1\t\t-10\t140\r\nWEIGHTFORMULA\t$Wg := if POWER[M] = 1,5 then 60\r\nWEIGHTFORMULA\t\r\nACCSALLOC\tNKM-G NKP-G\r\nFIELDS\t\t0\t0\r\nHIDECOMP\t[AV]\r\nHIDECOMP\t[DN]\r\nHIDECOMP\t[DNd]\r\nHIDECOMP\t[DNs]\r\nHIDECOMP\t[M]\r\nHIDECOMP\t[WD]\r\nHIDECOMP\t[Ws]\r\nSEAL\tDAB\tTenuta meccanica\tBAQV\t\t\t\r\nFORMULA\tA := A[P]\r\nFORMULA\tB := B[P]\r\nFORMULA\tDNA := DNA[P]\r\nFORMULA\tDNM := DNM[P]\r\nFORMULA\tF := F[P]\r\nFORMULA\tG := G[P]\r\nFORMULA\tH1 := H1[P]\r\nFORMULA\tH2 := H2[P]\r\nFORMULA\tL := L[P]\r\nFORMULA\tM1 := M1[P]\r\nFORMULA\tM2 := M2[P]\r\nFORMULA\tN1 := N1[P]\r\nFORMULA\tN2 := N2[P]\r\nFORMULA\tS1 := S1[P]\r\nFORMULA\tX := X[P]\r\nPRICEALLOC\tP\t0\t{CHARSFDPN[Kl];;;0}/{D2IMP[Kl];;mm;0}/{Matcd[Ws];;;0}/{MATCODE[WD];;;0}/{Power[M];;kW;0;;;;;;,}/{POLES[M];;;0} {CHARSFDPN[AV];;;0} {FREQ[M];;Hz;1} {NEWID1[M];;;0}\t\t\t\t\t\t\t\t\t0\r\nZUSEIAVTOGUI\t1\r\n$\r\n\r\nOBJECT\tFLANGES\r\nIDENT\tDN 65 / DN 50\r\nSHORTNAME\tDAB\r\nSUCTIONSIDE\tDN 65\r\nDISCHARGESIDE\tDN 50\r\nVALUES\tDIN 2533\tPN 16\r\nVALUESSUCT\tDIN 2533\tPN 16\r\n$\r\n\r\nOBJECT\tCHECK\r\n$\r\n\r\nOBJECT\tUSERINFO\r\nIDENT\tFoto\r\nSHORTNAME\tDAB\r\nFILENAME\tnkm-g nkp-g_foto\r\n$\r\n\r\nOBJECT\tUSERINFO\r\nIDENT\tComponenti speciali a richiesta\r\nSHORTNAME\tDAB\r\nDATA\tComponenti speciali a richiesta - normalizzate monoblocco\t\t\r\n$\r\n\r\nOBJECT\tUSERINFO\r\nIDENT\tLibretto\r\nSHORTNAME\tDAB\r\nFILENAME\tCod_001354001.pdf\r\n$\r\n\r\nOBJECT\tUSERINFO\r\nIDENT\tDichiarazione di conformita\r\nSHORTNAME\tDAB\r\nFILENAME\tCod_60164947.pdf\r\n$\r\n\r\nOBJECT\tUSERINFO\r\nIDENT\tCatalogo tecnico\r\nSHORTNAME\tDAB\r\nFILENAME\tCAT14_NKMG-NKPG_BAQV.pdf\r\n$\r\n$\r","-",11,"2015-05-14 17:21:23.390","-"]
["TPumpObj","DAB","NKM-G NKP-G (BAQV) my15","-","-","NKM-G 50-200","ALL","\r\nOBJECT\tPUMP\r\nIDENT\tNKM-G 50-200\r\nNEWID\t{CHARSFDPN[Kl];;;0}/{D2IMP[Kl];;mm;0}/{Matcd[Ws];;;0}/{MATCODE[WD];;;0}/{Power[M];;kW;0;;;;;;,}/{POLES[M];;;0} {NEWID1[M];;;0}\r\nSHORTNAME\tDAB\r\nDATA\tNKM-G NKP-G my15piscina completo\tNKM-G NKP-G my15piscina breve\t\r\nLIMITIND\t0\t0\r\nLIMIT\tTminfluido\t1\t[P]\t6\t32\t0\t\t-10\t-10\r\nLIMIT\tTmaxfluido\t1\t[P]\t6\t32\t0\t\t140\t140\r\nLIMIT\tTmaxambiente\t1\t[P]\t6\t32\t0\t\t40\t40\r\nPAGENO\t4\r\nSERIES\tNKM-G NKP-G (BAQV) my15\r\nDATASHEET\tDAB - scheda tecnica pompe centrifughe norm. Tenute Speciali no brand mot MEI\tDAB - hydraulic\tDAB - dimension  -\t\t\r\nPERFORMANCECHART\tNKM-G 50-200 my15piscina\t\r\nTYPE\t3\tAll\t\r\nSAFETYMARGIN\t5\t1\t0\t1\r\nPHASE\t3\r\nRESISTANCE\t0\r\nMATERIALKEY\tNKM-G_BASIC\t0\r\nMATERIALKEY\tNKM-G_TOP\t0\r\nGRIDCOLUMNS\tARTNR[P]\r\nGRIDCOLUMNS\tNAME[DNs]\r\nGRIDCOLUMNS\tNAME[DNd]\r\nGRIDCOLUMNS\tPOLES[M]\r\nGRIDCOLUMNS\tPOWER[M]\r\nGRIDCOLUMNS\tSPEED[M]\r\nMEASUREMENT\tA\t100\r\nMEASUREMENT\tB\t50\r\nMEASUREMENT\tDNA\t65\r\nMEASUREMENT\tDNM\t50\r\nMEASUREMENT\tE\t-\r\nMEASUREMENT\tF\t301\r\nMEASUREMENT\tG\t302\r\nMEASUREMENT\tH1\t160\r\nMEASUREMENT\tH2\t200\r\nMEASUREMENT\tL\t274\r\nMEASUREMENT\tM1\t100\r\nMEASUREMENT\tM2\t70\r\nMEASUREMENT\tN1\t265\r\nMEASUREMENT\tN2\t212\r\nMEASUREMENT\tS1\tM10\r\nMEASUREMENT\tW\t-\r\nMEASUREMENT\tX\t100\r\nOPTION\t1\r\nORIFICELIMIT\t0,1\t0,9\t0\r\n\r\nOBJECT\tINSTALLATION\r\nIDENT\tPompa monoblocco\r\nNEWID\tMY15piscina\r\nSHORTNAME\tDAB\r\nFILENAME\tNKM_G_B5\r\nWEIGHT\t79\r\nLIMITIND\t0\t0\r\nLIMIT\tMEDT\t1\t[AW]\t6\t11\t1\t\t-10\t140\r\nWEIGHTFORMULA\t$Wg := if POWER[M] = 2,2 then 79\r\nWEIGHTFORMULA\t$Wg := if POWER[M] = 3 then 81\r\nACCSALLOC\tNKM-G NKP-G\r\nFIELDS\t\t0\t0\r\nHIDECOMP\t[AV]\r\nHIDECOMP\t[DN]\r\nHIDECOMP\t[DNd]\r\nHIDECOMP\t[DNs]\r\nHIDECOMP\t[M]\r\nHIDECOMP\t[WD]\r\nHIDECOMP\t[Ws]\r\nSEAL\tDAB\tTenuta meccanica\tBAQV\t\t\t\r\nFORMULA\tA := A[P]\r\nFORMULA\tB := B[P]\r\nFORMULA\tDNA := DNA[P]\r\nFORMULA\tDNM := DNM[P]\r\nFORMULA\tF := F[P]\r\nFORMULA\tG := G[P]\r\nFORMULA\tH1 := H1[P]\r\nFORMULA\tH2 := H2[P]\r\nFORMULA\tL := L[P]\r\nFORMULA\tM1 := M1[P]\r\nFORMULA\tM2 := M2[P]\r\nFORMULA\tN1 := N1[P]\r\nFORMULA\tN2 := N2[P]\r\nFORMULA\tS1 := S1[P]\r\nFORMULA\tX := X[P]\r\nPRICEALLOC\tP\t0\t{CHARSFDPN[Kl];;;0}/{D2IMP[Kl];;mm;0}/{Matcd[Ws];;;0}/{MATCODE[WD];;;0}/{Power[M];;kW;0;;;;;;,}/{POLES[M];;;0} {CHARSFDPN[AV];;;0} {FREQ[M];;Hz;1} {NEWID1[M];;;0}\t\t\t\t\t\t\t\t\t0\r\nZUSEIAVTOGUI\t1\r\n$\r\n\r\nOBJECT\tFLANGES\r\nIDENT\tDN 65 / DN 50\r\nSHORTNAME\tDAB\r\nSUCTIONSIDE\tDN 65\r\nDISCHARGESIDE\tDN 50\r\nVALUES\tDIN 2533\tPN 16\r\nVALUESSUCT\tDIN 2533\tPN 16\r\n$\r\n\r\nOBJECT\tCHECK\r\n$\r\n\r\nOBJECT\tUSERINFO\r\nIDENT\tFoto\r\nSHORTNAME\tDAB\r\nFILENAME\tnkm-g nkp-g_foto\r\n$\r\n\r\nOBJECT\tUSERINFO\r\nIDENT\tComponenti speciali a richiesta\r\nSHORTNAME\tDAB\r\nDATA\tComponenti speciali a richiesta - normalizzate monoblocco\t\t\r\n$\r\n\r\nOBJECT\tUSERINFO\r\nIDENT\tLibretto\r\nSHORTNAME\tDAB\r\nFILENAME\tCod_001354001.pdf\r\n$\r\n\r\nOBJECT\tUSERINFO\r\nIDENT\tDichiarazione di conformita\r\nSHORTNAME\tDAB\r\nFILENAME\tCod_60164947.pdf\r\n$\r\n\r\nOBJECT\tUSERINFO\r\nIDENT\tCatalogo tecnico\r\nSHORTNAME\tDAB\r\nFILENAME\tCAT14_NKMG-NKPG_BAQV.pdf\r\n$\r\n$\r","-",11,"2015-05-14 17:21:23.390","-"]
["TPumpObj","DAB","NKM-G NKP-G (BAQV) my15","-","-","NKM-G 50-250","ALL","\r\nOBJECT\tPUMP\r\nIDENT\tNKM-G 50-250\r\nNEWID\t{CHARSFDPN[Kl];;;0}/{D2IMP[Kl];;mm;0}/{Matcd[Ws];;;0}/{MATCODE[WD];;;0}/{Power[M];;kW;0;;;;;;,}/{POLES[M];;;0} {NEWID1[M];;;0}\r\nSHORTNAME\tDAB\r\nDATA\tNKM-G NKP-G my15piscina completo\tNKM-G NKP-G my15piscina breve\t\r\nLIMITIND\t0\t0\r\nLIMIT\tTminfluido\t1\t[P]\t6\t32\t0\t\t-10\t-10\r\nLIMIT\tTmaxfluido\t1\t[P]\t6\t32\t0\t\t140\t140\r\nLIMIT\tTmaxambiente\t1\t[P]\t6\t32\t0\t\t40\t40\r\nPAGENO\t4\r\nSERIES\tNKM-G NKP-G (BAQV) my15\r\nDATASHEET\tDAB - scheda tecnica pompe centrifughe norm. Tenute Speciali no brand mot MEI\tDAB - hydraulic\tDAB - dimension  -\t\t\r\nPERFORMANCECHART\tNKM-G 50-250 my15piscina\t\r\nTYPE\t3\tAll\t\r\nSAFETYMARGIN\t5\t1\t0\t1\r\nPHASE\t3\r\nRESISTANCE\t0\r\nMATERIALKEY\tNKM-G_BASIC\t0\r\nMATERIALKEY\tNKM-G_TOP\t0\r\nGRIDCOLUMNS\tARTNR[P]\r\nGRIDCOLUMNS\tNAME[DNs]\r\nGRIDCOLUMNS\tNAME[DNd]\r\nGRIDCOLUMNS\tPOLES[M]\r\nGRIDCOLUMNS\tPOWER[M]\r\nGRIDCOLUMNS\tSPEED[M]\r\nMEASUREMENT\tA\t100\r\nMEASUREMENT\tB\t65\r\nMEASUREMENT\tDNA\t65\r\nMEASUREMENT\tDNM\t50\r\nMEASUREMENT\tE\t-\r\nMEASUREMENT\tF\t301\r\nMEASUREMENT\tG\t343\r\nMEASUREMENT\tH1\t180\r\nMEASUREMENT\tH2\t225\r\nMEASUREMENT\tL\t274\r\nMEASUREMENT\tM1\t125\r\nMEASUREMENT\tM2\t95\r\nMEASUREMENT\tN1\t320\r\nMEASUREMENT\tN2\t250\r\nMEASUREMENT\tS1\tM10\r\nMEASUREMENT\tW\t-\r\nMEASUREMENT\tX\t100\r\nOPTION\t1\r\nORIFICELIMIT\t0,1\t0,9\t0\r\n\r\nOBJECT\tINSTALLATION\r\nIDENT\tPompa monoblocco\r\nNEWID\tMY15piscina\r\nSHORTNAME\tDAB\r\nFILENAME\tNKM_G_B5\r\nWEIGHT\t98\r\nLIMITIND\t0\t0\r\nLIMIT\tMEDT\t1\t[AW]\t6\t11\t1\t\t-10\t140\r\nWEIGHTFORMULA\t$Wg :=$Wg[P] + $Wg[AV]\r\nACCSALLOC\tNKM-G NKP-G\r\nFIELDS\t\t0\t0\r\nHIDECOMP\t[AV]\r\nHIDECOMP\t[DN]\r\nHIDECOMP\t[DNd]\r\nHIDECOMP\t[DNs]\r\nHIDECOMP\t[M]\r\nHIDECOMP\t[WD]\r\nHIDECOMP\t[Ws]\r\nSEAL\tDAB\tTenuta meccanica\tBAQV\t\t\t\r\nFORMULA\tA := A[P]\r\nFORMULA\tB := B[P]\r\nFORMULA\tDNA := DNA[P]\r\nFORMULA\tDNM := DNM[P]\r\nFORMULA\tF := F[P]\r\nFORMULA\tG := G[P]\r\nFORMULA\tH1 := H1[P]\r\nFORMULA\tH2 := H2[P]\r\nFORMULA\tL := L[P]\r\nFORMULA\tM1 := M1[P]\r\nFORMULA\tM2 := M2[P]\r\nFORMULA\tN1 := N1[P]\r\nFORMULA\tN2 := N2[P]\r\nFORMULA\tS1 := S1[P]\r\nFORMULA\tX := X[P]\r\nPRICEALLOC\tP\t0\t{CHARSFDPN[Kl];;;0}/{D2IMP[Kl];;mm;0}/{Matcd[Ws];;;0}/{MATCODE[WD];;;0}/{Power[M];;kW;0;;;;;;,}/{POLES[M];;;0} {CHARSFDPN[AV];;;0} {FREQ[M];;Hz;1} {NEWID1[M];;;0}\t\t\t\t\t\t\t\t\t0\r\nZUSEIAVTOGUI\t1\r\n$\r\n\r\nOBJECT\tFLANGES\r\nIDENT\tDN 65 / DN 50\r\nSHORTNAME\tDAB\r\nSUCTIONSIDE\tDN 65\r\nDISCHARGESIDE\tDN 50\r\nVALUES\tDIN 2533\tPN 16\r\nVALUESSUCT\tDIN 2533\tPN 16\r\n$\r\n\r\nOBJECT\tCHECK\r\n$\r\n\r\nOBJECT\tUSERINFO\r\nIDENT\tFoto\r\nSHORTNAME\tDAB\r\nFILENAME\tnkm-g nkp-g_foto\r\n$\r\n\r\nOBJECT\tUSERINFO\r\nIDENT\tComponenti speciali a richiesta\r\nSHORTNAME\tDAB\r\nDATA\tComponenti speciali a richiesta - normalizzate monoblocco\t\t\r\n$\r\n\r\nOBJECT\tUSERINFO\r\nIDENT\tLibretto\r\nSHORTNAME\tDAB\r\nFILENAME\tCod_001354001.pdf\r\n$\r\n\r\nOBJECT\tUSERINFO\r\nIDENT\tDichiarazione di conformita\r\nSHORTNAME\tDAB\r\nFILENAME\tCod_60164947.pdf\r\n$\r\n\r\nOBJECT\tUSERINFO\r\nIDENT\tCatalogo tecnico\r\nSHORTNAME\tDAB\r\nFILENAME\tCAT14_NKMG-NKPG_BAQV.pdf\r\n$\r\n$\r","-",11,"2015-05-14 17:21:23.390","-"]
["TPumpObj","DAB","NKM-G NKP-G (BAQV) my15","-","-","NKM-G 65-200","ALL","\r\nOBJECT\tPUMP\r\nIDENT\tNKM-G 65-200\r\nNEWID\t{CHARSFDPN[Kl];;;0}/{D2IMP[Kl];;mm;0}/{Matcd[Ws];;;0}/{MATCODE[WD];;;0}/{Power[M];;kW;0;;;;;;,}/{POLES[M];;;0} {NEWID1[M];;;0}\r\nSHORTNAME\tDAB\r\nDATA\tNKM-G NKP-G my15piscina completo\tNKM-G NKP-G my15piscina breve\t\r\nLIMITIND\t0\t0\r\nLIMIT\tTminfluido\t1\t[P]\t6\t32\t0\t\t-10\t-10\r\nLIMIT\tTmaxfluido\t1\t[P]\t6\t32\t0\t\t140\t140\r\nLIMIT\tTmaxambiente\t1\t[P]\t6\t32\t0\t\t40\t40\r\nPAGENO\t4\r\nSERIES\tNKM-G NKP-G (BAQV) my15\r\nDATASHEET\tDAB - scheda tecnica pompe centrifughe norm. Tenute Speciali no brand mot MEI\tDAB - hydraulic\tDAB - dimension  -\t\t\r\nPERFORMANCECHART\tNKM-G 65-200 my15piscina\t\r\nTYPE\t3\tAll\t\r\nSAFETYMARGIN\t5\t1\t0\t1\r\nPHASE\t3\r\nRESISTANCE\t0\r\nMATERIALKEY\tNKM-G_BASIC\t0\r\nMATERIALKEY\tNKM-G_TOP\t0\r\nGRIDCOLUMNS\tARTNR[P]\r\nGRIDCOLUMNS\tNAME[DNs]\r\nGRIDCOLUMNS\tNAME[DNd]\r\nGRIDCOLUMNS\tPOLES[M]\r\nGRIDCOLUMNS\tPOWER[M]\r\nGRIDCOLUMNS\tSPEED[M]\r\nMEASUREMENT\tA\t100\r\nMEASUREMENT\tB\t65\r\nMEASUREMENT\tDNA\t80\r\nMEASUREMENT\tDNM\t65\r\nMEASUREMENT\tE\t-\r\nMEASUREMENT\tF\t301\r\nMEASUREMENT\tG\t333\r\nMEASUREMENT\tH1\t180\r\nMEASUREMENT\tH2\t225\r\nMEASUREMENT\tL\t274\r\nMEASUREMENT\tM1\t125\r\nMEASUREMENT\tM2\t95\r\nMEASUREMENT\tN1\t320\r\nMEASUREMENT\tN2\t250\r\nMEASUREMENT\tS1\tM10\r\nMEASUREMENT\tW\t-\r\nMEASUREMENT\tX\t140\r\nOPTION\t1\r\nORIFICELIMIT\t0,1\t0,9\t0\r\n\r\nOBJECT\tINSTALLATION\r\nIDENT\tPompa monoblocco\r\nNEWID\tMY15piscina\r\nSHORTNAME\tDAB\r\nFILENAME\tNKM_G_B5\r\nWEIGHT\t88\r\nLIMITIND\t0\t0\r\nLIMIT\tMEDT\t1\t[AW]\t6\t11\t1\t\t-10\t140\r\nWEIGHTFORMULA\t$Wg := if POWER[M] = 3 then 88\r\nWEIGHTFORMULA\t$Wg := if POWER[M] = 4 then 96\r\nACCSALLOC\tNKM-G NKP-G\r\nFIELDS\t\t0\t0\r\nHIDECOMP\t[AV]\r\nHIDECOMP\t[DN]\r\nHIDECOMP\t[DNd]\r\nHIDECOMP\t[DNs]\r\nHIDECOMP\t[M]\r\nHIDECOMP\t[WD]\r\nHIDECOMP\t[Ws]\r\nSEAL\tDAB\tTenuta meccanica\tBAQV\t\t\t\r\nFORMULA\tA := A[P]\r\nFORMULA\tB := B[P]\r\nFORMULA\tDNA := DNA[P]\r\nFORMULA\tDNM := DNM[P]\r\nFORMULA\tF := F[P]\r\nFORMULA\tG := G[P]\r\nFORMULA\tH1 := H1[P]\r\nFORMULA\tH2 := H2[P]\r\nFORMULA\tL := L[P]\r\nFORMULA\tM1 := M1[P]\r\nFORMULA\tM2 := M2[P]\r\nFORMULA\tN1 := N1[P]\r\nFORMULA\tN2 := N2[P]\r\nFORMULA\tS1 := S1[P]\r\nFORMULA\tX := X[P]\r\nPRICEALLOC\tP\t0\t{CHARSFDPN[Kl];;;0}/{D2IMP[Kl];;mm;0}/{Matcd[Ws];;;0}/{MATCODE[WD];;;0}/{Power[M];;kW;0;;;;;;,}/{POLES[M];;;0} {CHARSFDPN[AV];;;0} {FREQ[M];;Hz;1} {NEWID1[M];;;0}\t\t\t\t\t\t\t\t\t0\r\nZUSEIAVTOGUI\t1\r\n$\r\n\r\nOBJECT\tFLANGES\r\nIDENT\tDN 80 / DN 65\r\nSHORTNAME\tDAB\r\nSUCTIONSIDE\tDN 80\r\nDISCHARGESIDE\tDN 65\r\nVALUES\tDIN 2533\tPN 16\r\nVALUESSUCT\tDIN 2533\tPN 16\r\n$\r\n\r\nOBJECT\tCHECK\r\n$\r\n\r\nOBJECT\tUSERINFO\r\nIDENT\tFoto\r\nSHORTNAME\tDAB\r\nFILENAME\tnkm-g nkp-g_foto\r\n$\r\n\r\nOBJECT\tUSERINFO\r\nIDENT\tComponenti speciali a richiesta\r\nSHORTNAME\tDAB\r\nDATA\tComponenti speciali a richiesta - normalizzate monoblocco\t\t\r\n$\r\n\r\nOBJECT\tUSERINFO\r\nIDENT\tLibretto\r\nSHORTNAME\tDAB\r\nFILENAME\tCod_001354001.pdf\r\n$\r\n\r\nOBJECT\tUSERINFO\r\nIDENT\tDichiarazione di conformita\r\nSHORTNAME\tDAB\r\nFILENAME\tCod_60164947.pdf\r\n$\r\n\r\nOBJECT\tUSERINFO\r\nIDENT\tCatalogo tecnico\r\nSHORTNAME\tDAB\r\nFILENAME\tCAT14_NKMG-NKPG_BAQV.pdf\r\n$\r\n$\r","-",11,"2015-05-14 17:21:23.390","-"]
["TPumpObj","DAB","NKM-G NKP-G (BAQV) my15","-","-","NKM-G 65-250","ALL","\r\nOBJECT\tPUMP\r\nIDENT\tNKM-G 65-250\r\nNEWID\t{CHARSFDPN[Kl];;;0}/{D2IMP[Kl];;mm;0}/{Matcd[Ws];;;0}/{MATCODE[WD];;;0}/{Power[M];;kW;0;;;;;;,}/{POLES[M];;;0} {NEWID1[M];;;0}\r\nSHORTNAME\tDAB\r\nDATA\tNKM-G NKP-G my15piscina completo\tNKM-G NKP-G my15piscina breve\t\r\nLIMITIND\t0\t0\r\nLIMIT\tTminfluido\t1\t[P]\t6\t32\t0\t\t-10\t-10\r\nLIMIT\tTmaxfluido\t1\t[P]\t6\t32\t0\t\t140\t140\r\nLIMIT\tTmaxambiente\t1\t[P]\t6\t32\t0\t\t40\t40\r\nPAGENO\t4\r\nSERIES\tNKM-G NKP-G (BAQV) my15\r\nDATASHEET\tDAB - scheda tecnica pompe centrifughe norm. Tenute Speciali no brand mot MEI\tDAB - hydraulic\tDAB - dimension  -\t\t\r\nPERFORMANCECHART\tNKM-G 65-250 my15piscina\t\r\nTYPE\t3\tAll\t\r\nSAFETYMARGIN\t5\t1\t0\t1\r\nPHASE\t3\r\nRESISTANCE\t0\r\nMATERIALKEY\tNKM-G_BASIC\t0\r\nMATERIALKEY\tNKM-G_TOP\t0\r\nGRIDCOLUMNS\tARTNR[P]\r\nGRIDCOLUMNS\tNAME[DNs]\r\nGRIDCOLUMNS\tNAME[DNd]\r\nGRIDCOLUMNS\tPOLES[M]\r\nGRIDCOLUMNS\tPOWER[M]\r\nGRIDCOLUMNS\tSPEED[M]\r\nMEASUREMENT\tA\t100\r\nMEASUREMENT\tB\t80\r\nMEASUREMENT\tDNA\t80\r\nMEASUREMENT\tDNM\t65\r\nMEASUREMENT\tE\t-\r\nMEASUREMENT\tF\t390\r\nMEASUREMENT\tG\t370\r\nMEASUREMENT\tH1\t200\r\nMEASUREMENT\tH2\t250\r\nMEASUREMENT\tL\t343\r\nMEASUREMENT\tM1\t160\r\nMEASUREMENT\tM2\t120\r\nMEASUREMENT\tN1\t360\r\nMEASUREMENT\tN2\t280\r\nMEASUREMENT\tS1\tM14\r\nMEASUREMENT\tW\t-\r\nMEASUREMENT\tX\t140\r\nOPTION\t1\r\nORIFICELIMIT\t0,1\t0,9\t0\r\n\r\nOBJECT\tINSTALLATION\r\nIDENT\tPompa monoblocco\r\nNEWID\tMY15piscina\r\nSHORTNAME\tDAB\r\nFILENAME\tNKM_G_B5\r\nWEIGHT\t159\r\nLIMITIND\t0\t0\r\nLIMIT\tMEDT\t1\t[AW]\t6\t11\t1\t\t-10\t140\r\nWEIGHTFORMULA\t$Wg :=$Wg[P] + $Wg[AV]\r\nACCSALLOC\tNKM-G NKP-G\r\nFIELDS\t\t0\t0\r\nHIDECOMP\t[AV]\r\nHIDECOMP\t[DN]\r\nHIDECOMP\t[DNd]\r\nHIDECOMP\t[DNs]\r\nHIDECOMP\t[M]\r\nHIDECOMP\t[WD]\r\nHIDECOMP\t[Ws]\r\nSEAL\tDAB\tTenuta meccanica\tBAQV\t\t\t\r\nFORMULA\tA := A[P]\r\nFORMULA\tB := B[P]\r\nFORMULA\tDNA := DNA[P]\r\nFORMULA\tDNM := DNM[P]\r\nFORMULA\tF := F[P]\r\nFORMULA\tG := G[P]\r\nFORMULA\tH1 := H1[P]\r\nFORMULA\tH2 := H2[P]\r\nFORMULA\tL := L[P]\r\nFORMULA\tM1 := M1[P]\r\nFORMULA\tM2 := M2[P]\r\nFORMULA\tN1 := N1[P]\r\nFORMULA\tN2 := N2[P]\r\nFORMULA\tS1 := S1[P]\r\nFORMULA\tX := X[P]\r\nPRICEALLOC\tP\t0\t{CHARSFDPN[Kl];;;0}/{D2IMP[Kl];;mm;0}/{Matcd[Ws];;;0}/{MATCODE[WD];;;0}/{Power[M];;kW;0;;;;;;,}/{POLES[M];;;0} {CHARSFDPN[AV];;;0} {FREQ[M];;Hz;1} {NEWID1[M];;;0}\t\t\t\t\t\t\t\t\t0\r\nZUSEIAVTOGUI\t1\r\n$\r\n\r\nOBJECT\tFLANGES\r\nIDENT\tDN 80 / DN 65\r\nSHORTNAME\tDAB\r\nSUCTIONSIDE\tDN 80\r\nDISCHARGESIDE\tDN 65\r\nVALUES\tDIN 2533\tPN 16\r\nVALUESSUCT\tDIN 2533\tPN 16\r\n$\r\n\r\nOBJECT\tCHECK\r\n$\r\n\r\nOBJECT\tUSERINFO\r\nIDENT\tFoto\r\nSHORTNAME\tDAB\r\nFILENAME\tnkm-g nkp-g_foto\r\n$\r\n\r\nOBJECT\tUSERINFO\r\nIDENT\tComponenti speciali a richiesta\r\nSHORTNAME\tDAB\r\nDATA\tComponenti speciali a richiesta - normalizzate monoblocco\t\t\r\n$\r\n\r\nOBJECT\tUSERINFO\r\nIDENT\tLibretto\r\nSHORTNAME\tDAB\r\nFILENAME\tCod_001354001.pdf\r\n$\r\n\r\nOBJECT\tUSERINFO\r\nIDENT\tDichiarazione di conformita\r\nSHORTNAME\tDAB\r\nFILENAME\tCod_60164947.pdf\r\n$\r\n\r\nOBJECT\tUSERINFO\r\nIDENT\tCatalogo tecnico\r\nSHORTNAME\tDAB\r\nFILENAME\tCAT14_NKMG-NKPG_BAQV.pdf\r\n$\r\n$\r","-",11,"2015-06-09 09:18:44.870","-"]
["TPumpObj","DAB","NKM-G NKP-G (BAQV) my15","-","-","NKM-G 80-200","ALL","\r\nOBJECT\tPUMP\r\nIDENT\tNKM-G 80-200\r\nNEWID\t{CHARSFDPN[Kl];;;0}/{D2IMP[Kl];;mm;0}/{Matcd[Ws];;;0}/{MATCODE[WD];;;0}/{Power[M];;kW;0;;;;;;,}/{POLES[M];;;0} {NEWID1[M];;;0}\r\nSHORTNAME\tDAB\r\nDATA\tNKM-G NKP-G my15piscina completo\tNKM-G NKP-G my15piscina breve\t\r\nLIMITIND\t0\t0\r\nLIMIT\tTminfluido\t1\t[P]\t6\t32\t0\t\t-10\t-10\r\nLIMIT\tTmaxfluido\t1\t[P]\t6\t32\t0\t\t140\t140\r\nLIMIT\tTmaxambiente\t1\t[P]\t6\t32\t0\t\t40\t40\r\nPAGENO\t4\r\nSERIES\tNKM-G NKP-G (BAQV) my15\r\nDATASHEET\tDAB - scheda tecnica pompe centrifughe norm. Tenute Speciali no brand mot MEI\tDAB - hydraulic\tDAB - dimension  -\t\t\r\nPERFORMANCECHART\tNKM-G 80-200 my15piscina\t\r\nTYPE\t3\tAll\t\r\nSAFETYMARGIN\t5\t1\t0\t1\r\nPHASE\t3\r\nRESISTANCE\t0\r\nMATERIALKEY\tNKM-G_BASIC\t0\r\nMATERIALKEY\tNKM-G_TOP\t0\r\nGRIDCOLUMNS\tARTNR[P]\r\nGRIDCOLUMNS\tNAME[DNs]\r\nGRIDCOLUMNS\tNAME[DNd]\r\nGRIDCOLUMNS\tPOLES[M]\r\nGRIDCOLUMNS\tPOWER[M]\r\nGRIDCOLUMNS\tSPEED[M]\r\nMEASUREMENT\tA\t125\r\nMEASUREMENT\tB\t65\r\nMEASUREMENT\tDNA\t100\r\nMEASUREMENT\tDNM\t80\r\nMEASUREMENT\tE\t-\r\nMEASUREMENT\tF\t301\r\nMEASUREMENT\tG\t365\r\nMEASUREMENT\tH1\t180\r\nMEASUREMENT\tH2\t250\r\nMEASUREMENT\tL\t368\r\nMEASUREMENT\tM1\t125\r\nMEASUREMENT\tM2\t95\r\nMEASUREMENT\tN1\t345\r\nMEASUREMENT\tN2\t280\r\nMEASUREMENT\tS1\tM10\r\nMEASUREMENT\tW\t-\r\nMEASUREMENT\tX\t140\r\nOPTION\t1\r\nORIFICELIMIT\t0,1\t0,9\t0\r\n\r\nOBJECT\tINSTALLATION\r\nIDENT\tPompa monoblocco\r\nNEWID\tMY15piscina\r\nSHORTNAME\tDAB\r\nFILENAME\tNKM_G_B5\r\nWEIGHT\t118\r\nLIMITIND\t0\t0\r\nLIMIT\tMEDT\t1\t[AW]\t6\t11\t1\t\t-10\t140\r\nWEIGHTFORMULA\t$Wg := if POWER[M] = 4 then 118\r\nWEIGHTFORMULA\t$Wg := if POWER[M] = 5,5 then 147\r\nACCSALLOC\tNKM-G NKP-G\r\nFIELDS\t\t0\t0\r\nHIDECOMP\t[AV]\r\nHIDECOMP\t[DN]\r\nHIDECOMP\t[DNd]\r\nHIDECOMP\t[DNs]\r\nHIDECOMP\t[M]\r\nHIDECOMP\t[WD]\r\nHIDECOMP\t[Ws]\r\nSEAL\tDAB\tTenuta meccanica\tBAQV\t\t\t\r\nFORMULA\tA := A[P]\r\nFORMULA\tB := B[P]\r\nFORMULA\tDNA := DNA[P]\r\nFORMULA\tDNM := DNM[P]\r\nFORMULA\tF := if POWER[M] = 4 then 301\r\nFORMULA\tF := if POWER[M] = 5,5 then 390\r\nFORMULA\tG := G[P]\r\nFORMULA\tH1 := H1[P]\r\nFORMULA\tH2 := H2[P]\r\nFORMULA\tL := L[P]\r\nFORMULA\tM1 := M1[P]\r\nFORMULA\tM2 := M2[P]\r\nFORMULA\tN1 := N1[P]\r\nFORMULA\tN2 := N2[P]\r\nFORMULA\tS1 := S1[P]\r\nFORMULA\tX := X[P]\r\nPRICEALLOC\tP\t0\t{CHARSFDPN[Kl];;;0}/{D2IMP[Kl];;mm;0}/{Matcd[Ws];;;0}/{MATCODE[WD];;;0}/{Power[M];;kW;0;;;;;;,}/{POLES[M];;;0} {CHARSFDPN[AV];;;0} {FREQ[M];;Hz;1} {NEWID1[M];;;0}\t\t\t\t\t\t\t\t\t0\r\nZUSEIAVTOGUI\t1\r\n$\r\n\r\nOBJECT\tFLANGES\r\nIDENT\tDN 100 / DN 80\r\nSHORTNAME\tDAB\r\nSUCTIONSIDE\tDN 100\r\nDISCHARGESIDE\tDN 80\r\nVALUES\tDIN 2533\tPN 16\r\nVALUESSUCT\tDIN 2533\tPN 16\r\n$\r\n\r\nOBJECT\tCHECK\r\n$\r\n\r\nOBJECT\tUSERINFO\r\nIDENT\tFoto\r\nSHORTNAME\tDAB\r\nFILENAME\tnkm-g nkp-g_foto\r\n$\r\n\r\nOBJECT\tUSERINFO\r\nIDENT\tComponenti speciali a richiesta\r\nSHORTNAME\tDAB\r\nDATA\tComponenti speciali a richiesta - normalizzate monoblocco\t\t\r\n$\r\n\r\nOBJECT\tUSERINFO\r\nIDENT\tLibretto\r\nSHORTNAME\tDAB\r\nFILENAME\tCod_001354001.pdf\r\n$\r\n\r\nOBJECT\tUSERINFO\r\nIDENT\tDichiarazione di conformita\r\nSHORTNAME\tDAB\r\nFILENAME\tCod_60164947.pdf\r\n$\r\n\r\nOBJECT\tUSERINFO\r\nIDENT\tCatalogo tecnico\r\nSHORTNAME\tDAB\r\nFILENAME\tCAT14_NKMG-NKPG_BAQV.pdf\r\n$\r\n$\r","-",11,"2015-05-14 17:21:23.390","-"]
["TPumpObj","DAB","NKM-G NKP-G (BAQV) my15","-","-","NKM-G 80-250","ALL","\r\nOBJECT\tPUMP\r\nIDENT\tNKM-G 80-250\r\nNEWID\t{CHARSFDPN[Kl];;;0}/{D2IMP[Kl];;mm;0}/{Matcd[Ws];;;0}/{MATCODE[WD];;;0}/{Power[M];;kW;0;;;;;;,}/{POLES[M];;;0} {NEWID1[M];;;0}\r\nSHORTNAME\tDAB\r\nDATA\tNKM-G NKP-G my15piscina completo\tNKM-G NKP-G my15piscina breve\t\r\nLIMITIND\t0\t0\r\nLIMIT\tTminfluido\t1\t[P]\t6\t32\t0\t\t-10\t-10\r\nLIMIT\tTmaxfluido\t1\t[P]\t6\t32\t0\t\t140\t140\r\nLIMIT\tTmaxambiente\t1\t[P]\t6\t32\t0\t\t40\t40\r\nPAGENO\t5\r\nSERIES\tNKM-G NKP-G (BAQV) my15\r\nDATASHEET\tDAB - scheda tecnica pompe centrifughe norm. Tenute Speciali no brand mot MEI\tDAB - hydraulic\tDAB - dimension  -\t\t\r\nPERFORMANCECHART\tNKM-G 80-250 my15piscina\t\r\nTYPE\t3\tAll\t\r\nSAFETYMARGIN\t5\t1\t0\t1\r\nPHASE\t3\r\nRESISTANCE\t0\r\nMATERIALKEY\tNKM-G_BASIC\t0\r\nMATERIALKEY\tNKM-G_TOP\t0\r\nGRIDCOLUMNS\tARTNR[P]\r\nGRIDCOLUMNS\tNAME[DNs]\r\nGRIDCOLUMNS\tNAME[DNd]\r\nGRIDCOLUMNS\tPOLES[M]\r\nGRIDCOLUMNS\tPOWER[M]\r\nGRIDCOLUMNS\tSPEED[M]\r\nMEASUREMENT\t*\t-\r\nMEASUREMENT\tA\t125\r\nMEASUREMENT\tB\t80\r\nMEASUREMENT\tDNA\t100\r\nMEASUREMENT\tDNM\t80\r\nMEASUREMENT\tE\t-\r\nMEASUREMENT\tF\t416\r\nMEASUREMENT\tG\t410\r\nMEASUREMENT\tH1\t200\r\nMEASUREMENT\tH2\t280\r\nMEASUREMENT\tH4\t-\r\nMEASUREMENT\tL\t368\r\nMEASUREMENT\tM1\t160\r\nMEASUREMENT\tM2\t120\r\nMEASUREMENT\tN1\t400\r\nMEASUREMENT\tN2\t315\r\nMEASUREMENT\tN3\t-\r\nMEASUREMENT\tS1\tM14\r\nMEASUREMENT\tS2\t-\r\nMEASUREMENT\tW\t-\r\nMEASUREMENT\tX\t140\r\nOPTION\t1\r\nORIFICELIMIT\t0,1\t0,9\t0\r\n\r\nOBJECT\tINSTALLATION\r\nIDENT\tPompa monoblocco B3/B5\r\nNEWID\tMY15piscina\r\nSHORTNAME\tDAB\r\nFILENAME\tB3-B5_H4\r\nWEIGHT\t172\r\nLIMITIND\t0\t0\r\nLIMIT\tMEDT\t1\t[AW]\t6\t11\t1\t\t-10\t140\r\nWEIGHTFORMULA\t$Wg := if ((POWER[M] >= 7,5) and (NEWID1[M] = IE2)) then --\r\nWEIGHTFORMULA\t$Wg := if ((POWER[M] = 7,5) and (NEWID1[M] = IE3)) then 153\r\nWEIGHTFORMULA\t$Wg := if ((POWER[M] = 11) and (NEWID1[M] = IE3)) then 205\r\nACCSALLOC\tNKM-G NKP-G\r\nFIELDS\t\t0\t0\r\nHIDECOMP\t[AV]\r\nHIDECOMP\t[DN]\r\nHIDECOMP\t[DNd]\r\nHIDECOMP\t[DNs]\r\nHIDECOMP\t[M]\r\nHIDECOMP\t[WD]\r\nHIDECOMP\t[Ws]\r\nSEAL\tDAB\tTenuta meccanica\tBAQV\t\t\t\r\nFORMULA\tA := A[P]\r\nFORMULA\tB := B[P]\r\nFORMULA\tDNA := DNA[P]\r\nFORMULA\tDNM := DNM[P]\r\nFORMULA\tE := if POWER[M] = 7,5 then #45#\r\nFORMULA\tE := if POWER[M] = 11 then 210\r\nFORMULA\tF := if ((POWER[M] >= 7,5) and (NEWID1[M] = IE2)) then --\r\nFORMULA\tF := if ((POWER[M] = 7,5) and (NEWID1[M] = IE3)) then 437\r\nFORMULA\tF := if ((POWER[M] = 11) and (NEWID1[M] = IE3)) then 505\r\nFORMULA\tG := G[P]\r\nFORMULA\tH1 := H1[P]\r\nFORMULA\tH2 := H2[P]\r\nFORMULA\tL := if POWER[M] = 7,5 then 368\r\nFORMULA\tL := if POWER[M] = 11 then 398\r\nFORMULA\tM1 := M1[P]\r\nFORMULA\tM2 := M2[P]\r\nFORMULA\tN1 := N1[P]\r\nFORMULA\tN2 := N2[P]\r\nFORMULA\tS1 := S1[P]\r\nFORMULA\tW := if POWER[M] = 7,5 then #45#\r\nFORMULA\tW := if POWER[M] = 11 then 381\r\nFORMULA\tX := X[P]\r\nFORMULA\tN3 := if POWER[M] = 7,5 then #45#\r\nFORMULA\tN3 := if POWER[M] = 11 then 254\r\nFORMULA\tS2 := if POWER[M] = 7,5 then #45#\r\nFORMULA\tS2 := if POWER[M] = 11 then M12\r\nFORMULA\tH4 := if POWER[M] = 7,5 then #45#\r\nFORMULA\tH4 := if POWER[M] = 11 then 40\r\nPRICEALLOC\tP\t0\t{CHARSFDPN[Kl];;;0}/{D2IMP[Kl];;mm;0}/{Matcd[Ws];;;0}/{MATCODE[WD];;;0}/{Power[M];;kW;0;;;;;;,}/{POLES[M];;;0} {CHARSFDPN[AV];;;0} {FREQ[M];;Hz;1} {NEWID1[M];;;0}\t\t\t\t\t\t\t\t\t0\r\nZUSEIAVTOGUI\t1\r\n$\r\n\r\nOBJECT\tFLANGES\r\nIDENT\tDN 100 / DN 80\r\nSHORTNAME\tDAB\r\nSUCTIONSIDE\tDN 100\r\nDISCHARGESIDE\tDN 80\r\nVALUES\tDIN 2533\tPN 16\r\nVALUESSUCT\tDIN 2533\tPN 16\r\n$\r\n\r\nOBJECT\tCHECK\r\n$\r\n\r\nOBJECT\tUSERINFO\r\nIDENT\tFoto\r\nSHORTNAME\tDAB\r\nFILENAME\tnkm-g nkp-g_foto\r\nLIMITIND\t0\t0\r\nLIMIT\tPOWER\t1\t[M]\t3\t11\t1\t\t7,4\t12\r\n$\r\n\r\nOBJECT\tUSERINFO\r\nIDENT\tFoto B\r\nSHORTNAME\tDAB\r\n$\r\n\r\nOBJECT\tUSERINFO\r\nIDENT\tComponenti speciali a richiesta\r\nSHORTNAME\tDAB\r\nDATA\tComponenti speciali a richiesta - normalizzate monoblocco\t\t\r\n$\r\n\r\nOBJECT\tUSERINFO\r\nIDENT\tLibretto\r\nSHORTNAME\tDAB\r\nFILENAME\tCod_001354001.pdf\r\n$\r\n\r\nOBJECT\tUSERINFO\r\nIDENT\tDichiarazione di conformita\r\nSHORTNAME\tDAB\r\nFILENAME\tCod_60164947.pdf\r\n$\r\n\r\nOBJECT\tUSERINFO\r\nIDENT\tCatalogo tecnico\r\nSHORTNAME\tDAB\r\nFILENAME\tCAT14_NKMG-NKPG_BAQV.pdf\r\n$\r\n$\r","-",11,"2015-05-14 17:21:23.390","-"]
["TPumpObj","DAB","NKM-G NKP-G (BAQV) my15","-","-","NKP-G 40-125","ALL","\r\nOBJECT\tPUMP\r\nIDENT\tNKP-G 40-125\r\nNEWID\t{CHARSFDPN[Kl];;;0}/{D2IMP[Kl];;mm;0}/{Matcd[Ws];;;0}/{MATCODE[WD];;;0}/{Power[M];;kW;0;;;;;;,}/{POLES[M];;;0} {NEWID1[M];;;0}\r\nSHORTNAME\tDAB\r\nDATA\tNKM-G NKP-G my15piscina completo\tNKM-G NKP-G my15piscina breve\t\r\nLIMITIND\t0\t0\r\nLIMIT\tTminfluido\t1\t[P]\t6\t32\t0\t\t-10\t-10\r\nLIMIT\tTmaxfluido\t1\t[P]\t6\t32\t0\t\t140\t140\r\nLIMIT\tTmaxambiente\t1\t[P]\t6\t32\t0\t\t40\t40\r\nPAGENO\t4\r\nSERIES\tNKM-G NKP-G (BAQV) my15\r\nDATASHEET\tDAB - scheda tecnica pompe centrifughe norm. Tenute Speciali no brand mot MEI\tDAB - hydraulic\tDAB - dimension  -\t\t\r\nPERFORMANCECHART\tNKP-G 40-125 my15piscina\t\r\nTYPE\t3\tAll\t\r\nSAFETYMARGIN\t5\t1\t0\t1\r\nPHASE\t3\r\nRESISTANCE\t0\r\nMATERIALKEY\tNKM-G_BASIC\t0\r\nMATERIALKEY\tNKM-G_TOP\t0\r\nGRIDCOLUMNS\tARTNR[P]\r\nGRIDCOLUMNS\tNAME[DNs]\r\nGRIDCOLUMNS\tNAME[DNd]\r\nGRIDCOLUMNS\tPOLES[M]\r\nGRIDCOLUMNS\tPOWER[M]\r\nGRIDCOLUMNS\tSPEED[M]\r\nMEASUREMENT\tA\t80\r\nMEASUREMENT\tB\t50\r\nMEASUREMENT\tDNA\t65\r\nMEASUREMENT\tDNM\t40\r\nMEASUREMENT\tE\t-\r\nMEASUREMENT\tF\t247\r\nMEASUREMENT\tG\t234\r\nMEASUREMENT\tH1\t112\r\nMEASUREMENT\tH2\t140\r\nMEASUREMENT\tH3\t-\r\nMEASUREMENT\tL\t226\r\nMEASUREMENT\tM1\t100\r\nMEASUREMENT\tM2\t70\r\nMEASUREMENT\tN1\t210\r\nMEASUREMENT\tN2\t160\r\nMEASUREMENT\tS1\tM10\r\nMEASUREMENT\tW\t-\r\nMEASUREMENT\tX\t100\r\nOPTION\t1\r\nORIFICELIMIT\t0,1\t0,9\t0\r\n\r\nOBJECT\tINSTALLATION\r\nIDENT\tPompa monoblocco\r\nNEWID\tMY15piscina\r\nSHORTNAME\tDAB\r\nFILENAME\tB5_H3\r\nWEIGHT\t57\r\nLIMITIND\t0\t0\r\nLIMIT\tMEDT\t1\t[AW]\t6\t11\t1\t\t-10\t140\r\nWEIGHTFORMULA\t$Wg :=  if POWER[M] = 1,5 then 57\r\nWEIGHTFORMULA\t$Wg :=  if POWER[M] = 2,2 then 70\r\nWEIGHTFORMULA\t$Wg :=  if POWER[M] = 3 then 76\r\nWEIGHTFORMULA\t\r\nACCSALLOC\tNKM-G NKP-G\r\nFIELDS\t\t0\t0\r\nHIDECOMP\t[AV]\r\nHIDECOMP\t[DN]\r\nHIDECOMP\t[DNd]\r\nHIDECOMP\t[DNs]\r\nHIDECOMP\t[M]\r\nHIDECOMP\t[WD]\r\nHIDECOMP\t[Ws]\r\nSEAL\tDAB\tTenuta meccanica\tBAQV\t\t\t\r\nFORMULA\tA := A[P]\r\nFORMULA\tB := B[P]\r\nFORMULA\tF := if POWER[M] = 1,5 then 247\r\nFORMULA\tF := if POWER[M] = 2,2 then 272\r\nFORMULA\tF := if POWER[M] = 3 then 301\r\nFORMULA\tG := if POWER[M] = 1,5 then 234\r\nFORMULA\tG := if POWER[M] = 2,2 then 234\r\nFORMULA\tG := if POWER[M] = 3 then 300\r\nFORMULA\tH1 := H1[P]\r\nFORMULA\tH2 := H2[P]\r\nFORMULA\tL :=  if POWER[M] = 1,5 then 226\r\nFORMULA\tL :=  if POWER[M] = 2,2 then 226\r\nFORMULA\tL :=  if POWER[M] = 3 then 254\r\nFORMULA\tM1 := M1[P]\r\nFORMULA\tM2 := M2[P]\r\nFORMULA\tN1 := N1[P]\r\nFORMULA\tN2 := N2[P]\r\nFORMULA\tS1 := S1[P]\r\nFORMULA\tX := X[P]\r\nFORMULA\tDNA := DNA[P]\r\nFORMULA\tDNM := DNM[P]\r\nFORMULA\t\r\nFORMULA\tH3 :=  if POWER[M] = 1,5 then  #45#\r\nFORMULA\tH3 :=  if POWER[M] = 2,2 then  #45#\r\nFORMULA\tH3 :=  if POWER[M] = 3 then 20\r\nPRICEALLOC\tP\t0\t{CHARSFDPN[Kl];;;0}/{D2IMP[Kl];;mm;0}/{Matcd[Ws];;;0}/{MATCODE[WD];;;0}/{Power[M];;kW;0;;;;;;,}/{POLES[M];;;0} {CHARSFDPN[AV];;;0} {FREQ[M];;Hz;1} {NEWID1[M];;;0}\t\t\t\t\t\t\t\t\t0\r\nZUSEIAVTOGUI\t1\r\n$\r\n\r\nOBJECT\tFLANGES\r\nIDENT\tDN 65 / DN 40\r\nSHORTNAME\tDAB\r\nSUCTIONSIDE\tDN 65\r\nDISCHARGESIDE\tDN 40\r\nVALUES\tDIN 2533\tPN 16\r\nVALUESSUCT\tDIN 2533\tPN 16\r\n$\r\n\r\nOBJECT\tCHECK\r\n$\r\n\r\nOBJECT\tUSERINFO\r\nIDENT\tFoto\r\nSHORTNAME\tDAB\r\nFILENAME\tnkm-g nkp-g_foto\r\n$\r\n\r\nOBJECT\tUSERINFO\r\nIDENT\tComponenti speciali a richiesta\r\nSHORTNAME\tDAB\r\nDATA\tComponenti speciali a richiesta - normalizzate monoblocco\t\t\r\n$\r\n\r\nOBJECT\tUSERINFO\r\nIDENT\tLibretto\r\nSHORTNAME\tDAB\r\nFILENAME\tCod_001354001.pdf\r\n$\r\n\r\nOBJECT\tUSERINFO\r\nIDENT\tDichiarazione di conformita\r\nSHORTNAME\tDAB\r\nFILENAME\tCod_60164947.pdf\r\n$\r\n\r\nOBJECT\tUSERINFO\r\nIDENT\tCatalogo tecnico\r\nSHORTNAME\tDAB\r\nFILENAME\tCAT14_NKMG-NKPG_BAQV.pdf\r\n$\r\n$\r","-",11,"2015-05-14 17:21:23.390","-"]
["TPumpObj","DAB","NKM-G NKP-G (BAQV) my15","-","-","NKP-G 50-125","ALL","\r\nOBJECT\tPUMP\r\nIDENT\tNKP-G 50-125\r\nNEWID\t{CHARSFDPN[Kl];;;0}/{D2IMP[Kl];;mm;0}/{Matcd[Ws];;;0}/{MATCODE[WD];;;0}/{Power[M];;kW;0;;;;;;,}/{POLES[M];;;0} {NEWID1[M];;;0}\r\nSHORTNAME\tDAB\r\nDATA\tNKM-G NKP-G my15piscina completo\tNKM-G NKP-G my15piscina breve\t\r\nLIMITIND\t0\t0\r\nLIMIT\tTminfluido\t1\t[P]\t6\t32\t0\t\t-10\t-10\r\nLIMIT\tTmaxfluido\t1\t[P]\t6\t32\t0\t\t140\t140\r\nLIMIT\tTmaxambiente\t1\t[P]\t6\t32\t0\t\t40\t40\r\nPAGENO\t4\r\nSERIES\tNKM-G NKP-G (BAQV) my15\r\nDATASHEET\tDAB - scheda tecnica pompe centrifughe norm. Tenute Speciali no brand mot MEI\tDAB - hydraulic\tDAB - dimension  -\t\t\r\nPERFORMANCECHART\tNKP-G 50-125 my15piscina\t\r\nTYPE\t3\tAll\t\r\nSAFETYMARGIN\t5\t1\t0\t1\r\nPHASE\t3\r\nRESISTANCE\t0\r\nMATERIALKEY\tNKM-G_BASIC\t0\r\nMATERIALKEY\tNKM-G_TOP\t0\r\nGRIDCOLUMNS\tARTNR[P]\r\nGRIDCOLUMNS\tNAME[DNs]\r\nGRIDCOLUMNS\tNAME[DNd]\r\nGRIDCOLUMNS\tPOLES[M]\r\nGRIDCOLUMNS\tPOWER[M]\r\nGRIDCOLUMNS\tSPEED[M]\r\nMEASUREMENT\t**\t-\r\nMEASUREMENT\tA\t100\r\nMEASUREMENT\tB\t50\r\nMEASUREMENT\tDNA\t65\r\nMEASUREMENT\tDNM\t50\r\nMEASUREMENT\tE\t-\r\nMEASUREMENT\tF\t301\r\nMEASUREMENT\tG\t251\r\nMEASUREMENT\tH1\t132\r\nMEASUREMENT\tH2\t160\r\nMEASUREMENT\tH3\t-\r\nMEASUREMENT\tL\t274\r\nMEASUREMENT\tM1\t100\r\nMEASUREMENT\tM2\t70\r\nMEASUREMENT\tN1\t240\r\nMEASUREMENT\tN2\t190\r\nMEASUREMENT\tS1\tM10\r\nMEASUREMENT\tW\t-\r\nMEASUREMENT\tX\t100\r\nOPTION\t1\r\nORIFICELIMIT\t0,1\t0,9\t0\r\n\r\nOBJECT\tINSTALLATION\r\nIDENT\tPompa monoblocco\r\nNEWID\tMY15piscina\r\nSHORTNAME\tDAB\r\nFILENAME\tB5_H3\r\nWEIGHT\t78\r\nLIMITIND\t0\t0\r\nLIMIT\tMEDT\t1\t[AW]\t6\t11\t1\t\t-10\t140\r\nWEIGHTFORMULA\t$Wg := if POWER[M] = 3 then 78\r\nWEIGHTFORMULA\t$Wg := if POWER[M] = 4 then 113\r\nWEIGHTFORMULA\t$Wg := if POWER[M] = 5,5 then 115\r\nWEIGHTFORMULA\t\r\nACCSALLOC\tNKM-G NKP-G\r\nFIELDS\t\t0\t0\r\nHIDECOMP\t[AV]\r\nHIDECOMP\t[DN]\r\nHIDECOMP\t[DNd]\r\nHIDECOMP\t[DNs]\r\nHIDECOMP\t[M]\r\nHIDECOMP\t[WD]\r\nHIDECOMP\t[Ws]\r\nSEAL\tDAB\tTenuta meccanica\tBAQV\t\t\t\r\nFORMULA\tA := A[P]\r\nFORMULA\tB := B[P]\r\nFORMULA\tF := if POWER[M] = 3 then 301\r\nFORMULA\tF := if POWER[M] = 4 then 301\r\nFORMULA\tF := if POWER[M] = 5,5 then 390\r\nFORMULA\tG := if POWER[M] = 3 then 251\r\nFORMULA\tG := if POWER[M] = 4 then 251\r\nFORMULA\tG := if POWER[M] = 5,5 then 300\r\nFORMULA\tH1 := H1[P]\r\nFORMULA\tH2 := H2[P]\r\nFORMULA\tL := if POWER[M] = 3 then 274\r\nFORMULA\tL := if POWER[M] = 4 then 274\r\nFORMULA\tL := if POWER[M] = 5,5 then 313\r\nFORMULA\tM1 := M1[P]\r\nFORMULA\tM2 := M2[P]\r\nFORMULA\tN1 := N1[P]\r\nFORMULA\tN2 := N2[P]\r\nFORMULA\tS1 := S1[P]\r\nFORMULA\tX := X[P]\r\nFORMULA\tDNA := DNA[P]\r\nFORMULA\tDNM := DNM[P]\r\nFORMULA\tH3 :=  if POWER[M] = 3 then  #45#\r\nFORMULA\tH3 :=  if POWER[M] = 4 then  #45#\r\nFORMULA\tH3 :=  if POWER[M] = 5,5 then 20\r\nPRICEALLOC\tP\t0\t{CHARSFDPN[Kl];;;0}/{D2IMP[Kl];;mm;0}/{Matcd[Ws];;;0}/{MATCODE[WD];;;0}/{Power[M];;kW;0;;;;;;,}/{POLES[M];;;0} {CHARSFDPN[AV];;;0} {FREQ[M];;Hz;1} {NEWID1[M];;;0}\t\t\t\t\t\t\t\t\t0\r\nZUSEIAVTOGUI\t1\r\n$\r\n\r\nOBJECT\tFLANGES\r\nIDENT\tDN 65 / DN 50\r\nSHORTNAME\tDAB\r\nSUCTIONSIDE\tDN 65\r\nDISCHARGESIDE\tDN 50\r\nVALUES\tDIN 2533\tPN 16\r\nVALUESSUCT\tDIN 2533\tPN 16\r\n$\r\n\r\nOBJECT\tCHECK\r\n$\r\n\r\nOBJECT\tUSERINFO\r\nIDENT\tFoto\r\nSHORTNAME\tDAB\r\nFILENAME\tnkm-g nkp-g_foto\r\n$\r\n\r\nOBJECT\tUSERINFO\r\nIDENT\tComponenti speciali a richiesta\r\nSHORTNAME\tDAB\r\nDATA\tComponenti speciali a richiesta - normalizzate monoblocco\t\t\r\n$\r\n\r\nOBJECT\tUSERINFO\r\nIDENT\tLibretto\r\nSHORTNAME\tDAB\r\nFILENAME\tCod_001354001.pdf\r\n$\r\n\r\nOBJECT\tUSERINFO\r\nIDENT\tDichiarazione di conformita\r\nSHORTNAME\tDAB\r\nFILENAME\tCod_60164947.pdf\r\n$\r\n\r\nOBJECT\tUSERINFO\r\nIDENT\tCatalogo tecnico\r\nSHORTNAME\tDAB\r\nFILENAME\tCAT14_NKMG-NKPG_BAQV.pdf\r\n$\r\n$\r","-",11,"2015-05-14 17:21:23.390","-"]
["TPumpObj","DAB","NKM-G NKP-G (BAQV) my15","-","-","NKP-G 65-125","ALL","\r\nOBJECT\tPUMP\r\nIDENT\tNKP-G 65-125\r\nNEWID\t{CHARSFDPN[Kl];;;0}/{NAME[Kl];;;0}/{Matcd[Ws];;;0}/{MATCODE[WD];;;0}/{Power[M];;kW;0;;;;;;,}/{POLES[M];;;0} {NEWID1[M];;;0}\r\nSHORTNAME\tDAB\r\nDATA\tNKM-G NKP-G my15piscina completo\tNKM-G NKP-G my15piscina breve\t\r\nLIMITIND\t0\t0\r\nLIMIT\tTminfluido\t1\t[P]\t6\t32\t0\t\t-10\t-10\r\nLIMIT\tTmaxfluido\t1\t[P]\t6\t32\t0\t\t140\t140\r\nLIMIT\tTmaxambiente\t1\t[P]\t6\t32\t0\t\t40\t40\r\nPAGENO\t4\r\nSERIES\tNKM-G NKP-G (BAQV) my15\r\nDATASHEET\tDAB - scheda tecnica pompe centrifughe norm. Tenute Speciali no brand mot MEI\tDAB - hydraulic\tDAB - dimension  -\t\t\r\nPERFORMANCECHART\tNKP-G 65-125 my15piscina\t\r\nTYPE\t3\tAll\t\r\nSAFETYMARGIN\t5\t1\t0\t1\r\nPHASE\t3\r\nRESISTANCE\t0\r\nMATERIALKEY\tNKM-G_BASIC\t0\r\nMATERIALKEY\tNKM-G_TOP\t0\r\nGRIDCOLUMNS\tARTNR[P]\r\nGRIDCOLUMNS\tNAME[DNs]\r\nGRIDCOLUMNS\tNAME[DNd]\r\nGRIDCOLUMNS\tPOLES[M]\r\nGRIDCOLUMNS\tPOWER[M]\r\nGRIDCOLUMNS\tSPEED[M]\r\nMEASUREMENT\tA\t100\r\nMEASUREMENT\tB\t65\r\nMEASUREMENT\tDNA\t80\r\nMEASUREMENT\tDNM\t65\r\nMEASUREMENT\tE\t-\r\nMEASUREMENT\tF\t301\r\nMEASUREMENT\tG\t286\r\nMEASUREMENT\tH1\t160\r\nMEASUREMENT\tH2\t180\r\nMEASUREMENT\tL\t274\r\nMEASUREMENT\tM1\t125\r\nMEASUREMENT\tM2\t95\r\nMEASUREMENT\tN1\t280\r\nMEASUREMENT\tN2\t212\r\nMEASUREMENT\tS1\tM10\r\nMEASUREMENT\tW\t-\r\nMEASUREMENT\tX\t100\r\nOPTION\t1\r\nORIFICELIMIT\t0,1\t0,9\t0\r\n\r\nOBJECT\tINSTALLATION\r\nIDENT\tPompa monoblocco\r\nNEWID\tMY15piscina\r\nSHORTNAME\tDAB\r\nFILENAME\tNKM_G_B5\r\nWEIGHT\t104\r\nLIMITIND\t0\t0\r\nLIMIT\tMEDT\t1\t[AW]\t6\t11\t1\t\t-10\t140\r\nWEIGHTFORMULA\t$Wg := if POWER[M] = 4 then 104\r\nWEIGHTFORMULA\t$Wg := if POWER[M] = 5,5 then 113\r\nWEIGHTFORMULA\t$Wg := if ((POWER[M] = 7,5) and (NEWID1[M] = IE2)) then --\r\nWEIGHTFORMULA\t$Wg := if ((POWER[M] = 7,5) and (NEWID1[M] = IE3)) then 94\r\nWEIGHTFORMULA\t\r\nACCSALLOC\tNKM-G NKP-G\r\nFIELDS\t\t0\t0\r\nHIDECOMP\t[AV]\r\nHIDECOMP\t[DN]\r\nHIDECOMP\t[DNd]\r\nHIDECOMP\t[DNs]\r\nHIDECOMP\t[M]\r\nHIDECOMP\t[WD]\r\nHIDECOMP\t[Ws]\r\nSEAL\tDAB\tTenuta meccanica\tBAQV\t\t\t\r\nFORMULA\tA := A[P]\r\nFORMULA\tB := B[P]\r\nFORMULA\tE := E[P]\r\nFORMULA\tF := if POWER[M] = 4 then 301\r\nFORMULA\tF := if POWER[M] = 5,5 then 390\r\nFORMULA\tF := if ((POWER[M] = 7,5) and (NEWID1[M] = IE2)) then --\r\nFORMULA\tF := if ((POWER[M] = 7,5) and (NEWID1[M] = IE3)) then 437\r\nFORMULA\tG := if POWER[M] = 4 then 286\r\nFORMULA\tG := if POWER[M] = 5,5 then 300\r\nFORMULA\tG := if POWER[M] = 7,5 then 300\r\nFORMULA\tH1 := H1[P]\r\nFORMULA\tH2 := H2[P]\r\nFORMULA\tL := if POWER[M] = 4 then 274\r\nFORMULA\tL := if POWER[M] = 5,5 then 313\r\nFORMULA\tL := if POWER[M] = 7,5 then 313\r\nFORMULA\tM1 := M1[P]\r\nFORMULA\tM2 := M2[P]\r\nFORMULA\tN1 := N1[P]\r\nFORMULA\tN2 := N2[P]\r\nFORMULA\tS1 := S1[P]\r\nFORMULA\tW := W[P]\r\nFORMULA\tX := X[P]\r\nFORMULA\t\r\nFORMULA\tDNA := DNA[P]\r\nFORMULA\tDNM := DNM[P]\r\nPRICEALLOC\tP\t0\t{CHARSFDPN[Kl];;;0}/{NAME[Kl];;;0}/{Matcd[Ws];;;0}/{MATCODE[WD];;;0}/{Power[M];;kW;0;;;;;;,}/{POLES[M];;;0} {CHARSFDPN[AV];;;0} {FREQ[M];;Hz;1} {NEWID1[M];;;0}\t\t\t\t\t\t\t\t\t0\r\nZUSEIAVTOGUI\t1\r\n$\r\n\r\nOBJECT\tFLANGES\r\nIDENT\tDN 80 / DN 65\r\nSHORTNAME\tDAB\r\nSUCTIONSIDE\tDN 80\r\nDISCHARGESIDE\tDN 65\r\nVALUES\tDIN 2533\tPN 16\r\nVALUESSUCT\tDIN 2533\tPN 16\r\n$\r\n\r\nOBJECT\tCHECK\r\n$\r\n\r\nOBJECT\tUSERINFO\r\nIDENT\tFoto\r\nSHORTNAME\tDAB\r\nFILENAME\tnkm-g nkp-g_foto\r\n$\r\n\r\nOBJECT\tUSERINFO\r\nIDENT\tComponenti speciali a richiesta\r\nSHORTNAME\tDAB\r\nDATA\tComponenti speciali a richiesta - normalizzate monoblocco\t\t\r\n$\r\n\r\nOBJECT\tUSERINFO\r\nIDENT\tLibretto\r\nSHORTNAME\tDAB\r\nFILENAME\tCod_001354001.pdf\r\n$\r\n\r\nOBJECT\tUSERINFO\r\nIDENT\tDichiarazione di conformita\r\nSHORTNAME\tDAB\r\nFILENAME\tCod_60164947.pdf\r\n$\r\n\r\nOBJECT\tUSERINFO\r\nIDENT\tCatalogo tecnico\r\nSHORTNAME\tDAB\r\nFILENAME\tCAT14_NKMG-NKPG_BAQV.pdf\r\n$\r\n$\r","-",11,"2015-05-14 17:21:23.390","-"]
["TPumpObj","DAB","NKM-G NKP-G (BAQV) my15","-","-","NKP-G 80-160","ALL","\r\nOBJECT\tPUMP\r\nIDENT\tNKP-G 80-160\r\nNEWID\t{CHARSFDPN[Kl];;;0}/{NAME[Kl];;;0}/{Matcd[Ws];;;0}/{MATCODE[WD];;;0}/{Power[M];;kW;0;;;;;;,}/{POLES[M];;;0} {NEWID1[M];;;0}\r\nSHORTNAME\tDAB\r\nDATA\tNKM-G NKP-G my15piscina completo\tNKM-G NKP-G my15piscina breve\t\r\nLIMITIND\t0\t0\r\nLIMIT\tTminfluido\t1\t[P]\t6\t32\t0\t\t-10\t-10\r\nLIMIT\tTmaxfluido\t1\t[P]\t6\t32\t0\t\t140\t140\r\nLIMIT\tTmaxambiente\t1\t[P]\t6\t32\t0\t\t40\t40\r\nPAGENO\t4\r\nSERIES\tNKM-G NKP-G (BAQV) my15\r\nDATASHEET\tDAB - scheda tecnica pompe centrifughe norm. Tenute Speciali no brand mot MEI\tDAB - hydraulic\tDAB - dimension  -\t\t\r\nPERFORMANCECHART\tNKP-G 80-160 my15piscina\t\r\nTYPE\t3\tAll\t\r\nSAFETYMARGIN\t5\t1\t0\t1\r\nPHASE\t3\r\nRESISTANCE\t0\r\nMATERIALKEY\tNKM-G_BASIC\t0\r\nMATERIALKEY\tNKM-G_TOP\t0\r\nGRIDCOLUMNS\tARTNR[P]\r\nGRIDCOLUMNS\tNAME[DNs]\r\nGRIDCOLUMNS\tNAME[DNd]\r\nGRIDCOLUMNS\tPOLES[M]\r\nGRIDCOLUMNS\tPOWER[M]\r\nGRIDCOLUMNS\tSPEED[M]\r\nMEASUREMENT\t*\t-\r\nMEASUREMENT\tA\t125\r\nMEASUREMENT\tB\t67\r\nMEASUREMENT\tDNA\t100\r\nMEASUREMENT\tDNM\t80\r\nMEASUREMENT\tE\t210\r\nMEASUREMENT\tF\t460\r\nMEASUREMENT\tG\t350\r\nMEASUREMENT\tH1\t160\r\nMEASUREMENT\tH2\t225\r\nMEASUREMENT\tH4\t20\r\nMEASUREMENT\tL\t368\r\nMEASUREMENT\tM1\t-\r\nMEASUREMENT\tM2\t-\r\nMEASUREMENT\tN1\t314\r\nMEASUREMENT\tN2\t254\r\nMEASUREMENT\tS1\tM12\r\nMEASUREMENT\tW\t351\r\nMEASUREMENT\tX\t140\r\nOPTION\t1\r\nORIFICELIMIT\t0,1\t0,9\t0\r\n\r\nOBJECT\tINSTALLATION\r\nIDENT\tPompa monoblocco B3/B5\r\nNEWID\tMY15piscina\r\nSHORTNAME\tDAB\r\nFILENAME\tB5_H4\r\nWEIGHT\t136,8\r\nLIMITIND\t0\t0\r\nLIMIT\tMEDT\t1\t[AW]\t6\t11\t1\t\t-10\t140\r\nWEIGHTFORMULA\t$Wg := if NEWID1[M] = IE2 then --\r\nWEIGHTFORMULA\t$Wg := if NEWID1[M] = IE3 then 179\r\nWEIGHTFORMULA\t\r\nACCSALLOC\tNKM-G NKP-G\r\nFIELDS\t\t0\t0\r\nHIDECOMP\t[AV]\r\nHIDECOMP\t[DN]\r\nHIDECOMP\t[DNd]\r\nHIDECOMP\t[DNs]\r\nHIDECOMP\t[M]\r\nHIDECOMP\t[WD]\r\nHIDECOMP\t[Ws]\r\nSEAL\tDAB\tTenuta meccanica\tBAQV\t\t\t\r\nFORMULA\tA := A[P]\r\nFORMULA\tB := B[P]\r\nFORMULA\tE := E[P]\r\nFORMULA\tF := if NEWID1[M] = IE2 then --\r\nFORMULA\tF := if NEWID1[M] = IE3 then 505\r\nFORMULA\tG := G[P]\r\nFORMULA\tH1 := H1[P]\r\nFORMULA\tH2 := H2[P]\r\nFORMULA\tL := L[P]\r\nFORMULA\tM1 := M1[P]\r\nFORMULA\tM2 := M2[P]\r\nFORMULA\tN1 := N1[P]\r\nFORMULA\tN2 := N2[P]\r\nFORMULA\tS1 := S1[P]\r\nFORMULA\tW := W[P]\r\nFORMULA\tX := X[P]\r\nFORMULA\tDNA := DNA[P]\r\nFORMULA\tDNM := DNM[P]\r\nFORMULA\tH4 := H4[P]\r\nPRICEALLOC\tP\t0\t{CHARSFDPN[Kl];;;0}/{NAME[Kl];;;0}/{Matcd[Ws];;;0}/{MATCODE[WD];;;0}/{Power[M];;kW;0;;;;;;,}/{POLES[M];;;0} {CHARSFDPN[AV];;;0} {FREQ[M];;Hz;1} {NEWID1[M];;;0}\t\t\t\t\t\t\t\t\t0\r\nZUSEIAVTOGUI\t1\r\n$\r\n\r\nOBJECT\tFLANGES\r\nIDENT\tDN 100 / DN 80\r\nSHORTNAME\tDAB\r\nSUCTIONSIDE\tDN 100\r\nDISCHARGESIDE\tDN 80\r\nVALUES\tDIN 2533\tPN 16\r\nVALUESSUCT\tDIN 2533\tPN 16\r\n$\r\n\r\nOBJECT\tCHECK\r\n$\r\n\r\nOBJECT\tUSERINFO\r\nIDENT\tFoto\r\nSHORTNAME\tDAB\r\nFILENAME\tnkm-g nkp-g_foto\r\n$\r\n\r\nOBJECT\tUSERINFO\r\nIDENT\tComponenti speciali a richiesta\r\nSHORTNAME\tDAB\r\nDATA\tComponenti speciali a richiesta - normalizzate monoblocco\t\t\r\n$\r\n\r\nOBJECT\tUSERINFO\r\nIDENT\tLibretto\r\nSHORTNAME\tDAB\r\nFILENAME\tCod_001354001.pdf\r\n$\r\n\r\nOBJECT\tUSERINFO\r\nIDENT\tDichiarazione di conformita\r\nSHORTNAME\tDAB\r\nFILENAME\tCod_60164947.pdf\r\n$\r\n\r\nOBJECT\tUSERINFO\r\nIDENT\tCatalogo tecnico\r\nSHORTNAME\tDAB\r\nFILENAME\tCAT14_NKMG-NKPG_BAQV.pdf\r\n$\r\n$\r","-",11,"2015-05-14 17:21:23.390","-"]
["TPumpObj","DAB","NKM-G NKP-G my11","-","-","NKM-G 100-200","ALL","\r\nOBJECT\tPUMP\r\nIDENT\tNKM-G 100-200\r\nNEWID\t{NAME[Kg];;;0}/{D2IMP[Kl];;mm;0}/{Matcd[Ws];;;0}/{MATCODE[WD];;;0}/{Power[M];;kW;0;;;;;;,}/{POLES[M];;;0} {NEWID1[M];;;0}\r\nSHORTNAME\tDAB\r\nDATA\tNKM-G Completo\tNKM-G breve\tKDN suggerimento\r\nLIMITIND\t0\t0\r\nLIMIT\tTminfluido\t1\t[P]\t6\t32\t0\t\t-10\t-10\r\nLIMIT\tTmaxfluido\t1\t[P]\t6\t32\t0\t\t140\t140\r\nLIMIT\tTmaxambiente\t1\t[P]\t6\t32\t0\t\t40\t40\r\nPAGENO\t5\r\nSERIES\tNKM-G NKP-G my11\r\nDATASHEET\tDAB - scheda tecnica pompe centrifughe norm. Tenute Speciali no brand mot MEI\tDAB - hydraulic\tDAB - dimension  -\t\t\r\nPERFORMANCECHART\tNKM-G 100-200\t\r\nTYPE\t3\tAll\t\r\nSAFETYMARGIN\t5\t1\t0\t1\r\nPHASE\t3\r\nRESISTANCE\t0\r\nMATERIALKEY\tNKM-G_tenute speciali\t0\r\nGRIDCOLUMNS\tARTNR[P]\r\nGRIDCOLUMNS\tNAME[DNs]\r\nGRIDCOLUMNS\tNAME[DNd]\r\nGRIDCOLUMNS\tPOLES[M]\r\nGRIDCOLUMNS\tPOWER[M]\r\nGRIDCOLUMNS\tSPEED[M]\r\nMEASUREMENT\tA\t125\r\nMEASUREMENT\tB\t80\r\nMEASUREMENT\tDNA\t125\r\nMEASUREMENT\tDNM\t100\r\nMEASUREMENT\tE\t-\r\nMEASUREMENT\tF\t390\r\nMEASUREMENT\tG\t392\r\nMEASUREMENT\tH1\t200\r\nMEASUREMENT\tH2\t280\r\nMEASUREMENT\tL\t368\r\nMEASUREMENT\tM1\t160\r\nMEASUREMENT\tM2\t120\r\nMEASUREMENT\tN1\t360\r\nMEASUREMENT\tN2\t280\r\nMEASUREMENT\tS1\tM14\r\nMEASUREMENT\tW\t-\r\nMEASUREMENT\tX\t140\r\nOPTION\t1\r\nORIFICELIMIT\t0,1\t0,9\t0\r\n\r\nOBJECT\tINSTALLATION\r\nIDENT\tPompa monoblocco\r\nNEWID\tMY11\r\nSHORTNAME\tDAB\r\nFILENAME\tNKM_G_B5\r\nWEIGHT\t160\r\nLIMITIND\t0\t0\r\nLIMIT\tMEDT\t1\t[AW]\t6\t11\t1\t\t-10\t140\r\nWEIGHTFORMULA\t$Wg := if POWER[M] = 5,5 then 160\r\nWEIGHTFORMULA\t$Wg := if ((POWER[M] = 7,5) and (NEWID1[M] = IE2)) then --\r\nWEIGHTFORMULA\t$Wg := if ((POWER[M] = 7,5) and (NEWID1[M] = IE3)) then 149\r\nWEIGHTFORMULA\t\r\nACCSALLOC\tNKM-G NKP-G\r\nFIELDS\t\t0\t0\r\nHIDECOMP\t[AV]\r\nHIDECOMP\t[DN]\r\nHIDECOMP\t[DNd]\r\nHIDECOMP\t[DNs]\r\nHIDECOMP\t[M]\r\nHIDECOMP\t[WD]\r\nHIDECOMP\t[Ws]\r\nSEAL\tDAB\tTenuta meccanica\tBAQE\t\t\t\r\nSEAL\tDAB\tTenuta meccanica\tBQQE\t\t\t\r\nSEAL\tDAB\tTenuta meccanica\tBQQV\t\t\t\r\nSEAL\tDAB\tTenuta meccanica\tBAQV\t\t\t\r\nFORMULA\tA := A[P]\r\nFORMULA\tB := B[P]\r\nFORMULA\tDNA := DNA[P]\r\nFORMULA\tDNM := DNM[P]\r\nFORMULA\tE := E[P]\r\nFORMULA\tF := if POWER[M] = 5,5 then 390\r\nFORMULA\tF := if ((POWER[M] = 7,5) and (NEWID1[M] = IE2)) then --\r\nFORMULA\tF := if ((POWER[M] = 7,5) and (NEWID1[M] = IE3)) then 437\r\nFORMULA\tG := G[P]\r\nFORMULA\tH1 := H1[P]\r\nFORMULA\tH2 := H2[P]\r\nFORMULA\tL := L[P]\r\nFORMULA\tM1 := M1[P]\r\nFORMULA\tM2 := M2[P]\r\nFORMULA\tN1 := N1[P]\r\nFORMULA\tN2 := N2[P]\r\nFORMULA\tS1 := S1[P]\r\nFORMULA\tW := W[P]\r\nFORMULA\tX := X[P]\r\nPRICEALLOC\tP\t0\t{NAME[Kg];;;0}/{D2IMP[Kl];;mm;0}/{Matcd[Ws];;;0}/{MATCODE[WD];;;0}/{Power[M];;kW;0;;;;;;,}/{POLES[M];;;0} {CHARSFDPN[AV];;;0} {FREQ[M];;Hz;1} {NEWID1[M];;;0}\t\t\t\t\t\t\t\t\t0\r\nZUSEIAVTOGUI\t1\r\n$\r\n\r\nOBJECT\tFLANGES\r\nIDENT\tDN 125 / DN 100\r\nSHORTNAME\tDAB\r\nSUCTIONSIDE\tDN 125\r\nDISCHARGESIDE\tDN 100\r\nVALUES\tDIN 2533\tPN 16\r\nVALUESSUCT\tDIN 2533\tPN 16\r\n$\r\n\r\nOBJECT\tCHECK\r\n$\r\n\r\nOBJECT\tUSERINFO\r\nIDENT\tCAD\r\nSHORTNAME\tDAB\r\nFILENAME\tNKM-G_100-200.rar\r\n$\r\n\r\nOBJECT\tUSERINFO\r\nIDENT\tComponenti speciali a richiesta\r\nSHORTNAME\tDAB\r\nDATA\tComponenti speciali a richiesta - normalizzate monoblocco\t\t\r\n$\r\n\r\nOBJECT\tUSERINFO\r\nIDENT\tLibretto\r\nSHORTNAME\tDAB\r\nFILENAME\tCod_001354001.pdf\r\n$\r\n\r\nOBJECT\tUSERINFO\r\nIDENT\tDichiarazione di conformita\r\nSHORTNAME\tDAB\r\nFILENAME\tCod_60164947.pdf\r\n$\r\n\r\nOBJECT\tUSERINFO\r\nIDENT\tFoto\r\nSHORTNAME\tDAB\r\nFILENAME\tnkm-g nkp-g_foto\r\n$\r\n\r\nOBJECT\tUSERINFO\r\nIDENT\tCatalogo tecnico\r\nSHORTNAME\tDAB\r\nFILENAME\tCAT14_NKM-G_NKP-G.pdf\r\n$\r\n$\r","-",11,"2016-07-06 15:12:43.096","-"]
["TPumpObj","DAB","NKM-G NKP-G my11","-","-","NKM-G 100-250","ALL","\r\nOBJECT\tPUMP\r\nIDENT\tNKM-G 100-250\r\nNEWID\t{NAME[Kg];;;0}/{D2IMP[Kl];;mm;0}/{Matcd[Ws];;;0}/{MATCODE[WD];;;0}/{Power[M];;kW;0;;;;;;,}/{POLES[M];;;0} {NEWID1[M];;;0}\r\nSHORTNAME\tDAB\r\nDATA\tNKM-G Completo\tNKM-G breve\tKDN suggerimento\r\nLIMITIND\t0\t0\r\nLIMIT\tTminfluido\t1\t[P]\t6\t32\t0\t\t-10\t-10\r\nLIMIT\tTmaxfluido\t1\t[P]\t6\t32\t0\t\t140\t140\r\nLIMIT\tTmaxambiente\t1\t[P]\t6\t32\t0\t\t40\t40\r\nPAGENO\t5\r\nSERIES\tNKM-G NKP-G my11\r\nDATASHEET\tDAB - scheda tecnica pompe centrifughe norm. Tenute Speciali no brand mot MEI\tDAB - hydraulic\tDAB - dimension  -\t\t\r\nPERFORMANCECHART\tNKM-G 100-250\t\r\nTYPE\t3\tAll\t\r\nSAFETYMARGIN\t5\t1\t0\t1\r\nPHASE\t3\r\nRESISTANCE\t0\r\nMATERIALKEY\tNKM-G_tenute speciali\t0\r\nGRIDCOLUMNS\tARTNR[P]\r\nGRIDCOLUMNS\tNAME[DNs]\r\nGRIDCOLUMNS\tNAME[DNd]\r\nGRIDCOLUMNS\tPOLES[M]\r\nGRIDCOLUMNS\tPOWER[M]\r\nGRIDCOLUMNS\tSPEED[M]\r\nMEASUREMENT\t*\t-\r\nMEASUREMENT\tA\t140\r\nMEASUREMENT\tB\t80\r\nMEASUREMENT\tDNA\t125\r\nMEASUREMENT\tDNM\t100\r\nMEASUREMENT\tE\t210\r\nMEASUREMENT\tF\t460\r\nMEASUREMENT\tG\t424\r\nMEASUREMENT\tH1\t225\r\nMEASUREMENT\tH2\t280\r\nMEASUREMENT\tH4\t65\r\nMEASUREMENT\tL\t413\r\nMEASUREMENT\tM1\t160\r\nMEASUREMENT\tM2\t120\r\nMEASUREMENT\tN1\t400\r\nMEASUREMENT\tN2\t315\r\nMEASUREMENT\tN3\t254\r\nMEASUREMENT\tS1\tM14\r\nMEASUREMENT\tS2\tM12\r\nMEASUREMENT\tW\t381\r\nMEASUREMENT\tX\t140\r\nOPTION\t1\r\nORIFICELIMIT\t0,1\t0,9\t0\r\n\r\nOBJECT\tINSTALLATION\r\nIDENT\tPompa monoblocco B3/B5\r\nNEWID\tMY11\r\nSHORTNAME\tDAB\r\nFILENAME\tB3-B5_H4\r\nWEIGHT\t232\r\nLIMITIND\t0\t0\r\nLIMIT\tMEDT\t1\t[AW]\t6\t11\t1\t\t-10\t140\r\nWEIGHTFORMULA\t$Wg := if ((POWER[M] >= 11) and (NEWID1[M] = IE2)) then --\r\nWEIGHTFORMULA\t$Wg := if ((POWER[M] = 11) and (NEWID1[M] = IE3)) then 213\r\nWEIGHTFORMULA\t$Wg := if ((POWER[M] = 15) and (NEWID1[M] = IE3)) then 237\r\nWEIGHTFORMULA\t\r\nACCSALLOC\tNKM-G NKP-G\r\nFIELDS\t\t0\t0\r\nHIDECOMP\t[AV]\r\nHIDECOMP\t[DN]\r\nHIDECOMP\t[DNd]\r\nHIDECOMP\t[DNs]\r\nHIDECOMP\t[M]\r\nHIDECOMP\t[WD]\r\nHIDECOMP\t[Ws]\r\nSEAL\tDAB\tTenuta meccanica\tBAQE\t\t\t\r\nSEAL\tDAB\tTenuta meccanica\tBQQE\t\t\t\r\nSEAL\tDAB\tTenuta meccanica\tBQQV\t\t\t\r\nSEAL\tDAB\tTenuta meccanica\tBAQV\t\t\t\r\nFORMULA\tA := A[P]\r\nFORMULA\tB := B[P]\r\nFORMULA\tDNA := DNA[P]\r\nFORMULA\tDNM := DNM[P]\r\nFORMULA\tE := if POWER[M] = 11 then 210\r\nFORMULA\tE := if POWER[M] = 15 then 254\r\nFORMULA\tF := if ((POWER[M] >= 11) and (NEWID1[M] = IE2)) then --\r\nFORMULA\tF := if ((POWER[M] = 11) and (NEWID1[M] = IE3)) then 505\r\nFORMULA\tF := if ((POWER[M] = 15) and (NEWID1[M] = IE3)) then 548\r\nFORMULA\tG := G[P]\r\nFORMULA\tH1 := H1[P]\r\nFORMULA\tH2 := H2[P]\r\nFORMULA\tL := L[P]\r\nFORMULA\tM1 := M1[P]\r\nFORMULA\tM2 := M2[P]\r\nFORMULA\tN1 := N1[P]\r\nFORMULA\tN2 := N2[P]\r\nFORMULA\tS1 := S1[P]\r\nFORMULA\tW := W[P]\r\nFORMULA\tX := X[P]\r\nFORMULA\tN3 := N3[P]\r\nFORMULA\tS2 := S2[P]\r\nFORMULA\tH4 := H4[P]\r\nPRICEALLOC\tP\t0\t{NAME[Kg];;;0}/{D2IMP[Kl];;mm;0}/{Matcd[Ws];;;0}/{MATCODE[WD];;;0}/{Power[M];;kW;0;;;;;;,}/{POLES[M];;;0} {CHARSFDPN[AV];;;0} {FREQ[M];;Hz;1} {NEWID1[M];;;0}\t\t\t\t\t\t\t\t\t0\r\nZUSEIAVTOGUI\t1\r\n$\r\n\r\nOBJECT\tFLANGES\r\nIDENT\tDN 125 / DN 100\r\nSHORTNAME\tDAB\r\nSUCTIONSIDE\tDN 125\r\nDISCHARGESIDE\tDN 100\r\nVALUES\tDIN 2533\tPN 16\r\nVALUESSUCT\tDIN 2533\tPN 16\r\n$\r\n\r\nOBJECT\tCHECK\r\n$\r\n\r\nOBJECT\tUSERINFO\r\nIDENT\tCAD\r\nSHORTNAME\tDAB\r\nFILENAME\tNKM-G_100-250.rar\r\n$\r\n\r\nOBJECT\tUSERINFO\r\nIDENT\tComponenti speciali a richiesta\r\nSHORTNAME\tDAB\r\nDATA\tComponenti speciali a richiesta - normalizzate monoblocco\t\t\r\n$\r\n\r\nOBJECT\tUSERINFO\r\nIDENT\tLibretto\r\nSHORTNAME\tDAB\r\nFILENAME\tCod_001354001.pdf\r\n$\r\n\r\nOBJECT\tUSERINFO\r\nIDENT\tDichiarazione di conformita\r\nSHORTNAME\tDAB\r\nFILENAME\tCod_60164947.pdf\r\n$\r\n\r\nOBJECT\tUSERINFO\r\nIDENT\tFoto\r\nSHORTNAME\tDAB\r\nFILENAME\tnkm-g nkp-g_foto\r\n$\r\n\r\nOBJECT\tUSERINFO\r\nIDENT\tCatalogo tecnico\r\nSHORTNAME\tDAB\r\nFILENAME\tCAT14_NKM-G_NKP-G.pdf\r\n$\r\n$\r","-",11,"2016-03-08 14:02:45.013","-"]
["TPumpObj","DAB","NKM-G NKP-G my11","-","-","NKM-G 100-315","ALL","\r\nOBJECT\tPUMP\r\nIDENT\tNKM-G 100-315\r\nNEWID\t{NAME[Kg];;;0}/{D2IMP[Kl];;mm;0}/{Matcd[Ws];;;0}/{MATCODE[WD];;;0}/{Power[M];;kW;0;;;;;;,}/{POLES[M];;;0} {NEWID1[M];;;0}\r\nSHORTNAME\tDAB\r\nDATA\tNKM-G Completo\tNKM-G breve\tKDN suggerimento\r\nLIMITIND\t0\t0\r\nLIMIT\tTminfluido\t1\t[P]\t6\t32\t0\t\t-10\t-10\r\nLIMIT\tTmaxfluido\t1\t[P]\t6\t32\t0\t\t140\t140\r\nLIMIT\tTmaxambiente\t1\t[P]\t6\t32\t0\t\t40\t40\r\nPAGENO\t5\r\nSERIES\tNKM-G NKP-G my11\r\nDATASHEET\tDAB - scheda tecnica pompe centrifughe norm. Tenute Speciali no brand mot MEI\tDAB - hydraulic\tDAB - dimension  -\t\t\r\nPERFORMANCECHART\tNKM-G 100-315\t\r\nTYPE\t3\tAll\t\r\nSAFETYMARGIN\t5\t1\t0\t1\r\nPHASE\t3\r\nRESISTANCE\t0\r\nMATERIALKEY\tNKM-G_tenute speciali\t0\r\nGRIDCOLUMNS\tARTNR[P]\r\nGRIDCOLUMNS\tNAME[DNs]\r\nGRIDCOLUMNS\tNAME[DNd]\r\nGRIDCOLUMNS\tPOLES[M]\r\nGRIDCOLUMNS\tPOWER[M]\r\nGRIDCOLUMNS\tSPEED[M]\r\nMEASUREMENT\tA\t140\r\nMEASUREMENT\tB\t80\r\nMEASUREMENT\tDNA\t125\r\nMEASUREMENT\tDNM\t100\r\nMEASUREMENT\tE\t241\r\nMEASUREMENT\tF\t580\r\nMEASUREMENT\tG\t478\r\nMEASUREMENT\tH1\t250\r\nMEASUREMENT\tH2\t315\r\nMEASUREMENT\tH4\t70\r\nMEASUREMENT\tL\t413\r\nMEASUREMENT\tM1\t160\r\nMEASUREMENT\tM2\t120\r\nMEASUREMENT\tN1\t400\r\nMEASUREMENT\tN2\t315\r\nMEASUREMENT\tN3\t279\r\nMEASUREMENT\tS1\tM14\r\nMEASUREMENT\tS2\tM12\r\nMEASUREMENT\tW\t529\r\nMEASUREMENT\tX\t140\r\nOPTION\t1\r\nORIFICELIMIT\t0,1\t0,9\t0\r\n\r\nOBJECT\tINSTALLATION\r\nIDENT\tPompa monoblocco B3/B5\r\nNEWID\tMY11\r\nSHORTNAME\tDAB\r\nFILENAME\tB3-B5_H4\r\nWEIGHT\t297\r\nLIMITIND\t0\t0\r\nLIMIT\tMEDT\t1\t[AW]\t6\t11\t1\t\t-10\t140\r\nWEIGHTFORMULA\t$Wg := if ((POWER[M] >= 18,5) and (NEWID1[M] = IE2)) then --\r\nWEIGHTFORMULA\t$Wg := if ((POWER[M] = 18,5) and (NEWID1[M] = IE3)) then 257\r\nWEIGHTFORMULA\t$Wg := if ((POWER[M] = 22) and (NEWID1[M] = IE3)) then 272\r\nACCSALLOC\tNKM-G NKP-G\r\nFIELDS\t\t0\t0\r\nHIDECOMP\t[AV]\r\nHIDECOMP\t[DN]\r\nHIDECOMP\t[DNd]\r\nHIDECOMP\t[DNs]\r\nHIDECOMP\t[M]\r\nHIDECOMP\t[WD]\r\nHIDECOMP\t[Ws]\r\nSEAL\tDAB\tTenuta meccanica\tBAQE\t\t\t\r\nSEAL\tDAB\tTenuta meccanica\tBQQE\t\t\t\r\nSEAL\tDAB\tTenuta meccanica\tBQQV\t\t\t\r\nSEAL\tDAB\tTenuta meccanica\tBAQV\t\t\t\r\nFORMULA\tA := A[P]\r\nFORMULA\tB := B[P]\r\nFORMULA\tDNA := DNA[P]\r\nFORMULA\tDNM := DNM[P]\r\nFORMULA\tE := if POWER[M] = 18,5 then 241\r\nFORMULA\tE := if POWER[M] = 22 then 279\r\nFORMULA\tF := if NEWID1[M] = IE2 then --\r\nFORMULA\tF := if NEWID1[M] = IE3 then 580\r\nFORMULA\tG := G[P]\r\nFORMULA\tH1 := H1[P]\r\nFORMULA\tH2 := H2[P]\r\nFORMULA\tL := L[P]\r\nFORMULA\tM1 := M1[P]\r\nFORMULA\tM2 := M2[P]\r\nFORMULA\tN1 := N1[P]\r\nFORMULA\tN2 := N2[P]\r\nFORMULA\tS1 := S1[P]\r\nFORMULA\tW := if POWER[M] = 18,5 then 529\r\nFORMULA\tW := if POWER[M] = 22 then 415\r\nFORMULA\tX := X[P]\r\nFORMULA\tN3 := N3[P]\r\nFORMULA\tS2 := S2[P]\r\nFORMULA\tH4 := H4[P]\r\nPRICEALLOC\tP\t0\t{NAME[Kg];;;0}/{D2IMP[Kl];;mm;0}/{Matcd[Ws];;;0}/{MATCODE[WD];;;0}/{Power[M];;kW;0;;;;;;,}/{POLES[M];;;0} {CHARSFDPN[AV];;;0} {FREQ[M];;Hz;1} {NEWID1[M];;;0}\t\t\t\t\t\t\t\t\t0\r\nZUSEIAVTOGUI\t1\r\n$\r\n\r\nOBJECT\tFLANGES\r\nIDENT\tDN 125 / DN 100\r\nSHORTNAME\tDAB\r\nSUCTIONSIDE\tDN 125\r\nDISCHARGESIDE\tDN 100\r\nVALUES\tDIN 2533\tPN 16\r\nVALUESSUCT\tDIN 2533\tPN 16\r\n$\r\n\r\nOBJECT\tCHECK\r\n$\r\n\r\nOBJECT\tUSERINFO\r\nIDENT\tCAD\r\nSHORTNAME\tDAB\r\nFILENAME\tNKM-G_100-315.rar\r\n$\r\n\r\nOBJECT\tUSERINFO\r\nIDENT\tComponenti speciali a richiesta\r\nSHORTNAME\tDAB\r\nDATA\tComponenti speciali a richiesta - normalizzate monoblocco\t\t\r\n$\r\n\r\nOBJECT\tUSERINFO\r\nIDENT\tLibretto\r\nSHORTNAME\tDAB\r\nFILENAME\tCod_001354001.pdf\r\n$\r\n\r\nOBJECT\tUSERINFO\r\nIDENT\tDichiarazione di conformita\r\nSHORTNAME\tDAB\r\nFILENAME\tCod_60164947.pdf\r\n$\r\n\r\nOBJECT\tUSERINFO\r\nIDENT\tFoto\r\nSHORTNAME\tDAB\r\nFILENAME\tnkm-g nkp-g_foto\r\n$\r\n\r\nOBJECT\tUSERINFO\r\nIDENT\tCatalogo tecnico\r\nSHORTNAME\tDAB\r\nFILENAME\tCAT14_NKM-G_NKP-G.pdf\r\n$\r\n$\r","-",11,"2016-03-08 14:02:45.018","-"]
["TPumpObj","DAB","NKM-G NKP-G my11","-","-","NKM-G 125-250","ALL","\r\nOBJECT\tPUMP\r\nIDENT\tNKM-G 125-250\r\nNEWID\t{NAME[Kg];;;0}/{D2IMP[Kl];;mm;0}/{Matcd[Ws];;;0}/{MATCODE[WD];;;0}/{Power[M];;kW;0;;;;;;,}/{POLES[M];;;0} {NEWID1[M];;;0}\r\nSHORTNAME\tDAB\r\nDATA\tNKM-G Completo\tNKM-G breve\tKDN suggerimento\r\nLIMITIND\t0\t0\r\nLIMIT\tTminfluido\t1\t[P]\t6\t32\t0\t\t-10\t-10\r\nLIMIT\tTmaxfluido\t1\t[P]\t6\t32\t0\t\t140\t140\r\nLIMIT\tTmaxambiente\t1\t[P]\t6\t32\t0\t\t40\t40\r\nPAGENO\t5\r\nSERIES\tNKM-G NKP-G my11\r\nDATASHEET\tDAB - scheda tecnica pompe centrifughe norm. Tenute Speciali no brand mot MEI\tDAB - hydraulic\tDAB - dimension  -\t\t\r\nPERFORMANCECHART\tNKM-G 125-250\t\r\nTYPE\t3\tAll\t\r\nSAFETYMARGIN\t5\t1\t0\t1\r\nPHASE\t3\r\nRESISTANCE\t0\r\nMATERIALKEY\tNKM-G_tenute speciali\t0\r\nGRIDCOLUMNS\tARTNR[P]\r\nGRIDCOLUMNS\tNAME[DNs]\r\nGRIDCOLUMNS\tNAME[DNd]\r\nGRIDCOLUMNS\tPOLES[M]\r\nGRIDCOLUMNS\tPOWER[M]\r\nGRIDCOLUMNS\tSPEED[M]\r\nMEASUREMENT\t*\t-\r\nMEASUREMENT\tA\t140\r\nMEASUREMENT\tB\t80\r\nMEASUREMENT\tDNA\t150\r\nMEASUREMENT\tDNM\t125\r\nMEASUREMENT\tE\t254\r\nMEASUREMENT\tF\t540\r\nMEASUREMENT\tG\t472\r\nMEASUREMENT\tH1\t250\r\nMEASUREMENT\tH2\t355\r\nMEASUREMENT\tH4\t90\r\nMEASUREMENT\tL\t413\r\nMEASUREMENT\tM1\t160\r\nMEASUREMENT\tM2\t120\r\nMEASUREMENT\tN1\t400\r\nMEASUREMENT\tN2\t315\r\nMEASUREMENT\tN3\t254\r\nMEASUREMENT\tS1\tM14\r\nMEASUREMENT\tS2\tM12\r\nMEASUREMENT\tW\t381\r\nMEASUREMENT\tX\t140\r\nOPTION\t1\r\nORIFICELIMIT\t0,1\t0,9\t0\r\n\r\nOBJECT\tINSTALLATION\r\nIDENT\tPompa monoblocco B3/B5\r\nNEWID\tMY11\r\nSHORTNAME\tDAB\r\nFILENAME\tB3-B5_H4\r\nWEIGHT\t292\r\nLIMITIND\t0\t0\r\nLIMIT\tMEDT\t1\t[AW]\t6\t11\t1\t\t-10\t140\r\nWEIGHTFORMULA\t$Wg := if ((POWER[M] >= 15) and (NEWID1[M] = IE2)) then --\r\nWEIGHTFORMULA\t$Wg := if ((POWER[M] = 15) and (NEWID1[M] = IE3)) then 274\r\nWEIGHTFORMULA\t$Wg := if ((POWER[M] = 18,5) and (NEWID1[M] = IE3)) then 290\r\nWEIGHTFORMULA\t$Wg := if ((POWER[M] = 22) and (NEWID1[M] = IE3)) then 309\r\nWEIGHTFORMULA\t\r\nACCSALLOC\tNKM-G NKP-G\r\nFIELDS\t\t0\t0\r\nHIDECOMP\t[AV]\r\nHIDECOMP\t[DN]\r\nHIDECOMP\t[DNd]\r\nHIDECOMP\t[DNs]\r\nHIDECOMP\t[M]\r\nHIDECOMP\t[WD]\r\nHIDECOMP\t[Ws]\r\nSEAL\tDAB\tTenuta meccanica\tBAQE\t\t\t\r\nSEAL\tDAB\tTenuta meccanica\tBQQE\t\t\t\r\nSEAL\tDAB\tTenuta meccanica\tBQQV\t\t\t\r\nSEAL\tDAB\tTenuta meccanica\tBAQV\t\t\t\r\nFORMULA\tA := A[P]\r\nFORMULA\tB := B[P]\r\nFORMULA\tDNA := DNA[P]\r\nFORMULA\tDNM := DNM[P]\r\nFORMULA\tE := if POWER[M] = 15 then 254\r\nFORMULA\tE := if POWER[M] = 18,5 then 241\r\nFORMULA\tE := if POWER[M] = 22 then 279\r\nFORMULA\tF := if ((POWER[M] >= 15) and (NEWID1[M] = IE2)) then --\r\nFORMULA\tF := if ((POWER[M] = 15) and (NEWID1[M] = IE3)) then 548\r\nFORMULA\tF := if ((POWER[M] = 18,5) and (NEWID1[M] = IE3)) then 580\r\nFORMULA\tF := if ((POWER[M] = 22) and (NEWID1[M] = IE3)) then 580\r\nFORMULA\tG := G[P]\r\nFORMULA\tH1 := H1[P]\r\nFORMULA\tH2 := H2[P]\r\nFORMULA\tL := L[P]\r\nFORMULA\tM1 := M1[P]\r\nFORMULA\tM2 := M2[P]\r\nFORMULA\tN1 := N1[P]\r\nFORMULA\tN2 := N2[P]\r\nFORMULA\tS1 := S1[P]\r\nFORMULA\tW :=if POWER[M] = 15 then 381\r\nFORMULA\tW := if POWER[M] = 18,5 then 394\r\nFORMULA\tW := if POWER[M] = 22 then 394\r\nFORMULA\tX := X[P]\r\nFORMULA\tN3 := if POWER[M] = 15 then 254\r\nFORMULA\tN3 := if POWER[M] = 18,5 then 279\r\nFORMULA\tN3 := if POWER[M] = 22 then 279\r\nFORMULA\tS2 := S2[P]\r\nFORMULA\tH4 := if POWER[M] = 15 then 90\r\nFORMULA\tH4 := if POWER[M] = 18,5 then 70\r\nFORMULA\tH4 := if POWER[M] = 22 then 70\r\nPRICEALLOC\tP\t0\t{NAME[Kg];;;0}/{D2IMP[Kl];;mm;0}/{Matcd[Ws];;;0}/{MATCODE[WD];;;0}/{Power[M];;kW;0;;;;;;,}/{POLES[M];;;0} {CHARSFDPN[AV];;;0} {FREQ[M];;Hz;1} {NEWID1[M];;;0}\t\t\t\t\t\t\t\t\t0\r\nZUSEIAVTOGUI\t1\r\n$\r\n\r\nOBJECT\tFLANGES\r\nIDENT\tDN 150 / DN 125\r\nSHORTNAME\tDAB\r\nSUCTIONSIDE\tDN 150\r\nDISCHARGESIDE\tDN 125\r\nVALUES\tDIN 2533\tPN 16\r\nVALUESSUCT\tDIN 2533\tPN 16\r\n$\r\n\r\nOBJECT\tCHECK\r\n$\r\n\r\nOBJECT\tUSERINFO\r\nIDENT\tCAD\r\nSHORTNAME\tDAB\r\nFILENAME\tNKM-G_125-250.rar\r\n$\r\n\r\nOBJECT\tUSERINFO\r\nIDENT\tComponenti speciali a richiesta\r\nSHORTNAME\tDAB\r\nDATA\tComponenti speciali a richiesta - normalizzate monoblocco\t\t\r\n$\r\n\r\nOBJECT\tUSERINFO\r\nIDENT\tLibretto\r\nSHORTNAME\tDAB\r\nFILENAME\tCod_001354001.pdf\r\n$\r\n\r\nOBJECT\tUSERINFO\r\nIDENT\tDichiarazione di conformita\r\nSHORTNAME\tDAB\r\nFILENAME\tCod_60164947.pdf\r\n$\r\n\r\nOBJECT\tUSERINFO\r\nIDENT\tFoto\r\nSHORTNAME\tDAB\r\nFILENAME\tnkm-g nkp-g_foto\r\n$\r\n\r\nOBJECT\tUSERINFO\r\nIDENT\tCatalogo tecnico\r\nSHORTNAME\tDAB\r\nFILENAME\tCAT14_NKM-G_NKP-G.pdf\r\n$\r\n$\r","-",11,"2016-03-08 14:02:45.023","-"]
["TPumpObj","DAB","NKM-G NKP-G my11","-","-","NKM-G 150-200","ALL","\r\nOBJECT\tPUMP\r\nIDENT\tNKM-G 150-200\r\nNEWID\t{NAME[Kg];;;0}/{D2IMP[Kl];;mm;0}/{Matcd[Ws];;;0}/{MATCODE[WD];;;0}/{Power[M];;kW;0;;;;;;,}/{POLES[M];;;0} {NEWID1[M];;;0}\r\nSHORTNAME\tDAB\r\nDATA\tNKM-G Completo\tNKM-G breve\tKDN suggerimento\r\nLIMITIND\t0\t0\r\nLIMIT\tTminfluido\t1\t[P]\t6\t32\t0\t\t-10\t-10\r\nLIMIT\tTmaxfluido\t1\t[P]\t6\t32\t0\t\t140\t140\r\nLIMIT\tTmaxambiente\t1\t[P]\t6\t32\t0\t\t40\t40\r\nPAGENO\t5\r\nSERIES\tNKM-G NKP-G my11\r\nDATASHEET\tDAB - scheda tecnica pompe centrifughe norm. Tenute Speciali no brand mot MEI\tDAB - hydraulic\tDAB - dimension  -\t\t\r\nPERFORMANCECHART\tNKM-G 150-200\t\r\nTYPE\t3\tAll\t\r\nSAFETYMARGIN\t5\t1\t0\t1\r\nPHASE\t3\r\nRESISTANCE\t0\r\nMATERIALKEY\tNKM-G_tenute speciali\t0\r\nGRIDCOLUMNS\tARTNR[P]\r\nGRIDCOLUMNS\tNAME[DNs]\r\nGRIDCOLUMNS\tNAME[DNd]\r\nGRIDCOLUMNS\tPOLES[M]\r\nGRIDCOLUMNS\tPOWER[M]\r\nGRIDCOLUMNS\tSPEED[M]\r\nMEASUREMENT\t*\t-\r\nMEASUREMENT\tA\t160\r\nMEASUREMENT\tB\t100\r\nMEASUREMENT\tDNA\t200\r\nMEASUREMENT\tDNM\t150\r\nMEASUREMENT\tE\t210\r\nMEASUREMENT\tF\t505\r\nMEASUREMENT\tG\t593\r\nMEASUREMENT\tH1\t280\r\nMEASUREMENT\tH2\t400\r\nMEASUREMENT\tH4\t120\r\nMEASUREMENT\tL\t433\r\nMEASUREMENT\tM1\t200\r\nMEASUREMENT\tM2\t150\r\nMEASUREMENT\tN1\t550\r\nMEASUREMENT\tN2\t450\r\nMEASUREMENT\tN3\t254\r\nMEASUREMENT\tS1\tM20\r\nMEASUREMENT\tW\t381\r\nMEASUREMENT\tX\t140\r\nOPTION\t1\r\nORIFICELIMIT\t0,1\t0,9\t0\r\n\r\nOBJECT\tINSTALLATION\r\nIDENT\tPompa monoblocco B3/B5\r\nNEWID\tMY11\r\nSHORTNAME\tDAB\r\nFILENAME\tB3-B5_H4\r\nLIMITIND\t0\t0\r\nLIMIT\tMEDT\t1\t[AW]\t6\t11\t1\t\t-10\t140\r\nWEIGHTFORMULA\t$Wg := if NEWID1[M] = IE2 then --\r\nWEIGHTFORMULA\t$Wg := if NEWID1[M] = IE3 then 280\r\nWEIGHTFORMULA\t\r\nACCSALLOC\tNKM-G NKP-G\r\nFIELDS\t\t0\t0\r\nHIDECOMP\t[AV]\r\nHIDECOMP\t[DN]\r\nHIDECOMP\t[DNd]\r\nHIDECOMP\t[DNs]\r\nHIDECOMP\t[M]\r\nHIDECOMP\t[WD]\r\nHIDECOMP\t[Ws]\r\nSEAL\tDAB\tTenuta meccanica\tBAQE\t\t\t\r\nSEAL\tDAB\tTenuta meccanica\tBQQE\t\t\t\r\nSEAL\tDAB\tTenuta meccanica\tBQQV\t\t\t\r\nSEAL\tDAB\tTenuta meccanica\tBAQV\t\t\t\r\nFORMULA\tA := A[P]\r\nFORMULA\tB := B[P]\r\nFORMULA\tDNA := DNA[P]\r\nFORMULA\tDNM := DNM[P]\r\nFORMULA\tE := E[P]\r\nFORMULA\tF := if NEWID1[M] = IE2 then --\r\nFORMULA\tF := if NEWID1[M] = IE3 then 505\r\nFORMULA\tG := G[P]\r\nFORMULA\tH1 := H1[P]\r\nFORMULA\tH2 := H2[P]\r\nFORMULA\tL := L[P]\r\nFORMULA\tM1 := M1[P]\r\nFORMULA\tM2 := M2[P]\r\nFORMULA\tN1 := N1[P]\r\nFORMULA\tN2 := N2[P]\r\nFORMULA\tS1 := S1[P]\r\nFORMULA\tW := W[P]\r\nFORMULA\tX := X[P]\r\nFORMULA\tN3 := N3[P]\r\nFORMULA\tH4 := H4[P]\r\nFORMULA\t\r\nPRICEALLOC\tP\t0\t{NAME[Kg];;;0}/{D2IMP[Kl];;mm;0}/{Matcd[Ws];;;0}/{MATCODE[WD];;;0}/{Power[M];;kW;0;;;;;;,}/{POLES[M];;;0} {CHARSFDPN[AV];;;0} {FREQ[M];;Hz;1} {NEWID1[M];;;0}\t\t\t\t\t\t\t\t\t0\r\nZUSEIAVTOGUI\t1\r\n$\r\n\r\nOBJECT\tFLANGES\r\nIDENT\tDN 200 / DN 150\r\nSHORTNAME\tDAB\r\nSUCTIONSIDE\tDN 200\r\nDISCHARGESIDE\tDN 150\r\nVALUES\tDIN 2533\tPN 16\r\nVALUESSUCT\tDIN 2533\tPN 16\r\n$\r\n\r\nOBJECT\tCHECK\r\n$\r\n\r\nOBJECT\tUSERINFO\r\nIDENT\tCAD\r\nSHORTNAME\tDAB\r\nFILENAME\tNKM-G_150-200.rar\r\n$\r\n\r\nOBJECT\tUSERINFO\r\nIDENT\tComponenti speciali a richiesta\r\nSHORTNAME\tDAB\r\nDATA\tComponenti speciali a richiesta - normalizzate monoblocco\t\t\r\n$\r\n\r\nOBJECT\tUSERINFO\r\nIDENT\tLibretto\r\nSHORTNAME\tDAB\r\nFILENAME\tCod_001354001.pdf\r\n$\r\n\r\nOBJECT\tUSERINFO\r\nIDENT\tDichiarazione di conformita\r\nSHORTNAME\tDAB\r\nFILENAME\tCod_60164947.pdf\r\n$\r\n\r\nOBJECT\tUSERINFO\r\nIDENT\tFoto\r\nSHORTNAME\tDAB\r\nFILENAME\tnkm-g nkp-g_foto\r\n$\r\n\r\nOBJECT\tUSERINFO\r\nIDENT\tCatalogo tecnico\r\nSHORTNAME\tDAB\r\nFILENAME\tCAT14_NKM-G_NKP-G.pdf\r\n$\r\n$\r","-",11,"2016-03-08 14:02:45.028","-"]
["TPumpObj","DAB","NKM-G NKP-G my11","-","-","NKM-G 32-125","ALL","\r\nOBJECT\tPUMP\r\nIDENT\tNKM-G 32-125\r\nNEWID\t{NAME[Kg];;;0}/{D2IMP[Kl];;mm;0}/{Matcd[Ws];;;0}/{MATCODE[WD];;;0}/{Power[M];;kW;0;;;;;;,}/{POLES[M];;;0}\r\nSHORTNAME\tDAB\r\nDATA\tNKM-G Completo\tNKM-G breve\tKDN suggerimento\r\nLIMITIND\t0\t0\r\nLIMIT\tTminfluido\t1\t[P]\t6\t32\t0\t\t-10\t-10\r\nLIMIT\tTmaxfluido\t1\t[P]\t6\t32\t0\t\t140\t140\r\nLIMIT\tTmaxambiente\t1\t[P]\t6\t32\t0\t\t40\t40\r\nPAGENO\t5\r\nSERIES\tNKM-G NKP-G my11\r\nDATASHEET\tDAB - scheda tecnica pompe centrifughe norm. Tenute Speciali no brand mot MEI\tDAB - hydraulic\tDAB - dimension  -\t\t\r\nPERFORMANCECHART\tNKM-G 32-125\t\r\nTYPE\t3\tAll\t\r\nSAFETYMARGIN\t5\t1\t0\t1\r\nPHASE\t3\r\nRESISTANCE\t0\r\nMATERIALKEY\tNKM-G_tenute speciali\t0\r\nGRIDCOLUMNS\tARTNR[P]\r\nGRIDCOLUMNS\tNAME[DNs]\r\nGRIDCOLUMNS\tNAME[DNd]\r\nGRIDCOLUMNS\tPOLES[M]\r\nGRIDCOLUMNS\tPOWER[M]\r\nGRIDCOLUMNS\tSPEED[M]\r\nMEASUREMENT\tA\t80\r\nMEASUREMENT\tB\t50\r\nMEASUREMENT\tDNA\t50\r\nMEASUREMENT\tDNM\t32\r\nMEASUREMENT\tE\t-\r\nMEASUREMENT\tF\t208\r\nMEASUREMENT\tG\t234\r\nMEASUREMENT\tH1\t112\r\nMEASUREMENT\tH2\t140\r\nMEASUREMENT\tL\t201\r\nMEASUREMENT\tM1\t100\r\nMEASUREMENT\tM2\t70\r\nMEASUREMENT\tN1\t190\r\nMEASUREMENT\tN2\t140\r\nMEASUREMENT\tS1\tM10\r\nMEASUREMENT\tW\t-\r\nMEASUREMENT\tX\t100\r\nOPTION\t1\r\nORIFICELIMIT\t0,1\t0,9\t0\r\n\r\nOBJECT\tINSTALLATION\r\nIDENT\tPompa monoblocco\r\nNEWID\tMY11\r\nSHORTNAME\tDAB\r\nFILENAME\tNKM_G_B5\r\nWEIGHT\t35\r\nLIMITIND\t0\t0\r\nLIMIT\tMEDT\t1\t[AW]\t6\t11\t1\t\t-10\t140\r\nWEIGHTFORMULA\t$Wg :=$Wg[P] + $Wg[AV]\r\nACCSALLOC\tNKM-G NKP-G\r\nFIELDS\t\t0\t0\r\nHIDECOMP\t[AV]\r\nHIDECOMP\t[DN]\r\nHIDECOMP\t[DNd]\r\nHIDECOMP\t[DNs]\r\nHIDECOMP\t[M]\r\nHIDECOMP\t[WD]\r\nHIDECOMP\t[Ws]\r\nSEAL\tDAB\tTenuta meccanica\tBAQE\t\t\t\r\nSEAL\tDAB\tTenuta meccanica\tBQQE\t\t\t\r\nSEAL\tDAB\tTenuta meccanica\tBQQV\t\t\t\r\nSEAL\tDAB\tTenuta meccanica\tBAQV\t\t\t\r\nFORMULA\tA := A[P]\r\nFORMULA\tB := B[P]\r\nFORMULA\tF := F[P]\r\nFORMULA\tG := G[P]\r\nFORMULA\tH1 := H1[P]\r\nFORMULA\tH2 := H2[P]\r\nFORMULA\tL := L[P]\r\nFORMULA\tM1 := M1[P]\r\nFORMULA\tM2 := M2[P]\r\nFORMULA\tN1 := N1[P]\r\nFORMULA\tN2 := N2[P]\r\nFORMULA\tS1 := S1[P]\r\nFORMULA\tX := X[P]\r\nFORMULA\tDNA := DNA[P]\r\nFORMULA\tDNM := DNM[P]\r\nFORMULA\t\r\nPRICEALLOC\tP\t0\t{RESULTID[P];;;0} {CHARSFDPN[AV];;;0} {FREQ[M];;Hz;1}\t\t\t\t\t\t\t\t\t\r\nZUSEIAVTOGUI\t1\r\n$\r\n\r\nOBJECT\tFLANGES\r\nIDENT\tDN 50 / DN 32\r\nSHORTNAME\tDAB\r\nSUCTIONSIDE\tDN 50\r\nDISCHARGESIDE\tDN 32\r\nVALUES\tDIN 2533\tPN 16\r\nVALUESSUCT\tDIN 2533\tPN 16\r\n$\r\n\r\nOBJECT\tCHECK\r\n$\r\n\r\nOBJECT\tUSERINFO\r\nIDENT\tFoto\r\nSHORTNAME\tDAB\r\nFILENAME\tnkm-g nkp-g_foto\r\n$\r\n\r\nOBJECT\tUSERINFO\r\nIDENT\tComponenti speciali a richiesta\r\nSHORTNAME\tDAB\r\nDATA\tComponenti speciali a richiesta - normalizzate monoblocco\t\t\r\n$\r\n\r\nOBJECT\tUSERINFO\r\nIDENT\tLibretto\r\nSHORTNAME\tDAB\r\nFILENAME\tCod_001354001.pdf\r\n$\r\n\r\nOBJECT\tUSERINFO\r\nIDENT\tDichiarazione di conformita\r\nSHORTNAME\tDAB\r\nFILENAME\tCod_60164947.pdf\r\n$\r\n\r\nOBJECT\tUSERINFO\r\nIDENT\tCAD\r\nSHORTNAME\tDAB\r\nFILENAME\tNKM-G_32-125.rar\r\n$\r\n\r\nOBJECT\tUSERINFO\r\nIDENT\tCatalogo tecnico\r\nSHORTNAME\tDAB\r\nFILENAME\tCAT14_NKM-G_NKP-G.pdf\r\n$\r\n$\r","-",11,"2016-03-08 14:02:45.033","-"]
["TPumpObj","DAB","NKM-G NKP-G my11","-","-","NKM-G 32-125.1","ALL","\r\nOBJECT\tPUMP\r\nIDENT\tNKM-G 32-125.1\r\nNEWID\t{NAME[Kg];;;0}/{D2IMP[Kl];;mm;0}/{Matcd[Ws];;;0}/{MATCODE[WD];;;0}/{Power[M];;kW;0;;;;;;,}/{POLES[M];;;0}\r\nSHORTNAME\tDAB\r\nDATA\tNKM-G Completo\tNKM-G breve\tKDN suggerimento\r\nLIMITIND\t0\t0\r\nLIMIT\tTminfluido\t1\t[P]\t6\t32\t0\t\t-10\t-10\r\nLIMIT\tTmaxfluido\t1\t[P]\t6\t32\t0\t\t140\t140\r\nLIMIT\tTmaxambiente\t1\t[P]\t6\t32\t0\t\t40\t40\r\nPAGENO\t5\r\nSERIES\tNKM-G NKP-G my11\r\nDATASHEET\tDAB - scheda tecnica pompe centrifughe norm. Tenute Speciali no brand mot MEI\tDAB - hydraulic\tDAB - dimension  -\t\t\r\nPERFORMANCECHART\tNKM-G 32-125.1\t\r\nTYPE\t3\tAll\t\r\nSAFETYMARGIN\t5\t1\t0\t1\r\nPHASE\t3\r\nRESISTANCE\t0\r\nMATERIALKEY\tNKM-G_tenute speciali\t0\r\nGRIDCOLUMNS\tARTNR[P]\r\nGRIDCOLUMNS\tNAME[DNs]\r\nGRIDCOLUMNS\tNAME[DNd]\r\nGRIDCOLUMNS\tPOLES[M]\r\nGRIDCOLUMNS\tPOWER[M]\r\nGRIDCOLUMNS\tSPEED[M]\r\nMEASUREMENT\tA\t80\r\nMEASUREMENT\tB\t50\r\nMEASUREMENT\tDNA\t50\r\nMEASUREMENT\tDNM\t32\r\nMEASUREMENT\tF\t208\r\nMEASUREMENT\tG\t234\r\nMEASUREMENT\tH1\t112\r\nMEASUREMENT\tH2\t140\r\nMEASUREMENT\tL\t201\r\nMEASUREMENT\tM1\t100\r\nMEASUREMENT\tM2\t70\r\nMEASUREMENT\tN1\t190\r\nMEASUREMENT\tN2\t140\r\nMEASUREMENT\tS1\tM10\r\nMEASUREMENT\tX\t100\r\nOPTION\t1\r\nORIFICELIMIT\t0,1\t0,9\t0\r\n\r\nOBJECT\tINSTALLATION\r\nIDENT\tPompa monoblocco\r\nNEWID\tMY11\r\nSHORTNAME\tDAB\r\nFILENAME\tNKM_G_B5\r\nWEIGHT\t32\r\nLIMITIND\t0\t0\r\nLIMIT\tMEDT\t1\t[AW]\t6\t11\t1\t\t-10\t140\r\nWEIGHTFORMULA\t$Wg :=if FREQ[M] = 50 then 33\r\nWEIGHTFORMULA\t$Wg :=if FREQ[M] = 60 then 33\r\nACCSALLOC\tNKM-G NKP-G\r\nFIELDS\t\t0\t0\r\nHIDECOMP\t[AV]\r\nHIDECOMP\t[DN]\r\nHIDECOMP\t[DNd]\r\nHIDECOMP\t[DNs]\r\nHIDECOMP\t[M]\r\nHIDECOMP\t[WD]\r\nHIDECOMP\t[Ws]\r\nSEAL\tDAB\tTenuta meccanica\tBAQE\t\t\t\r\nSEAL\tDAB\tTenuta meccanica\tBQQE\t\t\t\r\nSEAL\tDAB\tTenuta meccanica\tBQQV\t\t\t\r\nSEAL\tDAB\tTenuta meccanica\tBAQV\t\t\t\r\nFORMULA\tA := A[P]\r\nFORMULA\tB := B[P]\r\nFORMULA\tF := F[P]\r\nFORMULA\tG := G[P]\r\nFORMULA\tH1 := H1[P]\r\nFORMULA\tH2 := H2[P]\r\nFORMULA\tL := L[P]\r\nFORMULA\tM1 := M1[P]\r\nFORMULA\tM2 := M2[P]\r\nFORMULA\tN1 := N1[P]\r\nFORMULA\tN2 := N2[P]\r\nFORMULA\tS1 := S1[P]\r\nFORMULA\tX := X[P]\r\nFORMULA\tDNA := DNA[P]\r\nFORMULA\tDNM := DNM[P]\r\nFORMULA\t\r\nPRICEALLOC\tP\t0\t{RESULTID[P];;;0} {CHARSFDPN[AV];;;0} {FREQ[M];;Hz;1}\t\t\t\t\t\t\t\t\t\r\nZUSEIAVTOGUI\t1\r\n$\r\n\r\nOBJECT\tFLANGES\r\nIDENT\tDN 50 / DN 32\r\nSHORTNAME\tDAB\r\nSUCTIONSIDE\tDN 50\r\nDISCHARGESIDE\tDN 32\r\nVALUES\tDIN 2533\tPN 16\r\nVALUESSUCT\tDIN 2533\tPN 16\r\n$\r\n\r\nOBJECT\tCHECK\r\n$\r\n\r\nOBJECT\tUSERINFO\r\nIDENT\tFoto\r\nSHORTNAME\tDAB\r\nFILENAME\tnkm-g nkp-g_foto\r\n$\r\n\r\nOBJECT\tUSERINFO\r\nIDENT\tComponenti speciali a richiesta\r\nSHORTNAME\tDAB\r\nDATA\tComponenti speciali a richiesta - normalizzate monoblocco\t\t\r\n$\r\n\r\nOBJECT\tUSERINFO\r\nIDENT\tLibretto\r\nSHORTNAME\tDAB\r\nFILENAME\tCod_001354001.pdf\r\n$\r\n\r\nOBJECT\tUSERINFO\r\nIDENT\tDichiarazione di conformita\r\nSHORTNAME\tDAB\r\nFILENAME\tCod_60164947.pdf\r\n$\r\n\r\nOBJECT\tUSERINFO\r\nIDENT\tCAD\r\nSHORTNAME\tDAB\r\nFILENAME\tNKM-G_32-125_1.rar\r\n$\r\n\r\nOBJECT\tUSERINFO\r\nIDENT\tCatalogo tecnico\r\nSHORTNAME\tDAB\r\nFILENAME\tCAT14_NKM-G_NKP-G.pdf\r\n$\r\n$\r","-",11,"2016-03-08 14:02:45.038","-"]
["TPumpObj","DAB","NKM-G NKP-G my11","-","-","NKM-G 32-160","ALL","\r\nOBJECT\tPUMP\r\nIDENT\tNKM-G 32-160\r\nNEWID\t{NAME[Kg];;;0}/{D2IMP[Kl];;mm;0}/{Matcd[Ws];;;0}/{MATCODE[WD];;;0}/{Power[M];;kW;0;;;;;;,}/{POLES[M];;;0}\r\nSHORTNAME\tDAB\r\nDATA\tNKM-G Completo\tNKM-G breve\tKDN suggerimento\r\nLIMITIND\t0\t0\r\nLIMIT\tTminfluido\t1\t[P]\t6\t32\t0\t\t-10\t-10\r\nLIMIT\tTmaxfluido\t1\t[P]\t6\t32\t0\t\t140\t140\r\nLIMIT\tTmaxambiente\t1\t[P]\t6\t32\t0\t\t40\t40\r\nPAGENO\t5\r\nSERIES\tNKM-G NKP-G my11\r\nDATASHEET\tDAB - scheda tecnica pompe centrifughe norm. Tenute Speciali no brand mot MEI\tDAB - hydraulic\tDAB - dimension  -\t\t\r\nPERFORMANCECHART\tNKM-G 32-160\t\r\nTYPE\t3\tAll\t\r\nSAFETYMARGIN\t5\t1\t0\t1\r\nPHASE\t3\r\nRESISTANCE\t0\r\nMATERIALKEY\tNKM-G_tenute speciali\t0\r\nGRIDCOLUMNS\tARTNR[P]\r\nGRIDCOLUMNS\tNAME[DNs]\r\nGRIDCOLUMNS\tNAME[DNd]\r\nGRIDCOLUMNS\tPOLES[M]\r\nGRIDCOLUMNS\tPOWER[M]\r\nGRIDCOLUMNS\tSPEED[M]\r\nMEASUREMENT\tA\t80\r\nMEASUREMENT\tB\t50\r\nMEASUREMENT\tDNA\t50\r\nMEASUREMENT\tDNM\t32\r\nMEASUREMENT\tE\t-\r\nMEASUREMENT\tF\t234\r\nMEASUREMENT\tG\t245\r\nMEASUREMENT\tH1\t132\r\nMEASUREMENT\tH2\t160\r\nMEASUREMENT\tL\t226\r\nMEASUREMENT\tM1\t100\r\nMEASUREMENT\tM2\t70\r\nMEASUREMENT\tN1\t240\r\nMEASUREMENT\tN2\t190\r\nMEASUREMENT\tS1\tM10\r\nMEASUREMENT\tW\t-\r\nMEASUREMENT\tX\t100\r\nOPTION\t1\r\nORIFICELIMIT\t0,1\t0,9\t0\r\n\r\nOBJECT\tINSTALLATION\r\nIDENT\tPompa monoblocco\r\nNEWID\tMY11\r\nSHORTNAME\tDAB\r\nFILENAME\tNKM_G_B5\r\nWEIGHT\t42\r\nLIMITIND\t0\t0\r\nLIMIT\tMEDT\t1\t[AW]\t6\t11\t1\t\t-10\t140\r\nWEIGHTFORMULA\t$Wg :=$Wg[P] + $Wg[AV]\r\nACCSALLOC\tNKM-G NKP-G\r\nFIELDS\t\t0\t0\r\nHIDECOMP\t[AV]\r\nHIDECOMP\t[DN]\r\nHIDECOMP\t[DNd]\r\nHIDECOMP\t[DNs]\r\nHIDECOMP\t[M]\r\nHIDECOMP\t[WD]\r\nHIDECOMP\t[Ws]\r\nSEAL\tDAB\tTenuta meccanica\tBAQE\t\t\t\r\nSEAL\tDAB\tTenuta meccanica\tBQQE\t\t\t\r\nSEAL\tDAB\tTenuta meccanica\tBQQV\t\t\t\r\nSEAL\tDAB\tTenuta meccanica\tBAQV\t\t\t\r\nFORMULA\tA := A[P]\r\nFORMULA\tB := B[P]\r\nFORMULA\tE := E[P]\r\nFORMULA\tF := F[P]\r\nFORMULA\tG := G[P]\r\nFORMULA\tH1 := H1[P]\r\nFORMULA\tH2 := H2[P]\r\nFORMULA\tL := L[P]\r\nFORMULA\tM1 := M1[P]\r\nFORMULA\tM2 := M2[P]\r\nFORMULA\tN1 := N1[P]\r\nFORMULA\tN2 := N2[P]\r\nFORMULA\tS1 := S1[P]\r\nFORMULA\tW := W[P]\r\nFORMULA\tX := X[P]\r\nFORMULA\tDNA := DNA[P]\r\nFORMULA\tDNM := DNM[P]\r\nFORMULA\t\r\nPRICEALLOC\tP\t0\t{RESULTID[P];;;0} {CHARSFDPN[AV];;;0} {FREQ[M];;Hz;1}\t\t\t\t\t\t\t\t\t\r\nZUSEIAVTOGUI\t1\r\n$\r\n\r\nOBJECT\tFLANGES\r\nIDENT\tDN 50 / DN 32\r\nSHORTNAME\tDAB\r\nSUCTIONSIDE\tDN 50\r\nDISCHARGESIDE\tDN 32\r\nVALUES\tDIN 2533\tPN 16\r\nVALUESSUCT\tDIN 2533\tPN 16\r\n$\r\n\r\nOBJECT\tCHECK\r\n$\r\n\r\nOBJECT\tUSERINFO\r\nIDENT\tFoto\r\nSHORTNAME\tDAB\r\nFILENAME\tnkm-g nkp-g_foto\r\n$\r\n\r\nOBJECT\tUSERINFO\r\nIDENT\tComponenti speciali a richiesta\r\nSHORTNAME\tDAB\r\nDATA\tComponenti speciali a richiesta - normalizzate monoblocco\t\t\r\n$\r\n\r\nOBJECT\tUSERINFO\r\nIDENT\tLibretto\r\nSHORTNAME\tDAB\r\nFILENAME\tCod_001354001.pdf\r\n$\r\n\r\nOBJECT\tUSERINFO\r\nIDENT\tDichiarazione di conformita\r\nSHORTNAME\tDAB\r\nFILENAME\tCod_60164947.pdf\r\n$\r\n\r\nOBJECT\tUSERINFO\r\nIDENT\tCAD\r\nSHORTNAME\tDAB\r\nFILENAME\tNKM-G_32-160.rar\r\n$\r\n\r\nOBJECT\tUSERINFO\r\nIDENT\tCatalogo tecnico\r\nSHORTNAME\tDAB\r\nFILENAME\tCAT14_NKM-G_NKP-G.pdf\r\n$\r\n$\r","-",11,"2016-03-08 14:02:45.043","-"]
["TPumpObj","DAB","NKM-G NKP-G my11","-","-","NKM-G 32-160.1","ALL","\r\nOBJECT\tPUMP\r\nIDENT\tNKM-G 32-160.1\r\nNEWID\t{NAME[Kg];;;0}/{D2IMP[Kl];;mm;0}/{Matcd[Ws];;;0}/{MATCODE[WD];;;0}/{Power[M];;kW;0;;;;;;,}/{POLES[M];;;0}\r\nSHORTNAME\tDAB\r\nDATA\tNKM-G Completo\tNKM-G breve\tKDN suggerimento\r\nLIMITIND\t0\t0\r\nLIMIT\tTminfluido\t1\t[P]\t6\t32\t0\t\t-10\t-10\r\nLIMIT\tTmaxfluido\t1\t[P]\t6\t32\t0\t\t140\t140\r\nLIMIT\tTmaxambiente\t1\t[P]\t6\t32\t0\t\t40\t40\r\nPAGENO\t5\r\nSERIES\tNKM-G NKP-G my11\r\nDATASHEET\tDAB - scheda tecnica pompe centrifughe norm. Tenute Speciali no brand mot MEI\tDAB - hydraulic\tDAB - dimension  -\t\t\r\nPERFORMANCECHART\tNKM-G 32-160.1\t\r\nTYPE\t3\tAll\t\r\nSAFETYMARGIN\t5\t1\t0\t1\r\nPHASE\t3\r\nRESISTANCE\t0\r\nMATERIALKEY\tNKM-G_tenute speciali\t0\r\nGRIDCOLUMNS\tARTNR[P]\r\nGRIDCOLUMNS\tNAME[DNs]\r\nGRIDCOLUMNS\tNAME[DNd]\r\nGRIDCOLUMNS\tPOLES[M]\r\nGRIDCOLUMNS\tPOWER[M]\r\nGRIDCOLUMNS\tSPEED[M]\r\nMEASUREMENT\tA\t80\r\nMEASUREMENT\tB\t50\r\nMEASUREMENT\tDNA\t50\r\nMEASUREMENT\tDNM\t32\r\nMEASUREMENT\tE\t-\r\nMEASUREMENT\tF\t208\r\nMEASUREMENT\tG\t245\r\nMEASUREMENT\tH1\t132\r\nMEASUREMENT\tH2\t160\r\nMEASUREMENT\tL\t201\r\nMEASUREMENT\tM1\t100\r\nMEASUREMENT\tM2\t70\r\nMEASUREMENT\tN1\t240\r\nMEASUREMENT\tN2\t190\r\nMEASUREMENT\tS1\tM10\r\nMEASUREMENT\tW\t-\r\nMEASUREMENT\tX\t100\r\nOPTION\t1\r\nORIFICELIMIT\t0,1\t0,9\t0\r\n\r\nOBJECT\tINSTALLATION\r\nIDENT\tPompa monoblocco\r\nNEWID\tMY11\r\nSHORTNAME\tDAB\r\nFILENAME\tNKM_G_B5\r\nWEIGHT\t36\r\nLIMITIND\t0\t0\r\nLIMIT\tMEDT\t1\t[AW]\t6\t11\t1\t\t-10\t140\r\nWEIGHTFORMULA\t$Wg :=$Wg[P] + $Wg[AV]\r\nACCSALLOC\tNKM-G NKP-G\r\nFIELDS\t\t0\t0\r\nHIDECOMP\t[AV]\r\nHIDECOMP\t[DN]\r\nHIDECOMP\t[DNd]\r\nHIDECOMP\t[DNs]\r\nHIDECOMP\t[M]\r\nHIDECOMP\t[WD]\r\nHIDECOMP\t[Ws]\r\nSEAL\tDAB\tTenuta meccanica\tBAQE\t\t\t\r\nSEAL\tDAB\tTenuta meccanica\tBQQE\t\t\t\r\nSEAL\tDAB\tTenuta meccanica\tBQQV\t\t\t\r\nSEAL\tDAB\tTenuta meccanica\tBAQV\t\t\t\r\nFORMULA\tA := A[P]\r\nFORMULA\tB := B[P]\r\nFORMULA\tF := F[P]\r\nFORMULA\tG := G[P]\r\nFORMULA\tH1 := H1[P]\r\nFORMULA\tH2 := H2[P]\r\nFORMULA\tL := L[P]\r\nFORMULA\tM1 := M1[P]\r\nFORMULA\tM2 := M2[P]\r\nFORMULA\tN1 := N1[P]\r\nFORMULA\tN2 := N2[P]\r\nFORMULA\tS1 := S1[P]\r\nFORMULA\tX := X[P]\r\nFORMULA\tDNA := DNA[P]\r\nFORMULA\tDNM := DNM[P]\r\nFORMULA\t\r\nPRICEALLOC\tP\t0\t{RESULTID[P];;;0} {CHARSFDPN[AV];;;0} {FREQ[M];;Hz;1}\t\t\t\t\t\t\t\t\t\r\nZUSEIAVTOGUI\t1\r\n$\r\n\r\nOBJECT\tFLANGES\r\nIDENT\tDN 50 / DN 32\r\nSHORTNAME\tDAB\r\nSUCTIONSIDE\tDN 50\r\nDISCHARGESIDE\tDN 32\r\nVALUES\tDIN 2533\tPN 16\r\nVALUESSUCT\tDIN 2533\tPN 16\r\n$\r\n\r\nOBJECT\tCHECK\r\n$\r\n\r\nOBJECT\tUSERINFO\r\nIDENT\tFoto\r\nSHORTNAME\tDAB\r\nFILENAME\tnkm-g nkp-g_foto\r\n$\r\n\r\nOBJECT\tUSERINFO\r\nIDENT\tComponenti speciali a richiesta\r\nSHORTNAME\tDAB\r\nDATA\tComponenti speciali a richiesta - normalizzate monoblocco\t\t\r\n$\r\n\r\nOBJECT\tUSERINFO\r\nIDENT\tLibretto\r\nSHORTNAME\tDAB\r\nFILENAME\tCod_001354001.pdf\r\n$\r\n\r\nOBJECT\tUSERINFO\r\nIDENT\tDichiarazione di conformita\r\nSHORTNAME\tDAB\r\nFILENAME\tCod_60164947.pdf\r\n$\r\n\r\nOBJECT\tUSERINFO\r\nIDENT\tCAD\r\nSHORTNAME\tDAB\r\nFILENAME\tNKM-G_32-160_1.rar\r\n$\r\n\r\nOBJECT\tUSERINFO\r\nIDENT\tCatalogo tecnico\r\nSHORTNAME\tDAB\r\nFILENAME\tCAT14_NKM-G_NKP-G.pdf\r\n$\r\n$\r","-",11,"2016-03-08 14:02:45.047","-"]
["TPumpObj","DAB","NKM-G NKP-G my11","-","-","NKM-G 32-200","ALL","\r\nOBJECT\tPUMP\r\nIDENT\tNKM-G 32-200\r\nNEWID\t{NAME[Kg];;;0}/{D2IMP[Kl];;mm;0}/{Matcd[Ws];;;0}/{MATCODE[WD];;;0}/{Power[M];;kW;0;;;;;;,}/{POLES[M];;;0} {NEWID1[M];;;0}\r\nSHORTNAME\tDAB\r\nDATA\tNKM-G Completo\tNKM-G breve\tKDN suggerimento\r\nLIMITIND\t0\t0\r\nLIMIT\tTminfluido\t1\t[P]\t6\t32\t0\t\t-10\t-10\r\nLIMIT\tTmaxfluido\t1\t[P]\t6\t32\t0\t\t140\t140\r\nLIMIT\tTmaxambiente\t1\t[P]\t6\t32\t0\t\t40\t40\r\nPAGENO\t5\r\nSERIES\tNKM-G NKP-G my11\r\nDATASHEET\tDAB - scheda tecnica pompe centrifughe norm. Tenute Speciali no brand mot MEI\tDAB - hydraulic\tDAB - dimension  -\t\t\r\nPERFORMANCECHART\tNKM-G 32-200\t\r\nTYPE\t3\tAll\t\r\nSAFETYMARGIN\t5\t1\t0\t1\r\nPHASE\t3\r\nRESISTANCE\t0\r\nMATERIALKEY\tNKM-G_tenute speciali\t0\r\nGRIDCOLUMNS\tARTNR[P]\r\nGRIDCOLUMNS\tNAME[DNs]\r\nGRIDCOLUMNS\tNAME[DNd]\r\nGRIDCOLUMNS\tPOLES[M]\r\nGRIDCOLUMNS\tPOWER[M]\r\nGRIDCOLUMNS\tSPEED[M]\r\nMEASUREMENT\tA\t80\r\nMEASUREMENT\tB\t50\r\nMEASUREMENT\tDNA\t50\r\nMEASUREMENT\tDNM\t32\r\nMEASUREMENT\tE\t-\r\nMEASUREMENT\tF\t234\r\nMEASUREMENT\tG\t279\r\nMEASUREMENT\tH1\t160\r\nMEASUREMENT\tH2\t180\r\nMEASUREMENT\tL\t226\r\nMEASUREMENT\tM1\t100\r\nMEASUREMENT\tM2\t70\r\nMEASUREMENT\tN1\t240\r\nMEASUREMENT\tN2\t190\r\nMEASUREMENT\tS1\tM10\r\nMEASUREMENT\tW\t-\r\nMEASUREMENT\tX\t100\r\nOPTION\t1\r\nORIFICELIMIT\t0,1\t0,9\t0\r\n\r\nOBJECT\tINSTALLATION\r\nIDENT\tPompa monoblocco\r\nNEWID\tMY11\r\nSHORTNAME\tDAB\r\nFILENAME\tNKM_G_B5\r\nWEIGHT\t6\r\nLIMITIND\t0\t0\r\nLIMIT\tMEDT\t1\t[AW]\t6\t11\t1\t\t-10\t140\r\nWEIGHTFORMULA\t$Wg := if POWER[M] = 0,75 then 56\r\nWEIGHTFORMULA\t$Wg := if POWER[M] = 1,1 then 62\r\nACCSALLOC\tNKM-G NKP-G\r\nFIELDS\t\t0\t0\r\nHIDECOMP\t[AV]\r\nHIDECOMP\t[DN]\r\nHIDECOMP\t[DNd]\r\nHIDECOMP\t[DNs]\r\nHIDECOMP\t[M]\r\nHIDECOMP\t[WD]\r\nHIDECOMP\t[Ws]\r\nSEAL\tDAB\tTenuta meccanica\tBAQE\t\t\t\r\nSEAL\tDAB\tTenuta meccanica\tBQQE\t\t\t\r\nSEAL\tDAB\tTenuta meccanica\tBQQV\t\t\t\r\nSEAL\tDAB\tTenuta meccanica\tBAQV\t\t\t\r\nFORMULA\tA := A[P]\r\nFORMULA\tB := B[P]\r\nFORMULA\tF := if POWER[M] = 0,75 then 234\r\nFORMULA\tF := if POWER[M] = 1,1 then 247\r\nFORMULA\tG := G[P]\r\nFORMULA\tH1 := H1[P]\r\nFORMULA\tH2 := H2[P]\r\nFORMULA\tL := 226\r\nFORMULA\tM1 := M1[P]\r\nFORMULA\tM2 := M2[P]\r\nFORMULA\tN1 := N1[P]\r\nFORMULA\tN2 := N2[P]\r\nFORMULA\tS1 := S1[P]\r\nFORMULA\tX := X[P]\r\nFORMULA\tDNA := DNA[P]\r\nFORMULA\tDNM := DNM[P]\r\nFORMULA\t\r\nPRICEALLOC\tP\t0\t{NAME[Kg];;;0}/{D2IMP[Kl];;mm;0}/{Matcd[Ws];;;0}/{MATCODE[WD];;;0}/{Power[M];;kW;0;;;;;;,}/{POLES[M];;;0} {CHARSFDPN[AV];;;0} {FREQ[M];;Hz;1} {NEWID1[M];;;0}\t\t\t\t\t\t\t\t\t0\r\nZUSEIAVTOGUI\t1\r\n$\r\n\r\nOBJECT\tFLANGES\r\nIDENT\tDN 50 / DN 32\r\nSHORTNAME\tDAB\r\nSUCTIONSIDE\tDN 50\r\nDISCHARGESIDE\tDN 32\r\nVALUES\tDIN 2533\tPN 16\r\nVALUESSUCT\tDIN 2533\tPN 16\r\n$\r\n\r\nOBJECT\tCHECK\r\n$\r\n\r\nOBJECT\tUSERINFO\r\nIDENT\tFoto\r\nSHORTNAME\tDAB\r\nFILENAME\tnkm-g nkp-g_foto\r\n$\r\n\r\nOBJECT\tUSERINFO\r\nIDENT\tComponenti speciali a richiesta\r\nSHORTNAME\tDAB\r\nDATA\tComponenti speciali a richiesta - normalizzate monoblocco\t\t\r\n$\r\n\r\nOBJECT\tUSERINFO\r\nIDENT\tLibretto\r\nSHORTNAME\tDAB\r\nFILENAME\tCod_001354001.pdf\r\n$\r\n\r\nOBJECT\tUSERINFO\r\nIDENT\tDichiarazione di conformita\r\nSHORTNAME\tDAB\r\nFILENAME\tCod_60164947.pdf\r\n$\r\n\r\nOBJECT\tUSERINFO\r\nIDENT\tCAD\r\nSHORTNAME\tDAB\r\nFILENAME\tNKM-G_32-200.rar\r\n$\r\n\r\nOBJECT\tUSERINFO\r\nIDENT\tCatalogo tecnico\r\nSHORTNAME\tDAB\r\nFILENAME\tCAT14_NKM-G_NKP-G.pdf\r\n$\r\n$\r","-",11,"2016-03-08 14:02:45.052","-"]

{"sheet":"Как должно получиться","index":1,"n_rows":9,"n_cols":38,"rows_kept":9,"cut":false,"hidden":false,"merged":[[1,1,1,18],[1,20,1,37]]}
[]
[null,"В таком виде хотелось бы получить данные MEASUREMENT",null,null,null,null,null,null,null,null,null,null,null,null,null,null,null,null,null,null,"В таком виде хотелось бы получить данные MEASUREMENT"]
[null,"A","B","DNA","DNM","E","F","G","H1","H2","H3","L","M1","M2","N1","N2","S1","W","X",null,"A","B","DNA","DNM","E","F","G","H1","H2","H3","L","M1","M2","N1","N2","S1","W","X"]
[null,{"$f":"IFERROR(MID(SUBSTITUTE(Data!$H3,CHAR(9),\"\"),SEARCH(\"MEASUREMENT\"&B$3,SUBSTITUTE(Data!$H3,CHAR(9),\"\"))+LEN(B$3)+11,SEARCH(CHAR(10),SUBSTITUTE(Data!$H3,CHAR(9),\"\"),SEARCH(\"MEASUREMENT\"&B$3,SUBSTITUTE(Data!$H3,CHAR(9),\"\")))-SEARCH(\"MEASUREMENT\"&B$3,SUBSTITUTE(Data!$H3,CHAR(9),\"\"))-12-LEN(B$3)),\"\")","v":"100"},{"$f":"IFERROR(MID(SUBSTITUTE(Data!$H3,CHAR(9),\"\"),SEARCH(\"MEASUREMENT\"&C$3,SUBSTITUTE(Data!$H3,CHAR(9),\"\"))+LEN(C$3)+11,SEARCH(CHAR(10),SUBSTITUTE(Data!$H3,CHAR(9),\"\"),SEARCH(\"MEASUREMENT\"&C$3,SUBSTITUTE(Data!$H3,CHAR(9),\"\")))-SEARCH(\"MEASUREMENT\"&C$3,SUBSTITUTE(Data!$H3,CHAR(9),\"\"))-12-LEN(C$3)),\"\")","v":"50"},{"$f":"IFERROR(MID(SUBSTITUTE(Data!$H3,CHAR(9),\"\"),SEARCH(\"MEASUREMENT\"&D$3,SUBSTITUTE(Data!$H3,CHAR(9),\"\"))+LEN(D$3)+11,SEARCH(CHAR(10),SUBSTITUTE(Data!$H3,CHAR(9),\"\"),SEARCH(\"MEASUREMENT\"&D$3,SUBSTITUTE(Data!$H3,CHAR(9),\"\")))-SEARCH(\"MEASUREMENT\"&D$3,SUBSTITUTE(Data!$H3,CHAR(9),\"\"))-12-LEN(D$3)),\"\")","v":"65"},{"$f":"IFERROR(MID(SUBSTITUTE(Data!$H3,CHAR(9),\"\"),SEARCH(\"MEASUREMENT\"&E$3,SUBSTITUTE(Data!$H3,CHAR(9),\"\"))+LEN(E$3)+11,SEARCH(CHAR(10),SUBSTITUTE(Data!$H3,CHAR(9),\"\"),SEARCH(\"MEASUREMENT\"&E$3,SUBSTITUTE(Data!$H3,CHAR(9),\"\")))-SEARCH(\"MEASUREMENT\"&E$3,SUBSTITUTE(Data!$H3,CHAR(9),\"\"))-12-LEN(E$3)),\"\")","v":"50"},{"$f":"IFERROR(MID(SUBSTITUTE(Data!$H3,CHAR(9),\"\"),SEARCH(\"MEASUREMENT\"&F$3,SUBSTITUTE(Data!$H3,CHAR(9),\"\"))+LEN(F$3)+11,SEARCH(CHAR(10),SUBSTITUTE(Data!$H3,CHAR(9),\"\"),SEARCH(\"MEASUREMENT\"&F$3,SUBSTITUTE(Data!$H3,CHAR(9),\"\")))-SEARCH(\"MEASUREMENT\"&F$3,SUBSTITUTE(Data!$H3,CHAR(9),\"\"))-12-LEN(F$3)),\"\")","v":"-"},{"$f":"IFERROR(MID(SUBSTITUTE(Data!$H3,CHAR(9),\"\"),SEARCH(\"MEASUREMENT\"&G$3,SUBSTITUTE(Data!$H3,CHAR(9),\"\"))+LEN(G$3)+11,SEARCH(CHAR(10),SUBSTITUTE(Data!$H3,CHAR(9),\"\"),SEARCH(\"MEASUREMENT\"&G$3,SUBSTITUTE(Data!$H3,CHAR(9),\"\")))-SEARCH(\"MEASUREMENT\"&G$3,SUBSTITUTE(Data!$H3,CHAR(9),\"\"))-12-LEN(G$3)),\"\")","v":"301"},{"$f":"IFERROR(MID(SUBSTITUTE(Data!$H3,CHAR(9),\"\"),SEARCH(\"MEASUREMENT\"&H$3,SUBSTITUTE(Data!$H3,CHAR(9),\"\"))+LEN(H$3)+11,SEARCH(CHAR(10),SUBSTITUTE(Data!$H3,CHAR(9),\"\"),SEARCH(\"MEASUREMENT\"&H$3,SUBSTITUTE(Data!$H3,CHAR(9),\"\")))-SEARCH(\"MEASUREMENT\"&H$3,SUBSTITUTE(Data!$H3,CHAR(9),\"\"))-12-LEN(H$3)),\"\")","v":"251"},{"$f":"IFERROR(MID(SUBSTITUTE(Data!$H3,CHAR(9),\"\"),SEARCH(\"MEASUREMENT\"&I$3,SUBSTITUTE(Data!$H3,CHAR(9),\"\"))+LEN(I$3)+11,SEARCH(CHAR(10),SUBSTITUTE(Data!$H3,CHAR(9),\"\"),SEARCH(\"MEASUREMENT\"&I$3,SUBSTITUTE(Data!$H3,CHAR(9),\"\")))-SEARCH(\"MEASUREMENT\"&I$3,SUBSTITUTE(Data!$H3,CHAR(9),\"\"))-12-LEN(I$3)),\"\")","v":"132"},{"$f":"IFERROR(MID(SUBSTITUTE(Data!$H3,CHAR(9),\"\"),SEARCH(\"MEASUREMENT\"&J$3,SUBSTITUTE(Data!$H3,CHAR(9),\"\"))+LEN(J$3)+11,SEARCH(CHAR(10),SUBSTITUTE(Data!$H3,CHAR(9),\"\"),SEARCH(\"MEASUREMENT\"&J$3,SUBSTITUTE(Data!$H3,CHAR(9),\"\")))-SEARCH(\"MEASUREMENT\"&J$3,SUBSTITUTE(Data!$H3,CHAR(9),\"\"))-12-LEN(J$3)),\"\")","v":"160"},{"$f":"IFERROR(MID(SUBSTITUTE(Data!$H3,CHAR(9),\"\"),SEARCH(\"MEASUREMENT\"&K$3,SUBSTITUTE(Data!$H3,CHAR(9),\"\"))+LEN(K$3)+11,SEARCH(CHAR(10),SUBSTITUTE(Data!$H3,CHAR(9),\"\"),SEARCH(\"MEASUREMENT\"&K$3,SUBSTITUTE(Data!$H3,CHAR(9),\"\")))-SEARCH(\"MEASUREMENT\"&K$3,SUBSTITUTE(Data!$H3,CHAR(9),\"\"))-12-LEN(K$3)),\"\")","v":"-"},{"$f":"IFERROR(MID(SUBSTITUTE(Data!$H3,CHAR(9),\"\"),SEARCH(\"MEASUREMENT\"&L$3,SUBSTITUTE(Data!$H3,CHAR(9),\"\"))+LEN(L$3)+11,SEARCH(CHAR(10),SUBSTITUTE(Data!$H3,CHAR(9),\"\"),SEARCH(\"MEASUREMENT\"&L$3,SUBSTITUTE(Data!$H3,CHAR(9),\"\")))-SEARCH(\"MEASUREMENT\"&L$3,SUBSTITUTE(Data!$H3,CHAR(9),\"\"))-12-LEN(L$3)),\"\")","v":"274"},{"$f":"IFERROR(MID(SUBSTITUTE(Data!$H3,CHAR(9),\"\"),SEARCH(\"MEASUREMENT\"&M$3,SUBSTITUTE(Data!$H3,CHAR(9),\"\"))+LEN(M$3)+11,SEARCH(CHAR(10),SUBSTITUTE(Data!$H3,CHAR(9),\"\"),SEARCH(\"MEASUREMENT\"&M$3,SUBSTITUTE(Data!$H3,CHAR(9),\"\")))-SEARCH(\"MEASUREMENT\"&M$3,SUBSTITUTE(Data!$H3,CHAR(9),\"\"))-12-LEN(M$3)),\"\")","v":"100"},{"$f":"IFERROR(MID(SUBSTITUTE(Data!$H3,CHAR(9),\"\"),SEARCH(\"MEASUREMENT\"&N$3,SUBSTITUTE(Data!$H3,CHAR(9),\"\"))+LEN(N$3)+11,SEARCH(CHAR(10),SUBSTITUTE(Data!$H3,CHAR(9),\"\"),SEARCH(\"MEASUREMENT\"&N$3,SUBSTITUTE(Data!$H3,CHAR(9),\"\")))-SEARCH(\"MEASUREMENT\"&N$3,SUBSTITUTE(Data!$H3,CHAR(9),\"\"))-12-LEN(N$3)),\"\")","v":"70"},{"$f":"IFERROR(MID(SUBSTITUTE(Data!$H3,CHAR(9),\"\"),SEARCH(\"MEASUREMENT\"&O$3,SUBSTITUTE(Data!$H3,CHAR(9),\"\"))+LEN(O$3)+11,SEARCH(CHAR(10),SUBSTITUTE(Data!$H3,CHAR(9),\"\"),SEARCH(\"MEASUREMENT\"&O$3,SUBSTITUTE(Data!$H3,CHAR(9),\"\")))-SEARCH(\"MEASUREMENT\"&O$3,SUBSTITUTE(Data!$H3,CHAR(9),\"\"))-12-LEN(O$3)),\"\")","v":"240"},{"$f":"IFERROR(MID(SUBSTITUTE(Data!$H3,CHAR(9),\"\"),SEARCH(\"MEASUREMENT\"&P$3,SUBSTITUTE(Data!$H3,CHAR(9),\"\"))+LEN(P$3)+11,SEARCH(CHAR(10),SUBSTITUTE(Data!$H3,CHAR(9),\"\"),SEARCH(\"MEASUREMENT\"&P$3,SUBSTITUTE(Data!$H3,CHAR(9),\"\")))-SEARCH(\"MEASUREMENT\"&P$3,SUBSTITUTE(Data!$H3,CHAR(9),\"\"))-12-LEN(P$3)),\"\")","v":"190"},{"$f":"IFERROR(MID(SUBSTITUTE(Data!$H3,CHAR(9),\"\"),SEARCH(\"MEASUREMENT\"&Q$3,SUBSTITUTE(Data!$H3,CHAR(9),\"\"))+LEN(Q$3)+11,SEARCH(CHAR(10),SUBSTITUTE(Data!$H3,CHAR(9),\"\"),SEARCH(\"MEASUREMENT\"&Q$3,SUBSTITUTE(Data!$H3,CHAR(9),\"\")))-SEARCH(\"MEASUREMENT\"&Q$3,SUBSTITUTE(Data!$H3,CHAR(9),\"\"))-12-LEN(Q$3)),\"\")","v":"M10"},{"$f":"IFERROR(MID(SUBSTITUTE(Data!$H3,CHAR(9),\"\"),SEARCH(\"MEASUREMENT\"&R$3,SUBSTITUTE(Data!$H3,CHAR(9),\"\"))+LEN(R$3)+11,SEARCH(CHAR(10),SUBSTITUTE(Data!$H3,CHAR(9),\"\"),SEARCH(\"MEASUREMENT\"&R$3,SUBSTITUTE(Data!$H3,CHAR(9),\"\")))-SEARCH(\"MEASUREMENT\"&R$3,SUBSTITUTE(Data!$H3,CHAR(9),\"\"))-12-LEN(R$3)),\"\")","v":"-"},{"$f":"IFERROR(MID(SUBSTITUTE(Data!$H3,CHAR(9),\"\"),SEARCH(\"MEASUREMENT\"&S$3,SUBSTITUTE(Data!$H3,CHAR(9),\"\"))+LEN(S$3)+11,SEARCH(CHAR(10),SUBSTITUTE(Data!$H3,CHAR(9),\"\"),SEARCH(\"MEASUREMENT\"&S$3,SUBSTITUTE(Data!$H3,CHAR(9),\"\")))-SEARCH(\"MEASUREMENT\"&S$3,SUBSTITUTE(Data!$H3,CHAR(9),\"\"))-12-LEN(S$3)),\"\")","v":"100"},null,{"$f":"NumFromText(Data!$H3,U$3)","v":"100\r"},{"$f":"NumFromText(Data!$H3,V$3)","v":"50\r"},{"$f":"NumFromText(Data!$H3,W$3)","v":"65\r"},{"$f":"NumFromText(Data!$H3,X$3)","v":"50\r"},{"$f":"NumFromText(Data!$H3,Y$3)","v":"-\r"},{"$f":"NumFromText(Data!$H3,Z$3)","v":"301\r"},{"$f":"NumFromText(Data!$H3,AA$3)","v":"251\r"},{"$f":"NumFromText(Data!$H3,AB$3)","v":"132\r"},{"$f":"NumFromText(Data!$H3,AC$3)","v":"160\r"},{"$f":"NumFromText(Data!$H3,AD$3)","v":"-\r"},{"$f":"NumFromText(Data!$H3,AE$3)","v":"274\r"},{"$f":"NumFromText(Data!$H3,AF$3)","v":"100\r"},{"$f":"NumFromText(Data!$H3,AG$3)","v":"70\r"},{"$f":"NumFromText(Data!$H3,AH$3)","v":"240\r"},{"$f":"NumFromText(Data!$H3,AI$3)","v":"190\r"},{"$f":"NumFromText(Data!$H3,AJ$3)","v":"M10\r"},{"$f":"NumFromText(Data!$H3,AK$3)","v":"-\r"},{"$f":"NumFromText(Data!$H3,AL$3)","v":"100\r"}]
[null,{"$f":"IFERROR(MID(SUBSTITUTE(Data!$H4,CHAR(9),\"\"),SEARCH(\"MEASUREMENT\"&B$3,SUBSTITUTE(Data!$H4,CHAR(9),\"\"))+LEN(B$3)+11,SEARCH(CHAR(10),SUBSTITUTE(Data!$H4,CHAR(9),\"\"),SEARCH(\"MEASUREMENT\"&B$3,SUBSTITUTE(Data!$H4,CHAR(9),\"\")))-SEARCH(\"MEASUREMENT\"&B$3,SUBSTITUTE(Data!$H4,CHAR(9),\"\"))-12-LEN(B$3)),\"\")","v":"100"},{"$f":"IFERROR(MID(SUBSTITUTE(Data!$H4,CHAR(9),\"\"),SEARCH(\"MEASUREMENT\"&C$3,SUBSTITUTE(Data!$H4,CHAR(9),\"\"))+LEN(C$3)+11,SEARCH(CHAR(10),SUBSTITUTE(Data!$H4,CHAR(9),\"\"),SEARCH(\"MEASUREMENT\"&C$3,SUBSTITUTE(Data!$H4,CHAR(9),\"\")))-SEARCH(\"MEASUREMENT\"&C$3,SUBSTITUTE(Data!$H4,CHAR(9),\"\"))-12-LEN(C$3)),\"\")","v":"50"},{"$f":"IFERROR(MID(SUBSTITUTE(Data!$H4,CHAR(9),\"\"),SEARCH(\"MEASUREMENT\"&D$3,SUBSTITUTE(Data!$H4,CHAR(9),\"\"))+LEN(D$3)+11,SEARCH(CHAR(10),SUBSTITUTE(Data!$H4,CHAR(9),\"\"),SEARCH(\"MEASUREMENT\"&D$3,SUBSTITUTE(Data!$H4,CHAR(9),\"\")))-SEARCH(\"MEASUREMENT\"&D$3,SUBSTITUTE(Data!$H4,CHAR(9),\"\"))-12-LEN(D$3)),\"\")","v":"65"},{"$f":"IFERROR(MID(SUBSTITUTE(Data!$H4,CHAR(9),\"\"),SEARCH(\"MEASUREMENT\"&E$3,SUBSTITUTE(Data!$H4,CHAR(9),\"\"))+LEN(E$3)+11,SEARCH(CHAR(10),SUBSTITUTE(Data!$H4,CHAR(9),\"\"),SEARCH(\"MEASUREMENT\"&E$3,SUBSTITUTE(Data!$H4,CHAR(9),\"\")))-SEARCH(\"MEASUREMENT\"&E$3,SUBSTITUTE(Data!$H4,CHAR(9),\"\"))-12-LEN(E$3)),\"\")","v":"50"},{"$f":"IFERROR(MID(SUBSTITUTE(Data!$H4,CHAR(9),\"\"),SEARCH(\"MEASUREMENT\"&F$3,SUBSTITUTE(Data!$H4,CHAR(9),\"\"))+LEN(F$3)+11,SEARCH(CHAR(10),SUBSTITUTE(Data!$H4,CHAR(9),\"\"),SEARCH(\"MEASUREMENT\"&F$3,SUBSTITUTE(Data!$H4,CHAR(9),\"\")))-SEARCH(\"MEASUREMENT\"&F$3,SUBSTITUTE(Data!$H4,CHAR(9),\"\"))-12-LEN(F$3)),\"\")","v":"-"},{"$f":"IFERROR(MID(SUBSTITUTE(Data!$H4,CHAR(9),\"\"),SEARCH(\"MEASUREMENT\"&G$3,SUBSTITUTE(Data!$H4,CHAR(9),\"\"))+LEN(G$3)+11,SEARCH(CHAR(10),SUBSTITUTE(Data!$H4,CHAR(9),\"\"),SEARCH(\"MEASUREMENT\"&G$3,SUBSTITUTE(Data!$H4,CHAR(9),\"\")))-SEARCH(\"MEASUREMENT\"&G$3,SUBSTITUTE(Data!$H4,CHAR(9),\"\"))-12-LEN(G$3)),\"\")","v":"390"},{"$f":"IFERROR(MID(SUBSTITUTE(Data!$H4,CHAR(9),\"\"),SEARCH(\"MEASUREMENT\"&H$3,SUBSTITUTE(Data!$H4,CHAR(9),\"\"))+LEN(H$3)+11,SEARCH(CHAR(10),SUBSTITUTE(Data!$H4,CHAR(9),\"\"),SEARCH(\"MEASUREMENT\"&H$3,SUBSTITUTE(Data!$H4,CHAR(9),\"\")))-SEARCH(\"MEASUREMENT\"&H$3,SUBSTITUTE(Data!$H4,CHAR(9),\"\"))-12-LEN(H$3)),\"\")","v":"300"},{"$f":"IFERROR(MID(SUBSTITUTE(Data!$H4,CHAR(9),\"\"),SEARCH(\"MEASUREMENT\"&I$3,SUBSTITUTE(Data!$H4,CHAR(9),\"\"))+LEN(I$3)+11,SEARCH(CHAR(10),SUBSTITUTE(Data!$H4,CHAR(9),\"\"),SEARCH(\"MEASUREMENT\"&I$3,SUBSTITUTE(Data!$H4,CHAR(9),\"\")))-SEARCH(\"MEASUREMENT\"&I$3,SUBSTITUTE(Data!$H4,CHAR(9),\"\"))-12-LEN(I$3)),\"\")","v":"160"},{"$f":"IFERROR(MID(SUBSTITUTE(Data!$H4,CHAR(9),\"\"),SEARCH(\"MEASUREMENT\"&J$3,SUBSTITUTE(Data!$H4,CHAR(9),\"\"))+LEN(J$3)+11,SEARCH(CHAR(10),SUBSTITUTE(Data!$H4,CHAR(9),\"\"),SEARCH(\"MEASUREMENT\"&J$3,SUBSTITUTE(Data!$H4,CHAR(9),\"\")))-SEARCH(\"MEASUREMENT\"&J$3,SUBSTITUTE(Data!$H4,CHAR(9),\"\"))-12-LEN(J$3)),\"\")","v":"180"},{"$f":"IFERROR(MID(SUBSTITUTE(Data!$H4,CHAR(9),\"\"),SEARCH(\"MEASUREMENT\"&K$3,SUBSTITUTE(Data!$H4,CHAR(9),\"\"))+LEN(K$3)+11,SEARCH(CHAR(10),SUBSTITUTE(Data!$H4,CHAR(9),\"\"),SEARCH(\"MEASUREMENT\"&K$3,SUBSTITUTE(Data!$H4,CHAR(9),\"\")))-SEARCH(\"MEASUREMENT\"&K$3,SUBSTITUTE(Data!$H4,CHAR(9),\"\"))-12-LEN(K$3)),\"\")","v":""},{"$f":"IFERROR(MID(SUBSTITUTE(Data!$H4,CHAR(9),\"\"),SEARCH(\"MEASUREMENT\"&L$3,SUBSTITUTE(Data!$H4,CHAR(9),\"\"))+LEN(L$3)+11,SEARCH(CHAR(10),SUBSTITUTE(Data!$H4,CHAR(9),\"\"),SEARCH(\"MEASUREMENT\"&L$3,SUBSTITUTE(Data!$H4,CHAR(9),\"\")))-SEARCH(\"MEASUREMENT\"&L$3,SUBSTITUTE(Data!$H4,CHAR(9),\"\"))-12-LEN(L$3)),\"\")","v":"313"},{"$f":"IFERROR(MID(SUBSTITUTE(Data!$H4,CHAR(9),\"\"),SEARCH(\"MEASUREMENT\"&M$3,SUBSTITUTE(Data!$H4,CHAR(9),\"\"))+LEN(M$3)+11,SEARCH(CHAR(10),SUBSTITUTE(Data!$H4,CHAR(9),\"\"),SEARCH(\"MEASUREMENT\"&M$3,SUBSTITUTE(Data!$H4,CHAR(9),\"\")))-SEARCH(\"MEASUREMENT\"&M$3,SUBSTITUTE(Data!$H4,CHAR(9),\"\"))-12-LEN(M$3)),\"\")","v":"100"},{"$f":"IFERROR(MID(SUBSTITUTE(Data!$H4,CHAR(9),\"\"),SEARCH(\"MEASUREMENT\"&N$3,SUBSTITUTE(Data!$H4,CHAR(9),\"\"))+LEN(N$3)+11,SEARCH(CHAR(10),SUBSTITUTE(Data!$H4,CHAR(9),\"\"),SEARCH(\"MEASUREMENT\"&N$3,SUBSTITUTE(Data!$H4,CHAR(9),\"\")))-SEARCH(\"MEASUREMENT\"&N$3,SUBSTITUTE(Data!$H4,CHAR(9),\"\"))-12-LEN(N$3)),\"\")","v":"70"},{"$f":"IFERROR(MID(SUBSTITUTE(Data!$H4,CHAR(9),\"\"),SEARCH(\"MEASUREMENT\"&O$3,SUBSTITUTE(Data!$H4,CHAR(9),\"\"))+LEN(O$3)+11,SEARCH(CHAR(10),SUBSTITUTE(Data!$H4,CHAR(9),\"\"),SEARCH(\"MEASUREMENT\"&O$3,SUBSTITUTE(Data!$H4,CHAR(9),\"\")))-SEARCH(\"MEASUREMENT\"&O$3,SUBSTITUTE(Data!$H4,CHAR(9),\"\"))-12-LEN(O$3)),\"\")","v":"265"},{"$f":"IFERROR(MID(SUBSTITUTE(Data!$H4,CHAR(9),\"\"),SEARCH(\"MEASUREMENT\"&P$3,SUBSTITUTE(Data!$H4,CHAR(9),\"\"))+LEN(P$3)+11,SEARCH(CHAR(10),SUBSTITUTE(Data!$H4,CHAR(9),\"\"),SEARCH(\"MEASUREMENT\"&P$3,SUBSTITUTE(Data!$H4,CHAR(9),\"\")))-SEARCH(\"MEASUREMENT\"&P$3,SUBSTITUTE(Data!$H4,CHAR(9),\"\"))-12-LEN(P$3)),\"\")","v":"212"},{"$f":"IFERROR(MID(SUBSTITUTE(Data!$H4,CHAR(9),\"\"),SEARCH(\"MEASUREMENT\"&Q$3,SUBSTITUTE(Data!$H4,CHAR(9),\"\"))+LEN(Q$3)+11,SEARCH(CHAR(10),SUBSTITUTE(Data!$H4,CHAR(9),\"\"),SEARCH(\"MEASUREMENT\"&Q$3,SUBSTITUTE(Data!$H4,CHAR(9),\"\")))-SEARCH(\"MEASUREMENT\"&Q$3,SUBSTITUTE(Data!$H4,CHAR(9),\"\"))-12-LEN(Q$3)),\"\")","v":"M12"},{"$f":"IFERROR(MID(SUBSTITUTE(Data!$H4,CHAR(9),\"\"),SEARCH(\"MEASUREMENT\"&R$3,SUBSTITUTE(Data!$H4,CHAR(9),\"\"))+LEN(R$3)+11,SEARCH(CHAR(10),SUBSTITUTE(Data!$H4,CHAR(9),\"\"),SEARCH(\"MEASUREMENT\"&R$3,SUBSTITUTE(Data!$H4,CHAR(9),\"\")))-SEARCH(\"MEASUREMENT\"&R$3,SUBSTITUTE(Data!$H4,CHAR(9),\"\"))-12-LEN(R$3)),\"\")","v":"-"},{"$f":"IFERROR(MID(SUBSTITUTE(Data!$H4,CHAR(9),\"\"),SEARCH(\"MEASUREMENT\"&S$3,SUBSTITUTE(Data!$H4,CHAR(9),\"\"))+LEN(S$3)+11,SEARCH(CHAR(10),SUBSTITUTE(Data!$H4,CHAR(9),\"\"),SEARCH(\"MEASUREMENT\"&S$3,SUBSTITUTE(Data!$H4,CHAR(9),\"\")))-SEARCH(\"MEASUREMENT\"&S$3,SUBSTITUTE(Data!$H4,CHAR(9),\"\"))-12-LEN(S$3)),\"\")","v":"100"},null,{"$f":"NumFromText(Data!$H4,U$3)","v":"100\r"},{"$f":"NumFromText(Data!$H4,V$3)","v":"50\r"},{"$f":"NumFromText(Data!$H4,W$3)","v":"65\r"},{"$f":"NumFromText(Data!$H4,X$3)","v":"50\r"},{"$f":"NumFromText(Data!$H4,Y$3)","v":"-\r"},{"$f":"NumFromText(Data!$H4,Z$3)","v":"390\r"},{"$f":"NumFromText(Data!$H4,AA$3)","v":"300\r"},{"$f":"NumFromText(Data!$H4,AB$3)","v":"160\r"},{"$f":"NumFromText(Data!$H4,AC$3)","v":"180\r"},{"$f":"NumFromText(Data!$H4,AD$3)","v":""},{"$f":"NumFromText(Data!$H4,AE$3)","v":"313\r"},{"$f":"NumFromText(Data!$H4,AF$3)","v":"100\r"},{"$f":"NumFromText(Data!$H4,AG$3)","v":"70\r"},{"$f":"NumFromText(Data!$H4,AH$3)","v":"265\r"},{"$f":"NumFromText(Data!$H4,AI$3)","v":"212\r"},{"$f":"NumFromText(Data!$H4,AJ$3)","v":"M12\r"},{"$f":"NumFromText(Data!$H4,AK$3)","v":"-\r"},{"$f":"NumFromText(Data!$H4,AL$3)","v":"100\r"}]
[null,{"$f":"IFERROR(MID(SUBSTITUTE(Data!$H5,CHAR(9),\"\"),SEARCH(\"MEASUREMENT\"&B$3,SUBSTITUTE(Data!$H5,CHAR(9),\"\"))+LEN(B$3)+11,SEARCH(CHAR(10),SUBSTITUTE(Data!$H5,CHAR(9),\"\"),SEARCH(\"MEASUREMENT\"&B$3,SUBSTITUTE(Data!$H5,CHAR(9),\"\")))-SEARCH(\"MEASUREMENT\"&B$3,SUBSTITUTE(Data!$H5,CHAR(9),\"\"))-12-LEN(B$3)),\"\")","v":"100"},{"$f":"IFERROR(MID(SUBSTITUTE(Data!$H5,CHAR(9),\"\"),SEARCH(\"MEASUREMENT\"&C$3,SUBSTITUTE(Data!$H5,CHAR(9),\"\"))+LEN(C$3)+11,SEARCH(CHAR(10),SUBSTITUTE(Data!$H5,CHAR(9),\"\"),SEARCH(\"MEASUREMENT\"&C$3,SUBSTITUTE(Data!$H5,CHAR(9),\"\")))-SEARCH(\"MEASUREMENT\"&C$3,SUBSTITUTE(Data!$H5,CHAR(9),\"\"))-12-LEN(C$3)),\"\")","v":"67"},{"$f":"IFERROR(MID(SUBSTITUTE(Data!$H5,CHAR(9),\"\"),SEARCH(\"MEASUREMENT\"&D$3,SUBSTITUTE(Data!$H5,CHAR(9),\"\"))+LEN(D$3)+11,SEARCH(CHAR(10),SUBSTITUTE(Data!$H5,CHAR(9),\"\"),SEARCH(\"MEASUREMENT\"&D$3,SUBSTITUTE(Data!$H5,CHAR(9),\"\")))-SEARCH(\"MEASUREMENT\"&D$3,SUBSTITUTE(Data!$H5,CHAR(9),\"\"))-12-LEN(D$3)),\"\")","v":"65"},{"$f":"IFERROR(MID(SUBSTITUTE(Data!$H5,CHAR(9),\"\"),SEARCH(\"MEASUREMENT\"&E$3,SUBSTITUTE(Data!$H5,CHAR(9),\"\"))+LEN(E$3)+11,SEARCH(CHAR(10),SUBSTITUTE(Data!$H5,CHAR(9),\"\"),SEARCH(\"MEASUREMENT\"&E$3,SUBSTITUTE(Data!$H5,CHAR(9),\"\")))-SEARCH(\"MEASUREMENT\"&E$3,SUBSTITUTE(Data!$H5,CHAR(9),\"\"))-12-LEN(E$3)),\"\")","v":"50"},{"$f":"IFERROR(MID(SUBSTITUTE(Data!$H5,CHAR(9),\"\"),SEARCH(\"MEASUREMENT\"&F$3,SUBSTITUTE(Data!$H5,CHAR(9),\"\"))+LEN(F$3)+11,SEARCH(CHAR(10),SUBSTITUTE(Data!$H5,CHAR(9),\"\"),SEARCH(\"MEASUREMENT\"&F$3,SUBSTITUTE(Data!$H5,CHAR(9),\"\")))-SEARCH(\"MEASUREMENT\"&F$3,SUBSTITUTE(Data!$H5,CHAR(9),\"\"))-12-LEN(F$3)),\"\")","v":"210"},{"$f":"IFERROR(MID(SUBSTITUTE(Data!$H5,CHAR(9),\"\"),SEARCH(\"MEASUREMENT\"&G$3,SUBSTITUTE(Data!$H5,CHAR(9),\"\"))+LEN(G$3)+11,SEARCH(CHAR(10),SUBSTITUTE(Data!$H5,CHAR(9),\"\"),SEARCH(\"MEASUREMENT\"&G$3,SUBSTITUTE(Data!$H5,CHAR(9),\"\")))-SEARCH(\"MEASUREMENT\"&G$3,SUBSTITUTE(Data!$H5,CHAR(9),\"\"))-12-LEN(G$3)),\"\")","v":"460"},{"$f":"IFERROR(MID(SUBSTITUTE(Data!$H5,CHAR(9),\"\"),SEARCH(\"MEASUREMENT\"&H$3,SUBSTITUTE(Data!$H5,CHAR(9),\"\"))+LEN(H$3)+11,SEARCH(CHAR(10),SUBSTITUTE(Data!$H5,CHAR(9),\"\"),SEARCH(\"MEASUREMENT\"&H$3,SUBSTITUTE(Data!$H5,CHAR(9),\"\")))-SEARCH(\"MEASUREMENT\"&H$3,SUBSTITUTE(Data!$H5,CHAR(9),\"\"))-12-LEN(H$3)),\"\")","v":"350"},{"$f":"IFERROR(MID(SUBSTITUTE(Data!$H5,CHAR(9),\"\"),SEARCH(\"MEASUREMENT\"&I$3,SUBSTITUTE(Data!$H5,CHAR(9),\"\"))+LEN(I$3)+11,SEARCH(CHAR(10),SUBSTITUTE(Data!$H5,CHAR(9),\"\"),SEARCH(\"MEASUREMENT\"&I$3,SUBSTITUTE(Data!$H5,CHAR(9),\"\")))-SEARCH(\"MEASUREMENT\"&I$3,SUBSTITUTE(Data!$H5,CHAR(9),\"\"))-12-LEN(I$3)),\"\")","v":"160"},{"$f":"IFERROR(MID(SUBSTITUTE(Data!$H5,CHAR(9),\"\"),SEARCH(\"MEASUREMENT\"&J$3,SUBSTITUTE(Data!$H5,CHAR(9),\"\"))+LEN(J$3)+11,SEARCH(CHAR(10),SUBSTITUTE(Data!$H5,CHAR(9),\"\"),SEARCH(\"MEASUREMENT\"&J$3,SUBSTITUTE(Data!$H5,CHAR(9),\"\")))-SEARCH(\"MEASUREMENT\"&J$3,SUBSTITUTE(Data!$H5,CHAR(9),\"\"))-12-LEN(J$3)),\"\")","v":"200"},{"$f":"IFERROR(MID(SUBSTITUTE(Data!$H5,CHAR(9),\"\"),SEARCH(\"MEASUREMENT\"&K$3,SUBSTITUTE(Data!$H5,CHAR(9),\"\"))+LEN(K$3)+11,SEARCH(CHAR(10),SUBSTITUTE(Data!$H5,CHAR(9),\"\"),SEARCH(\"MEASUREMENT\"&K$3,SUBSTITUTE(Data!$H5,CHAR(9),\"\")))-SEARCH(\"MEASUREMENT\"&K$3,SUBSTITUTE(Data!$H5,CHAR(9),\"\"))-12-LEN(K$3)),\"\")","v":""},{"$f":"IFERROR(MID(SUBSTITUTE(Data!$H5,CHAR(9),\"\"),SEARCH(\"MEASUREMENT\"&L$3,SUBSTITUTE(Data!$H5,CHAR(9),\"\"))+LEN(L$3)+11,SEARCH(CHAR(10),SUBSTITUTE(Data!$H5,CHAR(9),\"\"),SEARCH(\"MEASUREMENT\"&L$3,SUBSTITUTE(Data!$H5,CHAR(9),\"\")))-SEARCH(\"MEASUREMENT\"&L$3,SUBSTITUTE(Data!$H5,CHAR(9),\"\"))-12-LEN(L$3)),\"\")","v":"343"},{"$f":"IFERROR(MID(SUBSTITUTE(Data!$H5,CHAR(9),\"\"),SEARCH(\"MEASUREMENT\"&M$3,SUBSTITUTE(Data!$H5,CHAR(9),\"\"))+LEN(M$3)+11,SEARCH(CHAR(10),SUBSTITUTE(Data!$H5,CHAR(9),\"\"),SEARCH(\"MEASUREMENT\"&M$3,SUBSTITUTE(Data!$H5,CHAR(9),\"\")))-SEARCH(\"MEASUREMENT\"&M$3,SUBSTITUTE(Data!$H5,CHAR(9),\"\"))-12-LEN(M$3)),\"\")","v":"-"},{"$f":"IFERROR(MID(SUBSTITUTE(Data!$H5,CHAR(9),\"\"),SEARCH(\"MEASUREMENT\"&N$3,SUBSTITUTE(Data!$H5,CHAR(9),\"\"))+LEN(N$3)+11,SEARCH(CHAR(10),SUBSTITUTE(Data!$H5,CHAR(9),\"\"),SEARCH(\"MEASUREMENT\"&N$3,SUBSTITUTE(Data!$H5,CHAR(9),\"\")))-SEARCH(\"MEASUREMENT\"&N$3,SUBSTITUTE(Data!$H5,CHAR(9),\"\"))-12-LEN(N$3)),\"\")","v":"-"},{"$f":"IFERROR(MID(SUBSTITUTE(Data!$H5,CHAR(9),\"\"),SEARCH(\"MEASUREMENT\"&O$3,SUBSTITUTE(Data!$H5,CHAR(9),\"\"))+LEN(O$3)+11,SEARCH(CHAR(10),SUBSTITUTE(Data!$H5,CHAR(9),\"\"),SEARCH(\"MEASUREMENT\"&O$3,SUBSTITUTE(Data!$H5,CHAR(9),\"\")))-SEARCH(\"MEASUREMENT\"&O$3,SUBSTITUTE(Data!$H5,CHAR(9),\"\"))-12-LEN(O$3)),\"\")","v":"314"},{"$f":"IFERROR(MID(SUBSTITUTE(Data!$H5,CHAR(9),\"\"),SEARCH(\"MEASUREMENT\"&P$3,SUBSTITUTE(Data!$H5,CHAR(9),\"\"))+LEN(P$3)+11,SEARCH(CHAR(10),SUBSTITUTE(Data!$H5,CHAR(9),\"\"),SEARCH(\"MEASUREMENT\"&P$3,SUBSTITUTE(Data!$H5,CHAR(9),\"\")))-SEARCH(\"MEASUREMENT\"&P$3,SUBSTITUTE(Data!$H5,CHAR(9),\"\"))-12-LEN(P$3)),\"\")","v":"254"},{"$f":"IFERROR(MID(SUBSTITUTE(Data!$H5,CHAR(9),\"\"),SEARCH(\"MEASUREMENT\"&Q$3,SUBSTITUTE(Data!$H5,CHAR(9),\"\"))+LEN(Q$3)+11,SEARCH(CHAR(10),SUBSTITUTE(Data!$H5,CHAR(9),\"\"),SEARCH(\"MEASUREMENT\"&Q$3,SUBSTITUTE(Data!$H5,CHAR(9),\"\")))-SEARCH(\"MEASUREMENT\"&Q$3,SUBSTITUTE(Data!$H5,CHAR(9),\"\"))-12-LEN(Q$3)),\"\")","v":"M12"},{"$f":"IFERROR(MID(SUBSTITUTE(Data!$H5,CHAR(9),\"\"),SEARCH(\"MEASUREMENT\"&R$3,SUBSTITUTE(Data!$H5,CHAR(9),\"\"))+LEN(R$3)+11,SEARCH(CHAR(10),SUBSTITUTE(Data!$H5,CHAR(9),\"\"),SEARCH(\"MEASUREMENT\"&R$3,SUBSTITUTE(Data!$H5,CHAR(9),\"\")))-SEARCH(\"MEASUREMENT\"&R$3,SUBSTITUTE(Data!$H5,CHAR(9),\"\"))-12-LEN(R$3)),\"\")","v":"351"},{"$f":"IFERROR(MID(SUBSTITUTE(Data!$H5,CHAR(9),\"\"),SEARCH(\"MEASUREMENT\"&S$3,SUBSTITUTE(Data!$H5,CHAR(9),\"\"))+LEN(S$3)+11,SEARCH(CHAR(10),SUBSTITUTE(Data!$H5,CHAR(9),\"\"),SEARCH(\"MEASUREMENT\"&S$3,SUBSTITUTE(Data!$H5,CHAR(9),\"\")))-SEARCH(\"MEASUREMENT\"&S$3,SUBSTITUTE(Data!$H5,CHAR(9),\"\"))-12-LEN(S$3)),\"\")","v":"100"},null,{"$f":"NumFromText(Data!$H5,U$3)","v":"100\r"},{"$f":"NumFromText(Data!$H5,V$3)","v":"67\r"},{"$f":"NumFromText(Data!$H5,W$3)","v":"65\r"},{"$f":"NumFromText(Data!$H5,X$3)","v":"50\r"},{"$f":"NumFromText(Data!$H5,Y$3)","v":"210\r"},{"$f":"NumFromText(Data!$H5,Z$3)","v":"460\r"},{"$f":"NumFromText(Data!$H5,AA$3)","v":"350\r"},{"$f":"NumFromText(Data!$H5,AB$3)","v":"160\r"},{"$f":"NumFromText(Data!$H5,AC$3)","v":"200\r"},{"$f":"NumFromText(Data!$H5,AD$3)","v":""},{"$f":"NumFromText(Data!$H5,AE$3)","v":"343\r"},{"$f":"NumFromText(Data!$H5,AF$3)","v":"-\r"},{"$f":"NumFromText(Data!$H5,AG$3)","v":"-\r"},{"$f":"NumFromText(Data!$H5,AH$3)","v":"314\r"},{"$f":"NumFromText(Data!$H5,AI$3)","v":"254\r"},{"$f":"NumFromText(Data!$H5,AJ$3)","v":"M12\r"},{"$f":"NumFromText(Data!$H5,AK$3)","v":"351\r"},{"$f":"NumFromText(Data!$H5,AL$3)","v":"100\r"}]
[null,{"$f":"IFERROR(MID(SUBSTITUTE(Data!$H6,CHAR(9),\"\"),SEARCH(\"MEASUREMENT\"&B$3,SUBSTITUTE(Data!$H6,CHAR(9),\"\"))+LEN(B$3)+11,SEARCH(CHAR(10),SUBSTITUTE(Data!$H6,CHAR(9),\"\"),SEARCH(\"MEASUREMENT\"&B$3,SUBSTITUTE(Data!$H6,CHAR(9),\"\")))-SEARCH(\"MEASUREMENT\"&B$3,SUBSTITUTE(Data!$H6,CHAR(9),\"\"))-12-LEN(B$3)),\"\")","v":"100"},{"$f":"IFERROR(MID(SUBSTITUTE(Data!$H6,CHAR(9),\"\"),SEARCH(\"MEASUREMENT\"&C$3,SUBSTITUTE(Data!$H6,CHAR(9),\"\"))+LEN(C$3)+11,SEARCH(CHAR(10),SUBSTITUTE(Data!$H6,CHAR(9),\"\"),SEARCH(\"MEASUREMENT\"&C$3,SUBSTITUTE(Data!$H6,CHAR(9),\"\")))-SEARCH(\"MEASUREMENT\"&C$3,SUBSTITUTE(Data!$H6,CHAR(9),\"\"))-12-LEN(C$3)),\"\")","v":"74"},{"$f":"IFERROR(MID(SUBSTITUTE(Data!$H6,CHAR(9),\"\"),SEARCH(\"MEASUREMENT\"&D$3,SUBSTITUTE(Data!$H6,CHAR(9),\"\"))+LEN(D$3)+11,SEARCH(CHAR(10),SUBSTITUTE(Data!$H6,CHAR(9),\"\"),SEARCH(\"MEASUREMENT\"&D$3,SUBSTITUTE(Data!$H6,CHAR(9),\"\")))-SEARCH(\"MEASUREMENT\"&D$3,SUBSTITUTE(Data!$H6,CHAR(9),\"\"))-12-LEN(D$3)),\"\")","v":"65"},{"$f":"IFERROR(MID(SUBSTITUTE(Data!$H6,CHAR(9),\"\"),SEARCH(\"MEASUREMENT\"&E$3,SUBSTITUTE(Data!$H6,CHAR(9),\"\"))+LEN(E$3)+11,SEARCH(CHAR(10),SUBSTITUTE(Data!$H6,CHAR(9),\"\"),SEARCH(\"MEASUREMENT\"&E$3,SUBSTITUTE(Data!$H6,CHAR(9),\"\")))-SEARCH(\"MEASUREMENT\"&E$3,SUBSTITUTE(Data!$H6,CHAR(9),\"\"))-12-LEN(E$3)),\"\")","v":"50"},{"$f":"IFERROR(MID(SUBSTITUTE(Data!$H6,CHAR(9),\"\"),SEARCH(\"MEASUREMENT\"&F$3,SUBSTITUTE(Data!$H6,CHAR(9),\"\"))+LEN(F$3)+11,SEARCH(CHAR(10),SUBSTITUTE(Data!$H6,CHAR(9),\"\"),SEARCH(\"MEASUREMENT\"&F$3,SUBSTITUTE(Data!$H6,CHAR(9),\"\")))-SEARCH(\"MEASUREMENT\"&F$3,SUBSTITUTE(Data!$H6,CHAR(9),\"\"))-12-LEN(F$3)),\"\")","v":"241"},{"$f":"IFERROR(MID(SUBSTITUTE(Data!$H6,CHAR(9),\"\"),SEARCH(\"MEASUREMENT\"&G$3,SUBSTITUTE(Data!$H6,CHAR(9),\"\"))+LEN(G$3)+11,SEARCH(CHAR(10),SUBSTITUTE(Data!$H6,CHAR(9),\"\"),SEARCH(\"MEASUREMENT\"&G$3,SUBSTITUTE(Data!$H6,CHAR(9),\"\")))-SEARCH(\"MEASUREMENT\"&G$3,SUBSTITUTE(Data!$H6,CHAR(9),\"\"))-12-LEN(G$3)),\"\")","v":"580"},{"$f":"IFERROR(MID(SUBSTITUTE(Data!$H6,CHAR(9),\"\"),SEARCH(\"MEASUREMENT\"&H$3,SUBSTITUTE(Data!$H6,CHAR(9),\"\"))+LEN(H$3)+11,SEARCH(CHAR(10),SUBSTITUTE(Data!$H6,CHAR(9),\"\"),SEARCH(\"MEASUREMENT\"&H$3,SUBSTITUTE(Data!$H6,CHAR(9),\"\")))-SEARCH(\"MEASUREMENT\"&H$3,SUBSTITUTE(Data!$H6,CHAR(9),\"\"))-12-LEN(H$3)),\"\")","v":"350"},{"$f":"IFERROR(MID(SUBSTITUTE(Data!$H6,CHAR(9),\"\"),SEARCH(\"MEASUREMENT\"&I$3,SUBSTITUTE(Data!$H6,CHAR(9),\"\"))+LEN(I$3)+11,SEARCH(CHAR(10),SUBSTITUTE(Data!$H6,CHAR(9),\"\"),SEARCH(\"MEASUREMENT\"&I$3,SUBSTITUTE(Data!$H6,CHAR(9),\"\")))-SEARCH(\"MEASUREMENT\"&I$3,SUBSTITUTE(Data!$H6,CHAR(9),\"\"))-12-LEN(I$3)),\"\")","v":"180"},{"$f":"IFERROR(MID(SUBSTITUTE(Data!$H6,CHAR(9),\"\"),SEARCH(\"MEASUREMENT\"&J$3,SUBSTITUTE(Data!$H6,CHAR(9),\"\"))+LEN(J$3)+11,SEARCH(CHAR(10),SUBSTITUTE(Data!$H6,CHAR(9),\"\"),SEARCH(\"MEASUREMENT\"&J$3,SUBSTITUTE(Data!$H6,CHAR(9),\"\")))-SEARCH(\"MEASUREMENT\"&J$3,SUBSTITUTE(Data!$H6,CHAR(9),\"\"))-12-LEN(J$3)),\"\")","v":"225"},{"$f":"IFERROR(MID(SUBSTITUTE(Data!$H6,CHAR(9),\"\"),SEARCH(\"MEASUREMENT\"&K$3,SUBSTITUTE(Data!$H6,CHAR(9),\"\"))+LEN(K$3)+11,SEARCH(CHAR(10),SUBSTITUTE(Data!$H6,CHAR(9),\"\"),SEARCH(\"MEASUREMENT\"&K$3,SUBSTITUTE(Data!$H6,CHAR(9),\"\")))-SEARCH(\"MEASUREMENT\"&K$3,SUBSTITUTE(Data!$H6,CHAR(9),\"\"))-12-LEN(K$3)),\"\")","v":""},{"$f":"IFERROR(MID(SUBSTITUTE(Data!$H6,CHAR(9),\"\"),SEARCH(\"MEASUREMENT\"&L$3,SUBSTITUTE(Data!$H6,CHAR(9),\"\"))+LEN(L$3)+11,SEARCH(CHAR(10),SUBSTITUTE(Data!$H6,CHAR(9),\"\"),SEARCH(\"MEASUREMENT\"&L$3,SUBSTITUTE(Data!$H6,CHAR(9),\"\")))-SEARCH(\"MEASUREMENT\"&L$3,SUBSTITUTE(Data!$H6,CHAR(9),\"\"))-12-LEN(L$3)),\"\")","v":"343"},{"$f":"IFERROR(MID(SUBSTITUTE(Data!$H6,CHAR(9),\"\"),SEARCH(\"MEASUREMENT\"&M$3,SUBSTITUTE(Data!$H6,CHAR(9),\"\"))+LEN(M$3)+11,SEARCH(CHAR(10),SUBSTITUTE(Data!$H6,CHAR(9),\"\"),SEARCH(\"MEASUREMENT\"&M$3,SUBSTITUTE(Data!$H6,CHAR(9),\"\")))-SEARCH(\"MEASUREMENT\"&M$3,SUBSTITUTE(Data!$H6,CHAR(9),\"\"))-12-LEN(M$3)),\"\")","v":"-"},{"$f":"IFERROR(MID(SUBSTITUTE(Data!$H6,CHAR(9),\"\"),SEARCH(\"MEASUREMENT\"&N$3,SUBSTITUTE(Data!$H6,CHAR(9),\"\"))+LEN(N$3)+11,SEARCH(CHAR(10),SUBSTITUTE(Data!$H6,CHAR(9),\"\"),SEARCH(\"MEASUREMENT\"&N$3,SUBSTITUTE(Data!$H6,CHAR(9),\"\")))-SEARCH(\"MEASUREMENT\"&N$3,SUBSTITUTE(Data!$H6,CHAR(9),\"\"))-12-LEN(N$3)),\"\")","v":"-"},{"$f":"IFERROR(MID(SUBSTITUTE(Data!$H6,CHAR(9),\"\"),SEARCH(\"MEASUREMENT\"&O$3,SUBSTITUTE(Data!$H6,CHAR(9),\"\"))+LEN(O$3)+11,SEARCH(CHAR(10),SUBSTITUTE(Data!$H6,CHAR(9),\"\"),SEARCH(\"MEASUREMENT\"&O$3,SUBSTITUTE(Data!$H6,CHAR(9),\"\")))-SEARCH(\"MEASUREMENT\"&O$3,SUBSTITUTE(Data!$H6,CHAR(9),\"\"))-12-LEN(O$3)),\"\")","v":"345"},{"$f":"IFERROR(MID(SUBSTITUTE(Data!$H6,CHAR(9),\"\"),SEARCH(\"MEASUREMENT\"&P$3,SUBSTITUTE(Data!$H6,CHAR(9),\"\"))+LEN(P$3)+11,SEARCH(CHAR(10),SUBSTITUTE(Data!$H6,CHAR(9),\"\"),SEARCH(\"MEASUREMENT\"&P$3,SUBSTITUTE(Data!$H6,CHAR(9),\"\")))-SEARCH(\"MEASUREMENT\"&P$3,SUBSTITUTE(Data!$H6,CHAR(9),\"\"))-12-LEN(P$3)),\"\")","v":"279"},{"$f":"IFERROR(MID(SUBSTITUTE(Data!$H6,CHAR(9),\"\"),SEARCH(\"MEASUREMENT\"&Q$3,SUBSTITUTE(Data!$H6,CHAR(9),\"\"))+LEN(Q$3)+11,SEARCH(CHAR(10),SUBSTITUTE(Data!$H6,CHAR(9),\"\"),SEARCH(\"MEASUREMENT\"&Q$3,SUBSTITUTE(Data!$H6,CHAR(9),\"\")))-SEARCH(\"MEASUREMENT\"&Q$3,SUBSTITUTE(Data!$H6,CHAR(9),\"\"))-12-LEN(Q$3)),\"\")","v":"M12"},{"$f":"IFERROR(MID(SUBSTITUTE(Data!$H6,CHAR(9),\"\"),SEARCH(\"MEASUREMENT\"&R$3,SUBSTITUTE(Data!$H6,CHAR(9),\"\"))+LEN(R$3)+11,SEARCH(CHAR(10),SUBSTITUTE(Data!$H6,CHAR(9),\"\"),SEARCH(\"MEASUREMENT\"&R$3,SUBSTITUTE(Data!$H6,CHAR(9),\"\")))-SEARCH(\"MEASUREMENT\"&R$3,SUBSTITUTE(Data!$H6,CHAR(9),\"\"))-12-LEN(R$3)),\"\")","v":"364"},{"$f":"IFERROR(MID(SUBSTITUTE(Data!$H6,CHAR(9),\"\"),SEARCH(\"MEASUREMENT\"&S$3,SUBSTITUTE(Data!$H6,CHAR(9),\"\"))+LEN(S$3)+11,SEARCH(CHAR(10),SUBSTITUTE(Data!$H6,CHAR(9),\"\"),SEARCH(\"MEASUREMENT\"&S$3,SUBSTITUTE(Data!$H6,CHAR(9),\"\")))-SEARCH(\"MEASUREMENT\"&S$3,SUBSTITUTE(Data!$H6,CHAR(9),\"\"))-12-LEN(S$3)),\"\")","v":"100"},null,{"$f":"NumFromText(Data!$H6,U$3)","v":"100\r"},{"$f":"NumFromText(Data!$H6,V$3)","v":"74\r"},{"$f":"NumFromText(Data!$H6,W$3)","v":"65\r"},{"$f":"NumFromText(Data!$H6,X$3)","v":"50\r"},{"$f":"NumFromText(Data!$H6,Y$3)","v":"241\r"},{"$f":"NumFromText(Data!$H6,Z$3)","v":"580\r"},{"$f":"NumFromText(Data!$H6,AA$3)","v":"350\r"},{"$f":"NumFromText(Data!$H6,AB$3)","v":"180\r"},{"$f":"NumFromText(Data!$H6,AC$3)","v":"225\r"},{"$f":"NumFromText(Data!$H6,AD$3)","v":""},{"$f":"NumFromText(Data!$H6,AE$3)","v":"343\r"},{"$f":"NumFromText(Data!$H6,AF$3)","v":"-\r"},{"$f":"NumFromText(Data!$H6,AG$3)","v":"-\r"},{"$f":"NumFromText(Data!$H6,AH$3)","v":"345\r"},{"$f":"NumFromText(Data!$H6,AI$3)","v":"279\r"},{"$f":"NumFromText(Data!$H6,AJ$3)","v":"M12\r"},{"$f":"NumFromText(Data!$H6,AK$3)","v":"364\r"},{"$f":"NumFromText(Data!$H6,AL$3)","v":"100\r"}]
[null,{"$f":"IFERROR(MID(SUBSTITUTE(Data!$H7,CHAR(9),\"\"),SEARCH(\"MEASUREMENT\"&B$3,SUBSTITUTE(Data!$H7,CHAR(9),\"\"))+LEN(B$3)+11,SEARCH(CHAR(10),SUBSTITUTE(Data!$H7,CHAR(9),\"\"),SEARCH(\"MEASUREMENT\"&B$3,SUBSTITUTE(Data!$H7,CHAR(9),\"\")))-SEARCH(\"MEASUREMENT\"&B$3,SUBSTITUTE(Data!$H7,CHAR(9),\"\"))-12-LEN(B$3)),\"\")","v":"100"},{"$f":"IFERROR(MID(SUBSTITUTE(Data!$H7,CHAR(9),\"\"),SEARCH(\"MEASUREMENT\"&C$3,SUBSTITUTE(Data!$H7,CHAR(9),\"\"))+LEN(C$3)+11,SEARCH(CHAR(10),SUBSTITUTE(Data!$H7,CHAR(9),\"\"),SEARCH(\"MEASUREMENT\"&C$3,SUBSTITUTE(Data!$H7,CHAR(9),\"\")))-SEARCH(\"MEASUREMENT\"&C$3,SUBSTITUTE(Data!$H7,CHAR(9),\"\"))-12-LEN(C$3)),\"\")","v":"65"},{"$f":"IFERROR(MID(SUBSTITUTE(Data!$H7,CHAR(9),\"\"),SEARCH(\"MEASUREMENT\"&D$3,SUBSTITUTE(Data!$H7,CHAR(9),\"\"))+LEN(D$3)+11,SEARCH(CHAR(10),SUBSTITUTE(Data!$H7,CHAR(9),\"\"),SEARCH(\"MEASUREMENT\"&D$3,SUBSTITUTE(Data!$H7,CHAR(9),\"\")))-SEARCH(\"MEASUREMENT\"&D$3,SUBSTITUTE(Data!$H7,CHAR(9),\"\"))-12-LEN(D$3)),\"\")","v":"80"},{"$f":"IFERROR(MID(SUBSTITUTE(Data!$H7,CHAR(9),\"\"),SEARCH(\"MEASUREMENT\"&E$3,SUBSTITUTE(Data!$H7,CHAR(9),\"\"))+LEN(E$3)+11,SEARCH(CHAR(10),SUBSTITUTE(Data!$H7,CHAR(9),\"\"),SEARCH(\"MEASUREMENT\"&E$3,SUBSTITUTE(Data!$H7,CHAR(9),\"\")))-SEARCH(\"MEASUREMENT\"&E$3,SUBSTITUTE(Data!$H7,CHAR(9),\"\"))-12-LEN(E$3)),\"\")","v":"65"},{"$f":"IFERROR(MID(SUBSTITUTE(Data!$H7,CHAR(9),\"\"),SEARCH(\"MEASUREMENT\"&F$3,SUBSTITUTE(Data!$H7,CHAR(9),\"\"))+LEN(F$3)+11,SEARCH(CHAR(10),SUBSTITUTE(Data!$H7,CHAR(9),\"\"),SEARCH(\"MEASUREMENT\"&F$3,SUBSTITUTE(Data!$H7,CHAR(9),\"\")))-SEARCH(\"MEASUREMENT\"&F$3,SUBSTITUTE(Data!$H7,CHAR(9),\"\"))-12-LEN(F$3)),\"\")","v":"-"},{"$f":"IFERROR(MID(SUBSTITUTE(Data!$H7,CHAR(9),\"\"),SEARCH(\"MEASUREMENT\"&G$3,SUBSTITUTE(Data!$H7,CHAR(9),\"\"))+LEN(G$3)+11,SEARCH(CHAR(10),SUBSTITUTE(Data!$H7,CHAR(9),\"\"),SEARCH(\"MEASUREMENT\"&G$3,SUBSTITUTE(Data!$H7,CHAR(9),\"\")))-SEARCH(\"MEASUREMENT\"&G$3,SUBSTITUTE(Data!$H7,CHAR(9),\"\"))-12-LEN(G$3)),\"\")","v":"390"},{"$f":"IFERROR(MID(SUBSTITUTE(Data!$H7,CHAR(9),\"\"),SEARCH(\"MEASUREMENT\"&H$3,SUBSTITUTE(Data!$H7,CHAR(9),\"\"))+LEN(H$3)+11,SEARCH(CHAR(10),SUBSTITUTE(Data!$H7,CHAR(9),\"\"),SEARCH(\"MEASUREMENT\"&H$3,SUBSTITUTE(Data!$H7,CHAR(9),\"\")))-SEARCH(\"MEASUREMENT\"&H$3,SUBSTITUTE(Data!$H7,CHAR(9),\"\"))-12-LEN(H$3)),\"\")","v":"300"},{"$f":"IFERROR(MID(SUBSTITUTE(Data!$H7,CHAR(9),\"\"),SEARCH(\"MEASUREMENT\"&I$3,SUBSTITUTE(Data!$H7,CHAR(9),\"\"))+LEN(I$3)+11,SEARCH(CHAR(10),SUBSTITUTE(Data!$H7,CHAR(9),\"\"),SEARCH(\"MEASUREMENT\"&I$3,SUBSTITUTE(Data!$H7,CHAR(9),\"\")))-SEARCH(\"MEASUREMENT\"&I$3,SUBSTITUTE(Data!$H7,CHAR(9),\"\"))-12-LEN(I$3)),\"\")","v":"160"},{"$f":"IFERROR(MID(SUBSTITUTE(Data!$H7,CHAR(9),\"\"),SEARCH(\"MEASUREMENT\"&J$3,SUBSTITUTE(Data!$H7,CHAR(9),\"\"))+LEN(J$3)+11,SEARCH(CHAR(10),SUBSTITUTE(Data!$H7,CHAR(9),\"\"),SEARCH(\"MEASUREMENT\"&J$3,SUBSTITUTE(Data!$H7,CHAR(9),\"\")))-SEARCH(\"MEASUREMENT\"&J$3,SUBSTITUTE(Data!$H7,CHAR(9),\"\"))-12-LEN(J$3)),\"\")","v":"180"},{"$f":"IFERROR(MID(SUBSTITUTE(Data!$H7,CHAR(9),\"\"),SEARCH(\"MEASUREMENT\"&K$3,SUBSTITUTE(Data!$H7,CHAR(9),\"\"))+LEN(K$3)+11,SEARCH(CHAR(10),SUBSTITUTE(Data!$H7,CHAR(9),\"\"),SEARCH(\"MEASUREMENT\"&K$3,SUBSTITUTE(Data!$H7,CHAR(9),\"\")))-SEARCH(\"MEASUREMENT\"&K$3,SUBSTITUTE(Data!$H7,CHAR(9),\"\"))-12-LEN(K$3)),\"\")","v":""},{"$f":"IFERROR(MID(SUBSTITUTE(Data!$H7,CHAR(9),\"\"),SEARCH(\"MEASUREMENT\"&L$3,SUBSTITUTE(Data!$H7,CHAR(9),\"\"))+LEN(L$3)+11,SEARCH(CHAR(10),SUBSTITUTE(Data!$H7,CHAR(9),\"\"),SEARCH(\"MEASUREMENT\"&L$3,SUBSTITUTE(Data!$H7,CHAR(9),\"\")))-SEARCH(\"MEASUREMENT\"&L$3,SUBSTITUTE(Data!$H7,CHAR(9),\"\"))-12-LEN(L$3)),\"\")","v":"313"},{"$f":"IFERROR(MID(SUBSTITUTE(Data!$H7,CHAR(9),\"\"),SEARCH(\"MEASUREMENT\"&M$3,SUBSTITUTE(Data!$H7,CHAR(9),\"\"))+LEN(M$3)+11,SEARCH(CHAR(10),SUBSTITUTE(Data!$H7,CHAR(9),\"\"),SEARCH(\"MEASUREMENT\"&M$3,SUBSTITUTE(Data!$H7,CHAR(9),\"\")))-SEARCH(\"MEASUREMENT\"&M$3,SUBSTITUTE(Data!$H7,CHAR(9),\"\"))-12-LEN(M$3)),\"\")","v":"125"},{"$f":"IFERROR(MID(SUBSTITUTE(Data!$H7,CHAR(9),\"\"),SEARCH(\"MEASUREMENT\"&N$3,SUBSTITUTE(Data!$H7,CHAR(9),\"\"))+LEN(N$3)+11,SEARCH(CHAR(10),SUBSTITUTE(Data!$H7,CHAR(9),\"\"),SEARCH(\"MEASUREMENT\"&N$3,SUBSTITUTE(Data!$H7,CHAR(9),\"\")))-SEARCH(\"MEASUREMENT\"&N$3,SUBSTITUTE(Data!$H7,CHAR(9),\"\"))-12-LEN(N$3)),\"\")","v":"95"},{"$f":"IFERROR(MID(SUBSTITUTE(Data!$H7,CHAR(9),\"\"),SEARCH(\"MEASUREMENT\"&O$3,SUBSTITUTE(Data!$H7,CHAR(9),\"\"))+LEN(O$3)+11,SEARCH(CHAR(10),SUBSTITUTE(Data!$H7,CHAR(9),\"\"),SEARCH(\"MEASUREMENT\"&O$3,SUBSTITUTE(Data!$H7,CHAR(9),\"\")))-SEARCH(\"MEASUREMENT\"&O$3,SUBSTITUTE(Data!$H7,CHAR(9),\"\"))-12-LEN(O$3)),\"\")","v":"280"},{"$f":"IFERROR(MID(SUBSTITUTE(Data!$H7,CHAR(9),\"\"),SEARCH(\"MEASUREMENT\"&P$3,SUBSTITUTE(Data!$H7,CHAR(9),\"\"))+LEN(P$3)+11,SEARCH(CHAR(10),SUBSTITUTE(Data!$H7,CHAR(9),\"\"),SEARCH(\"MEASUREMENT\"&P$3,SUBSTITUTE(Data!$H7,CHAR(9),\"\")))-SEARCH(\"MEASUREMENT\"&P$3,SUBSTITUTE(Data!$H7,CHAR(9),\"\"))-12-LEN(P$3)),\"\")","v":"212"},{"$f":"IFERROR(MID(SUBSTITUTE(Data!$H7,CHAR(9),\"\"),SEARCH(\"MEASUREMENT\"&Q$3,SUBSTITUTE(Data!$H7,CHAR(9),\"\"))+LEN(Q$3)+11,SEARCH(CHAR(10),SUBSTITUTE(Data!$H7,CHAR(9),\"\"),SEARCH(\"MEASUREMENT\"&Q$3,SUBSTITUTE(Data!$H7,CHAR(9),\"\")))-SEARCH(\"MEASUREMENT\"&Q$3,SUBSTITUTE(Data!$H7,CHAR(9),\"\"))-12-LEN(Q$3)),\"\")","v":"M12"},{"$f":"IFERROR(MID(SUBSTITUTE(Data!$H7,CHAR(9),\"\"),SEARCH(\"MEASUREMENT\"&R$3,SUBSTITUTE(Data!$H7,CHAR(9),\"\"))+LEN(R$3)+11,SEARCH(CHAR(10),SUBSTITUTE(Data!$H7,CHAR(9),\"\"),SEARCH(\"MEASUREMENT\"&R$3,SUBSTITUTE(Data!$H7,CHAR(9),\"\")))-SEARCH(\"MEASUREMENT\"&R$3,SUBSTITUTE(Data!$H7,CHAR(9),\"\"))-12-LEN(R$3)),\"\")","v":"-"},{"$f":"IFERROR(MID(SUBSTITUTE(Data!$H7,CHAR(9),\"\"),SEARCH(\"MEASUREMENT\"&S$3,SUBSTITUTE(Data!$H7,CHAR(9),\"\"))+LEN(S$3)+11,SEARCH(CHAR(10),SUBSTITUTE(Data!$H7,CHAR(9),\"\"),SEARCH(\"MEASUREMENT\"&S$3,SUBSTITUTE(Data!$H7,CHAR(9),\"\")))-SEARCH(\"MEASUREMENT\"&S$3,SUBSTITUTE(Data!$H7,CHAR(9),\"\"))-12-LEN(S$3)),\"\")","v":"100"},null,{"$f":"NumFromText(Data!$H7,U$3)","v":"100\r"},{"$f":"NumFromText(Data!$H7,V$3)","v":"65\r"},{"$f":"NumFromText(Data!$H7,W$3)","v":"80\r"},{"$f":"NumFromText(Data!$H7,X$3)","v":"65\r"},{"$f":"NumFromText(Data!$H7,Y$3)","v":"-\r"},{"$f":"NumFromText(Data!$H7,Z$3)","v":"390\r"},{"$f":"NumFromText(Data!$H7,AA$3)","v":"300\r"},{"$f":"NumFromText(Data!$H7,AB$3)","v":"160\r"},{"$f":"NumFromText(Data!$H7,AC$3)","v":"180\r"},{"$f":"NumFromText(Data!$H7,AD$3)","v":""},{"$f":"NumFromText(Data!$H7,AE$3)","v":"313\r"},{"$f":"NumFromText(Data!$H7,AF$3)","v":"125\r"},{"$f":"NumFromText(Data!$H7,AG$3)","v":"95\r"},{"$f":"NumFromText(Data!$H7,AH$3)","v":"280\r"},{"$f":"NumFromText(Data!$H7,AI$3)","v":"212\r"},{"$f":"NumFromText(Data!$H7,AJ$3)","v":"M12\r"},{"$f":"NumFromText(Data!$H7,AK$3)","v":"-\r"},{"$f":"NumFromText(Data!$H7,AL$3)","v":"100\r"}]
[null,{"$f":"IFERROR(MID(SUBSTITUTE(Data!$H8,CHAR(9),\"\"),SEARCH(\"MEASUREMENT\"&B$3,SUBSTITUTE(Data!$H8,CHAR(9),\"\"))+LEN(B$3)+11,SEARCH(CHAR(10),SUBSTITUTE(Data!$H8,CHAR(9),\"\"),SEARCH(\"MEASUREMENT\"&B$3,SUBSTITUTE(Data!$H8,CHAR(9),\"\")))-SEARCH(\"MEASUREMENT\"&B$3,SUBSTITUTE(Data!$H8,CHAR(9),\"\"))-12-LEN(B$3)),\"\")","v":"100"},{"$f":"IFERROR(MID(SUBSTITUTE(Data!$H8,CHAR(9),\"\"),SEARCH(\"MEASUREMENT\"&C$3,SUBSTITUTE(Data!$H8,CHAR(9),\"\"))+LEN(C$3)+11,SEARCH(CHAR(10),SUBSTITUTE(Data!$H8,CHAR(9),\"\"),SEARCH(\"MEASUREMENT\"&C$3,SUBSTITUTE(Data!$H8,CHAR(9),\"\")))-SEARCH(\"MEASUREMENT\"&C$3,SUBSTITUTE(Data!$H8,CHAR(9),\"\"))-12-LEN(C$3)),\"\")","v":"67"},{"$f":"IFERROR(MID(SUBSTITUTE(Data!$H8,CHAR(9),\"\"),SEARCH(\"MEASUREMENT\"&D$3,SUBSTITUTE(Data!$H8,CHAR(9),\"\"))+LEN(D$3)+11,SEARCH(CHAR(10),SUBSTITUTE(Data!$H8,CHAR(9),\"\"),SEARCH(\"MEASUREMENT\"&D$3,SUBSTITUTE(Data!$H8,CHAR(9),\"\")))-SEARCH(\"MEASUREMENT\"&D$3,SUBSTITUTE(Data!$H8,CHAR(9),\"\"))-12-LEN(D$3)),\"\")","v":"80"},{"$f":"IFERROR(MID(SUBSTITUTE(Data!$H8,CHAR(9),\"\"),SEARCH(\"MEASUREMENT\"&E$3,SUBSTITUTE(Data!$H8,CHAR(9),\"\"))+LEN(E$3)+11,SEARCH(CHAR(10),SUBSTITUTE(Data!$H8,CHAR(9),\"\"),SEARCH(\"MEASUREMENT\"&E$3,SUBSTITUTE(Data!$H8,CHAR(9),\"\")))-SEARCH(\"MEASUREMENT\"&E$3,SUBSTITUTE(Data!$H8,CHAR(9),\"\"))-12-LEN(E$3)),\"\")","v":"65"},{"$f":"IFERROR(MID(SUBSTITUTE(Data!$H8,CHAR(9),\"\"),SEARCH(\"MEASUREMENT\"&F$3,SUBSTITUTE(Data!$H8,CHAR(9),\"\"))+LEN(F$3)+11,SEARCH(CHAR(10),SUBSTITUTE(Data!$H8,CHAR(9),\"\"),SEARCH(\"MEASUREMENT\"&F$3,SUBSTITUTE(Data!$H8,CHAR(9),\"\")))-SEARCH(\"MEASUREMENT\"&F$3,SUBSTITUTE(Data!$H8,CHAR(9),\"\"))-12-LEN(F$3)),\"\")","v":"210"},{"$f":"IFERROR(MID(SUBSTITUTE(Data!$H8,CHAR(9),\"\"),SEARCH(\"MEASUREMENT\"&G$3,SUBSTITUTE(Data!$H8,CHAR(9),\"\"))+LEN(G$3)+11,SEARCH(CHAR(10),SUBSTITUTE(Data!$H8,CHAR(9),\"\"),SEARCH(\"MEASUREMENT\"&G$3,SUBSTITUTE(Data!$H8,CHAR(9),\"\")))-SEARCH(\"MEASUREMENT\"&G$3,SUBSTITUTE(Data!$H8,CHAR(9),\"\"))-12-LEN(G$3)),\"\")","v":"460"},{"$f":"IFERROR(MID(SUBSTITUTE(Data!$H8,CHAR(9),\"\"),SEARCH(\"MEASUREMENT\"&H$3,SUBSTITUTE(Data!$H8,CHAR(9),\"\"))+LEN(H$3)+11,SEARCH(CHAR(10),SUBSTITUTE(Data!$H8,CHAR(9),\"\"),SEARCH(\"MEASUREMENT\"&H$3,SUBSTITUTE(Data!$H8,CHAR(9),\"\")))-SEARCH(\"MEASUREMENT\"&H$3,SUBSTITUTE(Data!$H8,CHAR(9),\"\"))-12-LEN(H$3)),\"\")","v":"350"},{"$f":"IFERROR(MID(SUBSTITUTE(Data!$H8,CHAR(9),\"\"),SEARCH(\"MEASUREMENT\"&I$3,SUBSTITUTE(Data!$H8,CHAR(9),\"\"))+LEN(I$3)+11,SEARCH(CHAR(10),SUBSTITUTE(Data!$H8,CHAR(9),\"\"),SEARCH(\"MEASUREMENT\"&I$3,SUBSTITUTE(Data!$H8,CHAR(9),\"\")))-SEARCH(\"MEASUREMENT\"&I$3,SUBSTITUTE(Data!$H8,CHAR(9),\"\"))-12-LEN(I$3)),\"\")","v":"160"},{"$f":"IFERROR(MID(SUBSTITUTE(Data!$H8,CHAR(9),\"\"),SEARCH(\"MEASUREMENT\"&J$3,SUBSTITUTE(Data!$H8,CHAR(9),\"\"))+LEN(J$3)+11,SEARCH(CHAR(10),SUBSTITUTE(Data!$H8,CHAR(9),\"\"),SEARCH(\"MEASUREMENT\"&J$3,SUBSTITUTE(Data!$H8,CHAR(9),\"\")))-SEARCH(\"MEASUREMENT\"&J$3,SUBSTITUTE(Data!$H8,CHAR(9),\"\"))-12-LEN(J$3)),\"\")","v":"200"},{"$f":"IFERROR(MID(SUBSTITUTE(Data!$H8,CHAR(9),\"\"),SEARCH(\"MEASUREMENT\"&K$3,SUBSTITUTE(Data!$H8,CHAR(9),\"\"))+LEN(K$3)+11,SEARCH(CHAR(10),SUBSTITUTE(Data!$H8,CHAR(9),\"\"),SEARCH(\"MEASUREMENT\"&K$3,SUBSTITUTE(Data!$H8,CHAR(9),\"\")))-SEARCH(\"MEASUREMENT\"&K$3,SUBSTITUTE(Data!$H8,CHAR(9),\"\"))-12-LEN(K$3)),\"\")","v":""},{"$f":"IFERROR(MID(SUBSTITUTE(Data!$H8,CHAR(9),\"\"),SEARCH(\"MEASUREMENT\"&L$3,SUBSTITUTE(Data!$H8,CHAR(9),\"\"))+LEN(L$3)+11,SEARCH(CHAR(10),SUBSTITUTE(Data!$H8,CHAR(9),\"\"),SEARCH(\"MEASUREMENT\"&L$3,SUBSTITUTE(Data!$H8,CHAR(9),\"\")))-SEARCH(\"MEASUREMENT\"&L$3,SUBSTITUTE(Data!$H8,CHAR(9),\"\"))-12-LEN(L$3)),\"\")","v":"343"},{"$f":"IFERROR(MID(SUBSTITUTE(Data!$H8,CHAR(9),\"\"),SEARCH(\"MEASUREMENT\"&M$3,SUBSTITUTE(Data!$H8,CHAR(9),\"\"))+LEN(M$3)+11,SEARCH(CHAR(10),SUBSTITUTE(Data!$H8,CHAR(9),\"\"),SEARCH(\"MEASUREMENT\"&M$3,SUBSTITUTE(Data!$H8,CHAR(9),\"\")))-SEARCH(\"MEASUREMENT\"&M$3,SUBSTITUTE(Data!$H8,CHAR(9),\"\"))-12-LEN(M$3)),\"\")","v":"-"},{"$f":"IFERROR(MID(SUBSTITUTE(Data!$H8,CHAR(9),\"\"),SEARCH(\"MEASUREMENT\"&N$3,SUBSTITUTE(Data!$H8,CHAR(9),\"\"))+LEN(N$3)+11,SEARCH(CHAR(10),SUBSTITUTE(Data!$H8,CHAR(9),\"\"),SEARCH(\"MEASUREMENT\"&N$3,SUBSTITUTE(Data!$H8,CHAR(9),\"\")))-SEARCH(\"MEASUREMENT\"&N$3,SUBSTITUTE(Data!$H8,CHAR(9),\"\"))-12-LEN(N$3)),\"\")","v":"-"},{"$f":"IFERROR(MID(SUBSTITUTE(Data!$H8,CHAR(9),\"\"),SEARCH(\"MEASUREMENT\"&O$3,SUBSTITUTE(Data!$H8,CHAR(9),\"\"))+LEN(O$3)+11,SEARCH(CHAR(10),SUBSTITUTE(Data!$H8,CHAR(9),\"\"),SEARCH(\"MEASUREMENT\"&O$3,SUBSTITUTE(Data!$H8,CHAR(9),\"\")))-SEARCH(\"MEASUREMENT\"&O$3,SUBSTITUTE(Data!$H8,CHAR(9),\"\"))-12-LEN(O$3)),\"\")","v":"314"},{"$f":"IFERROR(MID(SUBSTITUTE(Data!$H8,CHAR(9),\"\"),SEARCH(\"MEASUREMENT\"&P$3,SUBSTITUTE(Data!$H8,CHAR(9),\"\"))+LEN(P$3)+11,SEARCH(CHAR(10),SUBSTITUTE(Data!$H8,CHAR(9),\"\"),SEARCH(\"MEASUREMENT\"&P$3,SUBSTITUTE(Data!$H8,CHAR(9),\"\")))-SEARCH(\"MEASUREMENT\"&P$3,SUBSTITUTE(Data!$H8,CHAR(9),\"\"))-12-LEN(P$3)),\"\")","v":"254"},{"$f":"IFERROR(MID(SUBSTITUTE(Data!$H8,CHAR(9),\"\"),SEARCH(\"MEASUREMENT\"&Q$3,SUBSTITUTE(Data!$H8,CHAR(9),\"\"))+LEN(Q$3)+11,SEARCH(CHAR(10),SUBSTITUTE(Data!$H8,CHAR(9),\"\"),SEARCH(\"MEASUREMENT\"&Q$3,SUBSTITUTE(Data!$H8,CHAR(9),\"\")))-SEARCH(\"MEASUREMENT\"&Q$3,SUBSTITUTE(Data!$H8,CHAR(9),\"\"))-12-LEN(Q$3)),\"\")","v":"M12"},{"$f":"IFERROR(MID(SUBSTITUTE(Data!$H8,CHAR(9),\"\"),SEARCH(\"MEASUREMENT\"&R$3,SUBSTITUTE(Data!$H8,CHAR(9),\"\"))+LEN(R$3)+11,SEARCH(CHAR(10),SUBSTITUTE(Data!$H8,CHAR(9),\"\"),SEARCH(\"MEASUREMENT\"&R$3,SUBSTITUTE(Data!$H8,CHAR(9),\"\")))-SEARCH(\"MEASUREMENT\"&R$3,SUBSTITUTE(Data!$H8,CHAR(9),\"\"))-12-LEN(R$3)),\"\")","v":"351"},{"$f":"IFERROR(MID(SUBSTITUTE(Data!$H8,CHAR(9),\"\"),SEARCH(\"MEASUREMENT\"&S$3,SUBSTITUTE(Data!$H8,CHAR(9),\"\"))+LEN(S$3)+11,SEARCH(CHAR(10),SUBSTITUTE(Data!$H8,CHAR(9),\"\"),SEARCH(\"MEASUREMENT\"&S$3,SUBSTITUTE(Data!$H8,CHAR(9),\"\")))-SEARCH(\"MEASUREMENT\"&S$3,SUBSTITUTE(Data!$H8,CHAR(9),\"\"))-12-LEN(S$3)),\"\")","v":"100"},null,{"$f":"NumFromText(Data!$H8,U$3)","v":"100\r"},{"$f":"NumFromText(Data!$H8,V$3)","v":"67\r"},{"$f":"NumFromText(Data!$H8,W$3)","v":"80\r"},{"$f":"NumFromText(Data!$H8,X$3)","v":"65\r"},{"$f":"NumFromText(Data!$H8,Y$3)","v":"210\r"},{"$f":"NumFromText(Data!$H8,Z$3)","v":"460\r"},{"$f":"NumFromText(Data!$H8,AA$3)","v":"350\r"},{"$f":"NumFromText(Data!$H8,AB$3)","v":"160\r"},{"$f":"NumFromText(Data!$H8,AC$3)","v":"200\r"},{"$f":"NumFromText(Data!$H8,AD$3)","v":""},{"$f":"NumFromText(Data!$H8,AE$3)","v":"343\r"},{"$f":"NumFromText(Data!$H8,AF$3)","v":"-\r"},{"$f":"NumFromText(Data!$H8,AG$3)","v":"-\r"},{"$f":"NumFromText(Data!$H8,AH$3)","v":"314\r"},{"$f":"NumFromText(Data!$H8,AI$3)","v":"254\r"},{"$f":"NumFromText(Data!$H8,AJ$3)","v":"M12\r"},{"$f":"NumFromText(Data!$H8,AK$3)","v":"351\r"},{"$f":"NumFromText(Data!$H8,AL$3)","v":"100\r"}]